Workbook

Sheet Cover
A3: TAG Data Book
A4: =Audit!A12 -> November 2024 v1.24
A6: Links:
A7: Contents
A9: Contact: | D9: N.B: Always unprotect for unhiding, and hide before protecting
A10: Transport Appraisal and Strategic Modelling (TASM) Division
A11: Department for Transport | C11: N.B: If macros are not working, this may be due to your network security policy: please save the Data Book to a trusted location (typically not the default ‘Downloads’ folder) and try again.
A12: Zone 1/3 Great Minster House
A13: 33 Horseferry Road
A14: London
A15: SW1P 4DR
A16: Click here to email TASM

Sheet Contents
E1: This Data Book has been prepared for transport modelling and appraisal purposes, and should be applied in accordance with wider guidance in TAG. It may not be appropriate for other purposes. Whilst every effort is made to ensure this data is correct, use of any part of the data comprising this Data Book is at the user’s sole risk and the DfT cannot be held liable for any loss or damage (including but not limited to, loss of profits, revenue or data) resulting from the use, or misuse, of the data, howsoever caused. For the avoidance of any doubt, the offer by the DfT of this data for use by third parties does not create a contractual relationship between the DfT and any party using it.
A3: TAG Data Book
A4: Data Book Contents
A7: Go to 'User Parameters' tab to change Price year or Initial forecast year.
A8: Click on cells in columns E/F to go to the desired table. | F8: Grey cells | G8: These act as hyperlinks. Click once on these to navigate directly, without scrolling.
A10: TAG Unit | B10: Section Title | C10: Unit Title | E10: Worksheet | G10: Table Title
E11: Cover | G11: Department for Transport contact information
E12: User Parameters | G12: User - defined price year and initial forecast year
E13: Audit | G13: Version log
E14: TAG1 | G14: TAG1 table look-up
E15: Annual Parameters | G15: Forecast annual economic and demographic parameters
A16: A 1.1 | B16: Cost Benefit Analysis | E16: A 1.1.1 | G16: Discount rates
A17: A 1.2 | B17: Scheme costs | E17: A 1.2.1 | G17: Cost inflation series
A18: A 1.3 | B18: User & | C18: Values of time | E18: A 1.3.1 | G18: Values of time per person (working and non-working)
B19: Provider | E19: A 1.3.2 | G19: Forecast values of time per person (working and non-working)
B20: Impacts | E20: A 1.3.3 | G20: Car and vehicle occupancies (2000); Annual percentage change in car passenger occupancy up to 2036
E21: A 1.3.4 | G21: Proportion of travel and trips in work and non-work time
E22: A 1.3.5 | G22: Market price values of time per vehicle based on distance travelled
E23: A 1.3.6 | G23: Forecast market price values of time per vehicle based on distance travelled
C24: Operating costs | E24: A 1.3.7 | G24: Fuel and electricity prices and components
E25: A 1.3.8 | G25: Fuel / energy consumption parameter values
E26: A 1.3.9 | G26: Forecast proportion of car, LGV and other vehicle kilometres using petrol / diesel / electricity
E27: A 1.3.10 | G27: Forecast assumed vehicle fuel efficiency improvements to 2050
E28: A 1.3.11 | G28: Forecast fuel / energy consumption parameters
E29: A 1.3.12 | G29: Forecast vehicle fuel / energy cost formulae parameters (work)
E30: A 1.3.13 | G30: Forecast vehicle fuel / energy cost formulae parameters (non-work)
E31: A 1.3.14 | G31: Non-fuel resource vehicle operating costs
E32: A 1.3.15 | G32: Forecast non-fuel resource car operating costs to 2045
C33: Social Impact of buses | E33: A 1.3.16 | G33: Proportion of bus trips by car ownership, trip purpose and concessionary travel pass status.
E34: A 1.3.17 | G34: Proportion of bus trips by that would “not go” if bus not available.
E35: A 1.3.18 | G35: Value of the social impact per return bus trip
A36: A 3.1 | B36: Environmental | C36: Noise Impacts | E36: A 3.1 | G36: Monetary valuation of changes in noise
A37: A 3.2 | B37: Impacts | C37: Air Quality Impacts | E37: A 3.2 | G37: Damage cost and marginal abatement cost values by pollutant
A38: A 3.3 | C38: Greenhouse Gases | E38: A 3.3 | G38: Carbon dioxide emissions per litre of fuel burnt / kWh used
A39: A 3.4 | E39: A 3.4 | G39: Forecast non-traded, £ per tonne of CO2e
A40: A 4.1 | B40: Social & | C40: Social Impact | E40: A 4.1.1 | G40: Average value of prevention per casualty by severity and element of cost
B41: Distributional | C41: Appraisal | E41: A 4.1.2 | G41: Average value of prevention per road casualty by class of road user
B42: Impacts | E42: A 4.1.3 | G42: Average value of prevention of road accidents by severity and element of cost
E43: A 4.1.4 | G43: Average value of prevention per road accident by severity & class of road: all hours
E44: A 4.1.5 | G44: Rail injury classification, weights and values
E45: A 4.1.6 | G45: Value of journey quality benefit of cycle facilities, relative to no facilities
E46: A 4.1.7 | G46: Values of aspects of pedestrian environment, used in valuation of London Strategic Walk Network
E47: A 4.1.8 | G47: Option and non-use values
A48: A5.3 | B48: Uni-Modal | C48: Rail Appraisal | E48: A 5.3.1 | G48: Operating cost and revenue forecasting series
E49: A 5.3.2 | G49: Journey purpose / ticket type splits by flow category
A50: A 5.4 | B50: Appraisal | C50: Marginal External | E50: A 5.4.1 | G50: Proportion of total traffic by region, congestion band, area type & road type
C51: Congestion Costs | E51: A 5.4.2 | G51: Marginal external costs by road type and congestion band: core scenario
E52: A 5.4.3 | G52: Car traffic shares by time of day
E53: A 5.4.4 | G53: Marginal external costs by region and time of day
E54: A 5.4.5 | G54: Car diversion factors by PDFH flow category
E55: A5.4.6 | G55: Bus diversion factors by recipient/source mode
E56: A5.4.7 | G56: Cycling diversion factors by recipient/source mode
A57: M 2.1 | B57: Variable Demand Modelling | E57: M 2.1 | G57: Values of time by income band for non-work purposes (£/hr)
A58: M 2.2 | E58: M 2.2 | G58: Values of time by income band for work purposes (£/hr)
A59: M 3.2 | B59: Assignment Modelling | E59: M 3.2.1 | G59: Segmented values of bus quality interventions (generalised minutes)
A60: M 4.2 | B60: Model Forecasting & Uncertainty | E60: M 4.2.1 | G60: Forecast fuel price and income adjustment factors
E61: M 4.2.2 | G61: Car cost series for rail demand forecasting
E62: M 4.2.3 | G62: Car and bus journey time series for rail demand forecasting
E63: M 4.2.4 | G63: Rail forecasting parameters
A64: COBALT | B64: Accidents & Casualties | E64: COBALT 1 | G64: Costs per accident / casualty
E65: COBALT 2 | G65: Annual rates of growth of accident values
E66: COBALT 3 | G66: Link & Combined Link / Junction: accident rates & change factors
E67: COBALT 4 | G67: Severity rates (Link / Combined)
E68: COBALT 5 | G68: Link & Combined Link / Junction: casualty rates & change factors
E69: COBALT 6 | G69: Junction only: accident parameters
E70: COBALT 7 | G70: Junction only: accident change factors
E71: COBALT 8 | G71: Severity rates (Junction only)
E72: COBALT 9 | G72: Junction only: casualty rates & change factors
A73: Source Data | E73: Default Pars | G73: Default price year, initial forecast year and value year
E74: Annual Parameters Source | G74: Forecast annual economic and demographic parameters
E75: Discount % | G75: Discount rates, source: Green Book, HMT (2010)
E76: Indirect tax correction | G76: VAT rates by year
E77: Cost inflation | G77: Construction Output Prices Index and Uncertainty Range RCF series
E78: Forecast occupancies | G78: Intermediate calculations for vehicle operating costs: Forecast vehicle occupancies
C79: Values of Time | E79: Source VoT | G79: Values of time per person (working and non-working), source: DfT (2000)
E80: VoT2 | G80: Car occupancies, source: DfT (2000)
E81: VoT3 | G81: Vehicle occupancies, source: DfT (2000)
E82: A 1.3.3.2 | G82: =CONCATENATE("Vehicle occupancies based on vehicle kilometres travelled (",'Default Pars'!L19,")") -> Vehicle occupancies based on vehicle kilometres travelled (2010)
E83: VoT4 | G83: Annual percentage change in car passenger occupancy up to 2036, source: DfT (2000)
E84: VoT5 | G84: Proportion of travel in work and non-work time, source: DfT (2000)
E85: VoT6 | G85: Proportion of trips in work and non-work time, source: DfT (2000)
C86: Vehicle Operating Costs | E86: Fuel consumption | G86: Fuel / energy consumption parameter values, source: DfT (2010 / 2011 respectively)
E87: VoC Efficiency | G87: Forecast assumed vehicle fuel efficiency improvements to 2035, source: DfT (2010)
E88: VoC Mileage % | G88: Forecast proportion of car, LGV and other vehicle kilometres using petrol / diesel / electricity, 2000-2030, source: DfT
E89: VoC Fuel | G89: Fuel and electricity prices and components, source: DfT (2010 prices)
E90: VoC Non-Fuel | G90: Non-fuel resource vehicle operating costs, source: DfT (2010 prices and values)
E91: Bus Social Impacts | G91: Social Impacts of buses
C92: Environment | E92: Noise | G92: Annoyance response relationships for road and rail traffic noise and
G93: Monetary valuation of changes in noise level, source: DfT (2002 prices and values)
E94: NOx damage | G94: NOx damage cost values, source: Defra (2010 values and prices)
E95: PM10 damage | G95: Marginal annual air quality cost, source: DfT (2010 values and prices)
E96: CO2 | G96: Carbon dioxide emissions per litre of fuel burnt / kWh used
E97: GHG | G97: Forecast traded & non-traded, £ per tonne of CO2e, 2009-2100, source: DECC (2010 prices)
E98: Electricity | G98: Road and rail electricity prices & carbon components
C99: Social | E99: Casualty costs | G99: Average value of prevention per casualty by severity and element of cost, source: DfT (2010 prices and values)
E100: Accident costs | G100: Accident related costs, by severity, road type and cost element, source: DfT (2010 prices and values)
E101: Casualty data | G101: Total injuries by type of road accident, by severity, source: Police (2010)
E102: Accident data | G102: Reported accidents by daylight / darkness, road type and severity, source: DfT (2011)
E103: Rail | G103: Rail injury classification, weights and values, source DfT (2010 values and prices)
E104: Option values | G104: Option and non-use values, source: various papers, source: various papers (2002)
E105: Cycling | G105: Value of journey ambience benefit of cycle facilities, source: various papers (2010 prices and values)
E106: Walking | G106: Values of aspects in pedestrian environment, source: Heuman (2005)
C107: Marginal external costs | E107: Total - Traffic % | G107: Proportion of Total Traffic in each congestion band for different regions, area types and road types
E108: Car - MECs | G108: Marginal External Costs & Indirect Tax - Cars
E109: Car Traffic Shares | G109: Car Traffic Shares %
E110: MECs - time of day | G110: Marginal External Congestion Costs by time of day
C111: Forecasting | E111: Adjustment Factors | G111: Fuel price and income forecast adjustment factors, source: DfT (2010)
E112: Car speeds | G112: Average speeds, and Car cost series for rail demand forecasting
C115: COBALT Accidents | E115: COBALT 1 | G115: COBALT Discount rates, costs per accident / casualty, number of damage only accidents (2002)
E116: COBALT 2 | G116: COBALT Compound annual rates of growth of accident values, 2002-2061+
E117: COBALT 3 | G117: COBALT Accident proportions (junction, link and combined)
E118: COBALT 4 | G118: COBALT Accident parameters (junction only)
E119: COBALT 5 | G119: COBALT Accident change factors (junction only)
E120: COBALT 6 | G120: COBALT Accident rates and change factors (link and link and junction combined)
E121: COBALT 7 | G121: COBALT Casualty rates and change factors (junction only)
E122: COBALT 8 | G122: COBALT Casualty rates and change factors (link and link and junction combined)

Sheet User Parameters
A3: TAG Data Book
A4: User-defined parameters
A6: Links:
A7: Contents
A9: NOTE: Users can change parameter values in the "Value" column L (using drop-down menus), or reset default values using buttons in column M.
A10: Parameter | C10: Parameter description | L10: Value | M10: Defaults
A11: Reset all defaults | M11: Reset
A13: Price year | C13: Price base year for presentation of values. | L13: 2010 | M13: Reset
C14: Note that at present, TAG recommends presentation of monetary values in 2010 prices.
A16: Initial forecast year | C16: In forecasting sheets (in which values are presented over a series of years), this is the first year for which values are displayed. | L16: 2010 | M16: Reset
C17: Values are usually presented over a period of 80 years where possible.
A19: Value year | C19: Base year for valuations presented in single-year tables. | L19: 2010 | M19: Reset

Sheet Default Pars (hidden)
A3: TAG Data Book
A4: DfT-defined default parameters
A6: Links:
A7: Contents
A10: Parameter | C10: Parameter description | L10: Value | M10: Drop down menus
M11: Price Yr | N11: Initial Yr
M12: 1990 | N12: 2002
A13: Price year | C13: Price base year for presentation of values. | L13: 2010 | M13: 1991 | N13: 2003
C14: Note that at present, TAG recommends presentation of monetary values in 2010 prices. | M14: 1992 | N14: 2004
M15: 1993 | N15: 2005
A16: Initial forecast year | C16: In forecasting sheets (in which values are presented over a series of years), this is the first year for which values are displayed. | L16: 2010 | M16: 1994 | N16: 2006
C17: Values are usually presented over a period of 80 years where possible. | M17: 1995 | N17: 2007
M18: 1996 | N18: 2008
A19: Value year | C19: Base year for valuations presented in single-year tables. | L19: 2010 | M19: 1997 | N19: 2009
M20: 1998 | N20: 2010
M21: 1999
A22: Indirect taxation factor | C22: IMPORTANT NOTE - this can be overridden for individual years in the following sheet: | I22: Indirect tax correction | L22: 0.19 | M22: 2000
M23: 2001
A24: Work VOT elasticity | C24: Elasticity of in-work-time value of time to GDP/head (Used in Annual Parameters Source) | L24: 1 | M24: 2002
A25: Non-work VOT elasticity | C25: Elasticity of non-work-time value of time to GDP/head (Used in Annual Parameters Source) | L25: 1 | M25: 2003
M26: 2004
C27: The Reset cells in column M of the User Parameters tab uses macros to reset to the values in column L of this tab. | M27: 2005
C28: The Drop down menus in columns M and N of this tab are used in column L of the User Parameters tab. | M28: 2006
M29: 2007
C30: See Flow chart to see which tabs are affected by these cells. | M30: 2008
M31: 2009
M32: 2010
M33: 2011
M34: 2012
M35: 2013
M36: 2014
M37: 2015
M38: 2016
M39: 2017
M40: 2018
M41: 2019
M42: 2020
M43: 2021
M44: 2022
M45: 2023
M46: 2024
M47: 2025
M48: 2026
M49: 2027
M50: 2028
M51: 2029
M52: 2030
M53: 2031
M54: 2032
M55: 2033
M56: 2034
M57: 2035
M58: 2036
M59: 2037
M60: 2038
M61: 2039
M62: 2040

Sheet Audit
A3: TAG Data Book
A4: Audit sheet
A6: Links: | D6: DISCLAIMER: In general, all values in the Data Book are liable to minor revisions with each version of the Data Book, as whenever the data in the Annual Parameters tab
A7: Contents | D7: is updated this flows through into price and value base adjustments. Please refer to the hidden tab 'Flow chart' for details of inter-dependencies within the Data Book.
D8: Please make sure you are using the most up to date version of the Data Book, available at: https://www.gov.uk/guidance/transport-analysis-guidance-TAG#TAG-data-book
A10: This version
A11: Version | C11: Date | D11: Changes from previous version
A12: November 2024 v1.24 | C12: 2024-11-01 | D12: Corrected uprating formula in A4.1.4 to appropriately apply income elasticity of marginal utility of income of -1.3
D13: Updated A3.3 liquid fuel emissions factors to reflect latest biofuel blend rates and forecasts
D14: Updated Annual Parameters and A5.3.1 with ONS outturn population, May 2024 OBR LRD and Oct 2024 EFO data
A15: Previous versions (in reverse date order)
A16: May 2024 v1.23 | C16: 2024-05-01 | D16: Updated Annual Parameters to include choice of GDP base year.
D17: Updated A1.3.7 to include latest DESNZ fuel and electricity prices.
D18: Updated A3.3 electricity emissions factors to reflect latest DESNZ supplementary guidance
D19: Updated Annual Parameters and A5.3.1 with spring 2024 ONS outturn GDP, population, households and inflation, and March 2024 OBR EFO forecasts.
D20: Corrected error in Annual Parameters tab, shifting High and Low Population series back by one year to match underlying ONS projections
D21: Updated A1.2.1 to include latest ONS COPI release.
D22: Updated A3.4 to add adjusted appraisal values for valuing traded (UK ETS) emissions.
A23: November 2023 v1.22 | C23: 2023-11-01 | D23: Updated Annual Parameters and A5.3.1 with June 23 OBR LRD and Nov 23 EFO data
D24: Addition of table A1.2.1 - Cost inflation series
D25: Updated A1.3.1 to reflect latest data from ONS Annual Survey of Hours and Earnings.
D26: Updated A5.4.2 to reflect latest economic parameters, air quality and greenhouse gas guidance, and included additional table with marginal tonnes CO2.
D27: Updated A4.1.6 following a review of the relevant literature.
D28: Updated A3.4 to add carbon values in market price unit of account
A29: May 2023 v1.21 | C29: 2023-05-01 | D29: Updated A5.4.1, A5.4.2, A5.4.3, A5.4.4 to reflect updated underpinning NTMv2 runs and economic parameters.
D30: Removal of A5.4.2.1 and A5.4.2.2 with introduction of the Common Analytical Scenario MECs.
D31: Updated A3.3 electricity emissions factors to reflect latest DESNZ supplementary guidance
D32: Updated Annual Parameters and A5.3.1 with spring 2023 ONS outturn GDP, population, inflation and households data, and March 2023 OBR EFO.
D33: Updated A3.2 to reflect latest values from Defra. This includes the removal of PM10 Damage Costs and Abatement Costs, and presentation of concentration-based values in per capita terms.
A34: January 2023 v1.20.2 | C34: 2023-01-11 | D34: Updated A1.3.7 with 2023 BEIS fuel and electricity price data
A35: November 2022 v1.20.1 | C35: 2022-11-01 | D35: Updated Annual Parameters and A5.3.1 with July 2022 OBR Fiscal Risk Sustainability data and November 2022 OBR EFO data
A36: Interim release prior to energy price update | D36: Updated A1.3.10 to reflect latest bio energy penalty information (relevant to petrol and diesel car only)
D37: Updated A3.3 liquid fuel emissions factors to reflect latest biofuel blend rates and forecasts
D38: Updated A5.4.7 with latest cycling diversion factors
D39: Updated M4.2.2 and M4.2.3 with car costs and car and bus journey times from NTMv2R (NRTP 2022 runs)
A40: May 2022 v1.19 | C40: 2022-05-01 | D40: Updated table A1.3.8 (plus calculations in A1.3.11 and A1.3.12) to reflect latest electric vehicle energy consumption parameter values.
A41: Forthcoming Change: fleet assumptions | D41: Updated table A1.3.9 to reflect latest fleet mix by fuel type forecasts.
D42: Updated table A1.3.10 to reflect latest vehicle fuel efficiency improvement forecasts.
A43: May 2022 v1.18 | C43: 2022-05-01 | D43: Updated Annual Parameters and A5.3.1 with Spring 2022 ONS outturn GDP and inflation data, March 2022 ONS Households data, and March 2022 OBR EFO.
D44: Updated table A4.1.5 to align approach to uprating over time with road accident values
A45: November 2021 v1.17 | C45: 2021-11-01 | D45: Updated table A3.3 with 2021 BEIS emissions factors
D46: Updated table A1.3.7 with 2021 BEIS fuel and electricity price data
D47: Updated Annual Parameters and A5.3.1 with March 2021 OBR Long-Term Economic Determinants data, June 2021 ONS Population data, and October 2021 OBR EFO data
A48: September 2021 v1.16 | C48: 2021-09-01 | D48: Updated table A3.4 with 2021 BEIS carbon values.
A49: Forthcoming Change: carbon values | D49: Updated tables A5.4.2, A5.4.2.1 and A5.4.2.2 with 2021 BEIS carbon values.
D50: Corrected error in tables A5.4.2.1 (2015 only) and A5.4.2.2 (years 2025, 2035-2050) which adjusted for inflation incorrectly.
D51: Corrected error present in A5.4.2 tables for all years except 2015, causing minor impact on air quality MECs.
D52: Corrected error in A5.4.2 tables. Accident MECs for car and LGV were incorrectly picking up accident MECs for LGV and Rigids respectively.
A53: July 2021 v1.15 | C53: 2021-07-01 | D53: Updated 'Annual parameters' tab to include revised economic and demographic projections in line with OBR EFO March 2021 and latest ONS data
D54: Added user notice in Annual Parameters highlighting new changes to appraisal accounting.
D55: Updated table A5.3.1 in line with OBR EFO March 2021 and latest outturn ONS data.
D56: Fixed tables A1.3.11, A1.3.12 and A1.3.13 to correctly pick up changes in efficiency and fleet mix from 2035-50
D57: Updated 'Casualty data' and 'Accident data' to include latest data from Reported Road Casualties Great Britain 2019
D58: Updated NOx and PM damage costs in table A3.2 to reflect latest Defra air quality appraisal guidance (March 2021).
D59: Added Green Book health discount rate to table A1.1.1
D60: Fixed cell K156 in sheet A5.4.2.1. Incorrect formula was used to interpolate MEC value.
D61: Updated COBALT2 sheet to reflect changes to appraisal accounting guidance described in Unit A4.1
A62: July 2020 v1.14 | C62: 2020-07-01 | D62: Updated 'Annual parameters' tab to include revised economic and demographic projections in line with OBR EFO March 2020 & FSR July 2020 (central scenario).
A63: Sensitivity test version | D63: Updated table A1.3.8 to reflect latest electric vehicle energy consumption parameter values.
D64: Updated table A1.3.9 to reflect latest fleet mix by fuel type forecasts.
D65: Updated table A1.3.10 to reflect latest vehicle fuel efficiency improvement forecasts.
D66: Updated table A5.3.1 in line with OBR EFO March 2020, FSR July 2020 (central scenario) and outturn ONS data.
D67: Updated MECs tables A5.4.2, A5.4.2.1 and A5.4.2.2 to reflect revised annual parameters and fleet assumptions. Corrections to Mon-Fri, Sat-Sun and all-week average calculations.
A68: July 2020 v1.13.1 | C68: 2020-07-01 | D68: Corrected Annual Parameters source notes to refer to source material referenced in November 2019 forthcoming change.
A69: Correction to May 2020 v1.13 | D69: Corrected table A5.4.1 to give correct weighted average of congestion bands.
D70: Corrected table A5.4.4 to give correct values for Scotland.
D71: Corrected table A1.3.9 to give correct fleet splits by fuel type.
D72: Corrected table A1.3.7 to give correct fuel and electricity price forecasts.
D73: Corrected table A4.1.1 to calculate the average value of accident prevention per casualty severity.
D74: Corrected tables A5.4.2, A5.4.2.1 and A5.4.2.2 to contain MECs for band 5 London motorways for years where they were missing before.
D75: Added outturn data for number of households, GDP deflator and real GDP based on ONS publications from May 2020.
A76: May 2020 v1.13 | C76: 2020-05-01 | D76: Updated A1.3.15 sheet formulae to allow calculations out to 2050 to be made (previously stopped at 2035)
D77: Updated 'Annual parameters' tab to include revised economic and demographic projections in line with OBR EFO March 2019 and outturn ONS data
D78: Updated Marginal External Costs to adjust forecast period to 2015-2050.
D79: Added low and high scenario MECs
D80: Updated the 'Cost and rev series' tabs in line with OBR EFO March 2019 and outturn ONS data
D81: Updated 'Casualty data' and 'Accident data' to include latest data from Reported Road Casualties Great Britain 2018
A82: May 2019 v1.12 | C82: 2019-05-01 | D82: Update to the car vehicle kilometre projections following internal modelling
D83: Updated the fuel consumption parameter values following the publication of the update by Ricardo AEA. Emissions curves for Nox and PM are now included in the source sheet.
D84: Updated with BEIS's updates of traded & non-traded carbon values and emissions factors (from road fuel and electricity)
D85: Inclusion of new journeys per season ticket assumptions following the publication release by the Department.
D86: Updated with Defra's published damage costs and impact pathways for Nox, PM and NO2. Fixed user parameters lookups in certain sheets
D87: Updated 'Annual parameters' tab to include revised economic and demographic projections in line with OBR EFO March 2019 and outturn ONS data
D88: Updated the 'Cost and rev series' tabs in line with OBR EFO March 2019 and outturn ONS data
D89: Updated inputs in the 'VoC fuel' tab to reflect BEIS's update of the IAG tables covering forecast road fuel prices
A90: Nov 2018 v1.11 | C90: 2018-11-01 | D90: Updated 'Annual parameters' tab to include revised economic and demographic projections in line with OBR EFO October 2018 and outturn ONS data
D91: Updated the 'Cost and rev series' tabs in line with OBR EFO October 2018 and outturn ONS data
D92: Corrected formulae for 'Car costs (CPI)', 'Car costs (RPI)' and 'Car and bus journey time' tabs
D93: Updated 'VoC' fuel tab to adjust for revisions to the GDP deflator index
D94: Updated accident and casualty data based on RRCGB 2018 publication
A95: June 2018 v1.10.1 | C95: 2018-06-01 | D95: Corrected table M4.2.1 to add fuel cost adjustment factor series, which was omitted due to a processing error.
A96: Correction to May 2018 release | D96: Corrected explanatory text in notes for table A1.3.5.
A97: May 2018 v1.10 | C97: 2018-05-01 | D97: Adoption of data from the March 2018 EFO and accompanying updated long-term economic determinants. Updates to annual parameters and cost & rev series tabs.
D98: Updated tables A1.3.8, A1.3.9 and A1.3.10 with updated fleet forecasts from the Environmental Analysis team, reflecting the assumptions used in the latest BEIS EEP publication.
D99: Added table M4.2.4 containing rail demand forecasting parameters.
D100: Added CPI based car costs to table M4.2.2, along with forecast CPI growth in table A5.3.1.
D101: Updated car cost, car time and bus time series’ based on updated projections from the Department’s National Transport Model.
D102: Added of tables A5.4.6 and A5.4.7 containing recommended diversion factors for bus and cycling interventions.
D103: Updated MECs to reflect new economic parameters, fuel costs, fleet mix data and minor processing errors related to indirect tax.
A104: December 2017 v1.9.1 | C104: 2017-12-01 | D104: Updated 'Annual parameters' tab to include revised economic and demographic projections in line with OBR data from the November 2017 EFO
D105: Updated 'Annual parameters' tab to include revised economic and demographic outturns in line with the latest available ONS data.
D106: Updated inputs in the 'VoC fuel', 'Electricity', 'CO2' and 'GHG' tabs to reflect BEIS's Forthcoming January 2018 update of the IAG tables
D107: Updated accident and casualty data based on RRCGB 2016 publication
D108: Added rigid, artic and PSV MECs in hidden tabs, as well as updates to car MECs to reflect the latest CO2 and fuel price projections from BEIS
A109: October 2017 v1.8.2 | C109: 2017-10-01 | D109: Added forecast fuel cost parameters for electric LGVs to tables A1.3.11, A1.3.12 and A1.3.13, in line with the update to electric LGV fuel consumption & efficiency parameters in v1.8.1
A110: Correction to August 2017 release
A111: August 2017 v1.8.1 | C111: 2017-08-01 | D111: Updated electric car and LGV consumption parameters in table A1.3.8
A112: Correction to July 2017 release | D112: Updated electric car and LGV forecast efficiency improvements in table A1.3.10
D113: Added non-fuel VOCs for electric LGVs in table A1.3.14
A114: July 2017 v1.8 | C114: 2017-07-01 | D114: Updated accident and casualty data based on RRCGB 2015 publication
D115: Updated table A4.1.4 to include average cost across all accidents
D116: Updated 'Annual parameters' tab to include revised economic and demographic projections in line with OBR data from the January 2017 FSR and March 2017 EFO.
D117: Updated 'Annual parameters' tab to include revised economic and demographic outturns in line with the latest available ONS data.
D118: Updated table A1.3.8 to reflect calibration of base year fuel consumption curves to DUKES fuel sales data in the NTM.
D119: Updated table A1.3.10 to reflect revised fuel efficiency assumed improvements, based on ICCT analysis of the gap between test cycle and 'real world' emissions
D120: Updated 'VoC fuel', 'Electricity', 'CO2' and 'GHG' tabs to reflect BEIS's March 2017 update of the IAG tables
D121: Updated the 'car speeds' and 'car and bus journey time' tabs to be consistent with RTF Scenario 1 (including the RIS 1 package of schemes)
D122: Updated the 'car speeds' and 'car and bus journey time' tabs to include a new PDFH flow group 'PTE internal' based on the 'GB x London - Urban' NTM outputs
D123: Introduced new rail tabs A5.3.2 and A5.4.5, reflecting recommended default journey purpose / ticket type splits and car diversion factors by flow category
D124: Updated the 'Cost and rev series' tabs to incorporate revised OBR projections (from the March 2017 EFO) and ONS outturn data
D125: Updated the MEC tables (A5.4.2 and A5.4.4) to correct a minor error identified in the uprating over time, and reflect the latest fuel price projections from BEIS
D126: Updated traffic weights underpinning MECs in A5.4.2 to be consistent with NTM traffic forecasts, which has a minor effect on all values
D127: Updated fleet fuel mix splits in tab A1.3.9, to reflect the latest EEP policy reference scenario
D128: Corrected price and value updating formula in tabs M2.1 and M2.2
A129: March 2017 v1.7 | C129: 2017-03-01 | D129: Updated table A1.3.1 to reflect new values of time. This also affects tables A1.3.5 and A1.3.6.
D130: Updated table A1.3.3 with new refreshed occupancy data for 2010, and a new assumption of 0% change per annum in occupancy from 2010 onwards.
D131: Updated table A1.3.4 with new journey purpose splits.
D132: Updated tables M2.1 and M2.2 to reflect new values of time.
A133: Spring 2016 v1.6 | C133: 2016-07-01 | D133: Updated with new values of time
A134: Forthcoming Change: Values of Time
A135: Spring 2016 v1.5 | C135: 2016-07-01 | D135: Updates to GDP and GDP deflator series in Annual Parameters with latest OBR forecasts (2016 Budget)
D136: Updated forecasts of GDP, GDP deflator and RPI (OBR and ONS, 2016)
D137: Updated OGV 1 and OGV 2 Fuel Consumption Parameters.
D138: Updated Car MECs to reflect indirect tax correction and new values of time
D139: Updated Average Earnings Data with latest OBR Outturn and Forecast data
A140: Autumn 2015 v1.4 | C140: 2016-01-01 | D140: Corrected hard-coding of price base year in tables A1.3.7 and A3.4, corrected references in 'VOC fuel', 'Electricity' and 'A1.3.7' tabs.
C141: 2015-12-01 | D141: Extend user parameters price and value year series to 2040.
D142: Inclusion of Defra noise values on health-basis (noise and A3.1)
D143: Revise calculation of car cost series to be in real terms against RPI, consistent with elasticities used in forecasting (car speeds, M4.2.2 and Adjustment Factors
D144: Updates to cost and rev series (table A5.3.1) with latest OBR forecasts for the GDP deflator, RPI and average earnings. (2015 summer budget and FSR)
D145: Updates to GDP and GDP deflator series in Annual Parameters with latest OBR forecasts (2015 summer Budget and FSR)
D146: Updated population series with 2014 ONS MY estimate and principal ONS projections, consistent with latest OBR GDP forecasts.
D147: Updated household series with 2014 (and back series) from LFS
D148: Updated accident and casualty data (affecting A4.1 tables) with latest data from Road Safety team from RRCGB 2014
D149: Updated forecasts of GDP, GDP deflator and RPI (OBR and ONS, 2015)
D150: Updated population and household projections (ONS and DCLG, 2015)
D151: Updated road fuel and electricity price projections, GHG value projections and emissions factor projections (DECC, 2015)
A152: November 2014 v1.3 | C152: 2014-12-01 | D152: Removal of calculation of nominal fare increases from table A5.3.1
C153: 2014-11-10 | D153: Inclusion of operating cost and revenue forecasting series (table A5.3.1)
D154: Inclusion of car and bus journey time series for rail forecating (table M4.2.3)
D155: Update to PDFH flow categories in table M4.2.2 to match PDFHv5.1
D156: Updated casualty and accident data from Reported Road Casualties Great Britain 2013
D157: Updates to fuel consumption curves (A1.3.8) and forecast fuel efficiency improvements (A1.3.10), including addition of rail diesel biofuel energy penalty
D158: Updates to GDP and deflator forecasts (Annual Parameters table) with the latest OBR forecasts and ONS revisions to GDP
D159: Inclusion of Mid-Year Population estimates for 2013 from ONS (Annual Parameters table)
D160: Value year control for single year tables added to the User Parameters table
D161: Updates to the accident rates and beta factors for 'link only' and 'link and junction combined' in COBALT 3, 4 & 5
D162: Updates to fuel prices from the 2014 version of DECC / Supp. Green Book guidance on energy and GHGs
D163: Updates to GHG emission factors and values from the 2014 version of DECC / Supp. Green Book guidance on energy and GHGs
D164: Revisions to the historic GDP series published in the Q2 2014 Blue Book
A165: May 2014 v1.2 | C165: 2014-05-01 | D165: Updated emission factors (A3.3), carbon values (A3.4) and electricity prices (A1.3.7) from DECC IAG 2013 guidance
D166: Updated GDP deflator series and forecasts (HMT, Dec 2013, and OBR Mar 2014, July 2013)
D167: Updated GDP series and forecasts (Final estimate for Q4 2013 ABMI, Mar 2014 and July 2013 OBR forecasts)
D168: Updated population series and projections (ONS, 2013)
D169: Updated historic household series (ONS, 2013)
D170: Updated price year to include up to 2014
D171: Updated fuel price forecasts, using IAG 2013 fossil fuel prices and Budget 2014 duty announcements
D172: Beta factors for junction accidents on COBALT7 corrected
D173: Correction to treatment of non-fuel costs in Table M4.2.2, re-structured calculations with use of cagr interpolation and added additional flow categories
D174: Bus Social Impact tables added (A1.3.16-18)
A175: January 2014 v1.1 | C175: 2014-01-01 | D175: Correction to resets on user parameters tab; and bus quality factors in table M3.2.1
A176: Autumn 2013 v1.0 | C176: 2013-10-01 | D176: This is the first release, as part of the restructured TAG guidance.

Sheet Development versions (hidden)
A3: TAG Data Book
A4: Development versions
A6: Links:
A7: Contents
A9: This version
A10: Version | C10: Date | D10: Changes from previous version
A11: May 2021 v1.15 Forthcoming Change version | C11: 2021-04-01 | D11: Updated 'Annual parameters' tab to include revised economic and demographic projections in line with OBR EFO Nov 2020 and latest ONS data
D12: Updated table A5.3.1 in line with OBR EFO Nov 2020 and latest outturn ONS data.
D13: Fixed tables A1.3.11, A1.3.12 and A1.3.13 to correctly pick up changes in efficiency and fleet mix from 2035-50
D14: Updated 'Casualty data' and 'Accident data' to include latest data from Reported Road Casualties Great Britain 2019
D15: Fixed cell K156 in sheet A5.4.2.1. Incorrect formula was used to interpolate MEC value.
D16: Added Green Book health discount rate to table A1.1.1
A17: Previous versions (in reverse date order)
A18: July 2020 v1.14 - sensitivity test data book | C18: 2020-07-01 | D18: Updated 'Annual parameters' tab to include revised economic and demographic projections in line with OBR EFO March 2020 & FSR July 2020 (central scenario).
D19: Updated table A1.3.8 to reflect latest electric vehicle energy consumption parameter values.
D20: Updated table A1.3.9 to reflect latest fleet mix by fuel type forecasts.
D21: Updated table A1.3.10 to reflect latest vehicle fuel efficiency improvement forecasts.
D22: Updated table A5.3.1 in line with OBR EFO March 2020, FSR July 2020 (central scenario) and outturn ONS data.
D23: Updated MECs tables A5.4.2, A5.4.2.1 and A5.4.2.2 to reflect revised annual parameters and fleet assumptions. Corrections to Mon-Fri, Sat-Sun and all-week average calculations.
A24: June 2020 v.13.1 | C24: 2020-06-01 | D24: Corrected Annual Parameters source notes to refer to source material referenced in November 2019 forthcoming change.
A25: (correction to May 2020 release) | D25: Corrected table A5.4.1 to give correct weighted average of congestion bands.
D26: Corrected table A5.4.4 to give correct values for Scotland.
D27: Corrected table A1.3.9 to give correct fleet splits by fuel type.
D28: Corrected table A1.3.7 to give correct fuel and electricity price forecasts.
D29: Corrected table A4.1.1 to calculate the average value of accident prevention per casualty severity.
D30: Corrected tables A5.4.2, A5.4.2.1 and A5.4.2.2 to contain MECs for band 5 London motorways for years where they were missing before.
D31: Added outturn data for number of households, GDP deflator and real GDP based on ONS publications from May 2020.
A32: May 2020 v1.13 | C32: 2020-05-29 | D32: Updated A1.3.15 sheet formulae to allow calculations out to 2050 to be made (previously stopped at 2035)
D33: Updated 'Annual parameters' tab to include revised economic and demographic projections in line with OBR EFO March 2019 and outturn ONS data
D34: Updated Marginal External Costs to adjust forecast period to 2015-2050.
D35: Added low and high scenario MECs
D36: Updated the 'Cost and rev series' tabs in line with OBR EFO March 2019 and outturn ONS data
D37: Updated 'Casualty data' and 'Accident data' to include latest data from Reported Road Casualties Great Britain 2018
A38: May 2019 v1.12 | C38: 2019-05-01 | D38: Update to the car vehicle kilometre projections following internal modelling
D39: Updated the fuel consumption parameter values following the publication of the update by Ricardo AEA. Emissions curves for Nox and PM are now included in the source sheet.
D40: Updated with BEIS's updates of traded & non-traded carbon values and emissions factors (from road fuel and electricity)
D41: Inclusion of new journeys per season ticket assumptions following the publication release by the Department.
D42: Updated with Defra's published damage costs and impact pathways for Nox, PM and NO2. Fixed user parameters lookups in certain sheets
D43: Updated 'Annual parameters' tab to include revised economic and demographic projections in line with OBR EFO March 2019 and outturn ONS data
D44: Updated the 'Cost and rev series' tabs in line with OBR EFO March 2019 and outturn ONS data
D45: Updated inputs in the 'VoC fuel' tab to reflect BEIS's update of the IAG tables covering forecast road fuel prices
A46: November 2018 release v1.11 | C46: 2018-11-01 | D46: Updated 'Annual parameters' tab to include revised economic and demographic projections in line with OBR EFO October 2018 and outturn ONS data
D47: Updated the 'Cost and rev series' tabs in line with OBR EFO October 2018 and outturn ONS data
D48: Corrected formulae for 'Car costs (CPI)', 'Car costs (RPI)' and 'Car and bus journey time' tabs
D49: Updated 'VoC' fuel tab to adjust for revisions to the GDP deflator index
D50: Updated accident and casualty data based on RRCGB 2018 publication
A51: June 2018 v1.10.1 | C51: 2018-06-01 | D51: Corrected table M4.2.1 to add fuel cost adjustment factor series, which was omitted due to a processing error.
A52: (correction to May 2018 release) | D52: Corrected explanatory text in notes for table A1.3.5.
A53: May 2018 v1.10 | C53: 2018-05-01 | D53: Adoption of data from the March 2018 EFO and accompanying updated long-term economic determinants. Updates to annual parameters and cost & rev series tabs.
D54: Updated tables A1.3.8, A1.3.9 and A1.3.10 with updated fleet forecasts from the Environmental Analysis team, reflecting the assumptions used in the latest EEP publication.
D55: Added table M4.2.4 containing rail demand forecasting parameters
D56: Added CPI based car costs to table M4.2.2, along with forecast CPI growth in table A5.3.1
D57: Updated car cost, car time and bus time series’ based on updated projections from the Department’s National Transport Model.
D58: Added of tables A5.4.6 and A5.4.7 containing recommended diversion factors for bus and cycling interventions.
D59: Updated MECs to reflect new economic parameters, fuel costs, fleet mix data and minor processing errors related to indirect tax.
A60: December 2017 release v1.9.1 | C60: 2017-12-01 | D60: Updated 'Annual parameters' tab to include revised economic and demographic projections in line with OBR data from the November 2017 EFO
D61: Updated 'Annual parameters' tab to include revised economic and demographic outturns in line with the latest available ONS data.
D62: Updated inputs in the 'VoC fuel', 'Electricity', 'CO2' and 'GHG' tabs to reflect BEIS's Forthcoming January 2018 update of the IAG tables
D63: Updated accident and casualty data based on RRCGB 2016 publication
D64: Added rigid, artic and PSV MECs in hidden tabs, as well as updates to car MECs to reflect the latest CO2 and fuel price projections from BEIS
A65: October 2017 release 1.8.2 | C65: 2017-10-01 | D65: Added forecast fuel cost parameters for electric LGVs to tables A1.3.11, A1.3.12 and A1.3.13, in line with the update to electric LGV fuel consumption & efficiency parameters in v1.8.1
A66: (correction to August 2017 release)
A67: August 2017 release v1.8.1 | C67: 2017-08-01 | D67: Updated electric car and LGV consumption parameters in table A1.3.8
A68: (correction to July 2017 release) | D68: Updated electric car and LGV forecast efficiency improvements in table A1.3.10
D69: Added non-fuel VOCs for electric LGVs in table A1.3.14
A70: July 2017 release v1.8 | C70: 2017-07-01 | D70: Updated accident and casualty data based on RRCGB 2015 publication
D71: Updated table A4.1.4 to include average cost across all accidents
D72: Updated 'Annual parameters source' tab to include revised economic and demographic projections in line with OBR data from the January 2017 FSR and March 2017 EFO.
D73: Updated 'Annual parameters source' tab to include revised economic and demographic outturns in line with the latest available ONS data.
D74: Updated 'Fuel consumption' tab to reflect calibration of base year fuel consumption curves to DUKES fuel sales data in the NTM.
D75: Updated 'VoC efficiency' tab to reflect revised fuel efficiency assumed improvements, based on ICCT analysis of the gap between test cycle and 'real world' emissions
D76: Updated 'VoC fuel', 'Electricity', 'CO2' and 'GHG' tabs to reflect BEIS's March 2017 update of the IAG tables
D77: Updated the 'car speeds' and 'car and bus journey time' tabs to be consistent with RTF Scenario 1 (including the RIS 1 package of schemes)
D78: Updated the 'car speeds' and 'car and bus journey time' tabs to include a new PDFH flow group 'PTE internal' based on the 'GB x London - Urban' NTM outputs
D79: Introduced new rail tabs A5.3.2 and A5.4.5, reflecting recommended default journey purpose / ticket type splits and car diversion factors by flow category
D80: Updated the 'Cost and rev series' tabs to incorporate revised OBR projections (from the March 2017 EFO) and ONS outturn data
D81: Updated the MEC tables (A5.4.2 and A5.4.4) to correct a minor error identified in the uprating over time, and reflect the latest fuel price projections from BEIS
D82: Updated traffic weights underpinning MECs in A5.4.2 to be consistent with NTM traffic forecasts, which has a minor effect on all values
D83: Updated fleet fuel mix splits in tab A1.3.9, to reflect the latest EEP policy reference scenario
D84: Corrected price and value updating formula in tabs M2.1 and M2.2
A85: March 2017 release v1.7 | C85: 2017-03-01 | D85: Updated table A1.3.1 to reflect updated values of time. This also affects tables A1.3.5 and A1.3.6.
D86: Updated table A1.3.3 with new refreshed occupancy data for 2010, and a new assumption of 0% change per annum in occupancy from 2010 onwards.
D87: Updated table A1.3.4 with new journey purpose splits.
D88: Updated tables M2.1 and M2.2 to reflect new values of time.
A89: Spring 2016 release | C89: 2016-07-01 | D89: Updates to GDP and GDP deflator series in Annual Parameters with latest OBR forecasts (2016 Budget)
C90: 2016-07-01 | D90: Updated forecasts of GDP, GDP deflator and RPI (OBR and ONS, 2016)
C91: 2016-07-01 | D91: Updated OGV 1 and OGV 2 Fuel Consumption Parameters.
C92: 2016-07-01 | D92: Updated Car MECs to reflect indirect tax correction and new values of time
C93: 2016-07-01 | D93: Updated Average Earnings Data with latest OBR Outturn and Forecast data
A94: v1.4 | C94: 2015-09-21 | D94: Extend user parameters price and value year series to 2040.
C95: 2015-09-21 | D95: Inclusion of Defra noise values on health-basis (noise and A3.1)
C96: 2015-09-21 | D96: Revise calculation of car cost series to be in real terms against RPI, consistent with elasticities used in forecasting (car speeds, M4.2.2 and Adjustment Factors
C97: 2015-09-21 | D97: Updates to cost and rev series (table A5.3.1) with latest OBR forecasts for the GDP deflator, RPI and average earnings. (2015 summer budget and FSR)
C98: 2015-09-21 | D98: Updates to GDP and GDP deflator series in Annual Parameters with latest OBR forecasts (2015 summer Budget and FSR)
C99: 2015-09-21 | D99: Updated population series with 2014 ONS MY estimate and principal ONS projections, consistent with latest OBR GDP forecasts.
C100: 2015-09-21 | D100: Updated household series with 2014 (and back series) from LFS
C101: 2015-09-22 | D101: Updated accident and casualty data (affecting A4.1 tables) with latest data from Road Safety team from RRCGB 2014
C102: 2015-12-16 | D102: Updated forecasts of GDP, GDP deflator and RPI (OBR and ONS, 2015)
C103: 2015-12-17 | D103: Updated population and household projections (ONS and DCLG, 2015)
C104: 2015-12-18 | D104: Updated road fuel and electricity price projections, GHG value projections and emissions factor projections (DECC, 2015)
C105: 2016-01-08 | D105: Corrected hard-coding of price base year in tables A1.3.7 and A3.4, corrected references in 'VOC fuel', 'Electricity' and 'A1.3.7' tabs.
A107: v1.3 | C107: 2014-11-01 | D107: Car and bus JT for rail forecasting
D108: Inflation factors for rail revenue and op cost forecasting
A110: v1.2 | C110: 2014-05-01 | D110: Updated emission factors (A3.3) and carbon values (A3.4) from DECC IAG 2013 guidance on valuing energy and GHG emissions
D111: Updated GDP deflator series and forecasts, including basing index on specified price year (HMT, Dec 2013, and OBR Mar 2014, July 2013)
D112: Updated GDP series and forecasts (Final estimate for Q4 2103 ABMI, Mar 2014 OBR forecasts for 2014-2018)
D113: Updated population series and projections (ONS, 2013)
D114: Updated historic household series (ONS, 2013)
D115: Updated price year to include up to 2014
D116: Notes updated and initial forecast year control added to COBALT2 tab
D117: Damage only accidents per pia added to COBALT1 tab
D118: Beta factors for junction accidents on COBALT7 corrected
D119: Correction to treatment of non-fuel costs in Table M4.2.2, re-structured calculations with use of cagr interpolation and added additional flow categories
D120: Bus Social Impact tables added (A1.3.16-18)
D121: DECC IAG emission factors
D122: DECC IAG 2013 electricity prices
D123: Fuel price forecasts from v2.8 of DfT fuel price model, using IAG 2013 fossil fuel prices and Budget 2014 duty announcements
A125: v1.1 | C125: 2014-01-01 | D125: Reset macro re-added to user parameters; correction to table M3.2.1 - bus quality factors
A126: v0.11 | C126: 2013-09-27 | D126: MECC values revised following QA - This was the October 2013 release version
A127: v0.10 | C127: 2013-08-22 | D127: Includes updated values of time for work and non-work purposes, segmented values of time in M2.1 and M2.2 and adjusted MECs in A5.4.2 and A5.4.4
A130: v0.9 | C130: 2013-07-22 | D130: Changes made to reflect "in draft" changes in TAG 2013 - includes DECC IAG 2012 carbon values and fuel prices (including gas oil and separate electricity for road and rail)
D131: Updated and automated TEMPRO adjustment factors (M4.2.1) and introduced car cost series for rail forecasting (M4.2.2)
D132: Updated GDP and GDP deflator historic series (July ONS/HMT releases) and forecasts (based on Budget 2013 and July 2013 OBR Fiscal Sustainability Report)

Sheet TAG1
A3: TAG Data Book
A4: TAG1 Look-up
A6: Links:
A7: Contents
A10: TAG1 | I10: Data Book
A11: Unit | B11: Table No. | C11: Table Title | I11: Worksheet
A12: 3.3.2 | B12: 1 | C12: Annoyance response relationships for road and rail traffic noise | I12: A 3.1
A13: 3.3.2 | B13: 2 | C13: Monetary valuation of changes in noise level (per household) | I13: A 3.1
A14: 3.3.3 | B14: 4 | C14: Damage cost and marginal abatement cost values by pollutant | I14: A 3.2
A15: 3.3.5 | B15: 1 | C15: Carbon dioxide emissions per litre of fuel burnt / kWh used | I15: A 3.3
A16: 3.3.5 | B16: 2a | C16: Forecast traded & non-traded, £ per tonne of CO2e (2010-2050) | I16: A 3.4
A17: 3.3.5 | B17: 2b | C17: Forecast traded & non-traded, £ per tonne of CO2e (2050-2100) | I17: A 3.4
A18: 3.4.1 | B18: 1 | C18: Average value of prevention per casualty by severity and element of cost | I18: A 4.1.1
A19: 3.4.1 | B19: 2 | C19: Average value of prevention per road casualty by class of road user | I19: A 4.1.2
A20: 3.4.1 | B20: 3 | C20: Average value of prevention of road accidents by severity and element of cost | I20: A 4.1.3
A21: 3.4.1 | B21: 4a | C21: Average value of prevention per road accident by severity and class of road: all hours | I21: A 4.1.4
A22: 3.4.1 | B22: 4b | C22: Average value of prevention per road accident by severity and class of road: daylight hours | I22: Deleted
A23: 3.4.1 | B23: 4c | C23: Average value of prevention per road accident by severity and class of road: darkness hours | I23: Deleted
A24: 3.4.1 | B24: 5 | C24: Rail injury classification, weights and values | I24: A 4.1.5
A25: 3.5.4 | B25: 1 | C25: Green book discount rates | I25: A 1.1.1
A26: 3.5.6 | B26: 1 | C26: Values of Working (Employers' Business) Time by mode per person | I26: A 1.3.1
A27: 3.5.6 | B27: 2 | C27: Values of Non-Working Time by Trip Purpose | I27: A 1.3.1
A28: 3.5.6 | B28: 1 & 2 | C28: (New) Forecast values of time per person (working and non-working) | I28: A 1.3.2
A29: 3.5.6 | B29: 3a | C29: Forecast growth in real GDP, population and households | I29: Annual Parameters
A30: 3.5.6 | B30: 3b | C30: Forecast growth in working and non-working values of time | I30: Annual Parameters
A31: 3.5.6 | B31: 4 | C31: Car occupancies (2000) | I31: A 1.3.3
A32: 3.5.6 | B32: 5 | C32: Vehicle occupancies (2000) | I32: A 1.3.3
A33: 3.5.6 | B33: 6 | C33: Annual percentage change in car passenger occupancy to 2036 | I33: A 1.3.3
A34: 3.5.6 | B34: 4 & 5 & 6 | C34: (New) Vehicle occupancies based on vehicle kilometres travelled | I34: A 1.3.3.2
A35: 3.5.6 | B35: 7 | C35: Proportion of travel in work and non-work time | I35: A 1.3.4
A36: 3.5.6 | B36: 8 | C36: Proportion of trips made in work and non-work time | I36: A 1.3.4
A37: 3.5.6 | B37: 9 | C37: Market price values of time per vehicle based on distance travelled | I37: A 1.3.5
A38: 3.5.6 | B38: 9 | C38: (New) Forecast market price values of time per vehicle based on distance travelled | I38: A 1.3.6
A39: 3.5.6 | B39: 10 | C39: Fuel / energy consumption parameter values | I39: A 1.3.8
A40: 3.5.6 | B40: 10 | C40: (New) Forecast fuel / energy consumption parameter values | I40: A 1.3.11
A41: 3.5.6 | B41: 10a | C41: Average vehicle fuel / energy cost formulae parameter values (Work) | I41: A 1.3.12
A42: 3.5.6 | B42: 10b | C42: Average vehicle fuel / energy cost formulae parameter values (Non-work) | I42: A 1.3.13
A43: 3.5.6 | B43: 11a | C43: Fuel and electricity prices and components | I43: A 1.3.7
A44: 3.5.6 | B44: 11b | C44: Fuel and electricity prices and components | I44: A 1.3.7
A45: 3.5.6 | B45: 12 | C45: Forecast proportion of cars, LGV and other vehicle kilometres using petrol / diesel / electricity | I45: A 1.3.9
A46: 3.5.6 | B46: 13 | C46: Forecast assumed vehicle fuel efficiency improvements to 2035 | I46: A 1.3.10
A47: 3.5.6 | B47: 14 | C47: Average Car / LGV fuel cost formulae parameter values (Work) | I47: A 1.3.12
A48: 3.5.6 | B48: 14 | C48: Average Car / LGV fuel cost formulae parameter values (Non-work) | I48: A 1.3.13
A49: 3.5.6 | B49: 15 | C49: Non-fuel resource vehicle operating costs | I49: A 1.3.14
A50: 3.5.6 | B50: 16 | C50: Forecast non-fuel resource car operating costs to 2035 | I50: A 1.3.15
A51: 3.6.1 | B51: 2 | C51: Option and non-use values | I51: A 4.1.8
A52: 3.13.2 | B52: Spreadsheet 1 | C52: Proportion of Total Traffic by congestion band, region, area and road types | I52: A 5.4.1
A53: 3.13.2 | B53: Spreadsheet 2 | C53: Marginal External Costs by road type and congestion band | I53: A 5.4.2
A54: 3.13.2 | B54: Spreadsheet 3 | C54: Car traffic shares by time of day | I54: A 5.4.3
A55: 3.13.2 | B55: Spreadsheet 3 | C55: Marginal External Costs by region and time of day | I55: A 5.4.4
A56: 3.14.1 | B56: 4 | C56: Value of journey ambience benefit of cycle facilities | I56: A 4.1.6
A57: 3.14.1 | B57: 5 | C57: Values of aspects in pedestrian environment | I57: A 4.1.7
A58: 3.15.2 | B58: 1 | C58: Fuel price and income forecast adjustment factors | I58: M 4.2.1

Sheet Annual Parameters
A3: TAG Data Book
A4: Annual Parameters
A6: This version: | E6: Notes
A7: =Audit!A12 -> November 2024 v1.24 | E7: Sources
A8: =Audit!C12 -> 2024-11-01 | E8: 1. GDP Deflator | F8: 1990-2023 from ONS MNF2 series, published 15/02/2024
A9: Links: | F9: 2024-2029 from OBR EFO October 24 supplementary economy table 1.7, published 30/10/2024
A10: Contents | F10: 2030-2073 from OBR May 24 Long-term Economic Determinants published 16/05/2024
A11: TAG Unit 3.5.6 | F11: 2074 onwards: annual growth assumed to be equal to final OBR forecast year.
A12: TAG Unit A 1.3 | E12: 2. Real GDP | F12: 1990-2023 from ONS ABMI series, published 15/02/2024 (£m, chained volume measure with a 2019 base)
A13: Parameters: | F13: 2024-2029 from OBR EFO October 24 Table TA.1, published 30/10/2024
A14: Price year: | B14: ='User Parameters'!L13 -> 2010 | F14: 2030-2073 from OBR May 24 Long-term Economic Determinants published 16/05/2024
A15: Appraisal year | B15: 2024 | F15: 2074 onwards: based on trends in real GDP and public sector workforce growth from OBR May 24 Long-Term Economic Determinants and expected growth in working age population from ONS 2021-based interim national principal population projection
A16: GDP Base Year | B16: 2019 | E16: 3. Population | F16: 1990-2023 from mid-year population estimates - UKPOP series (all ages, '000s), published 08/10/2024
A17: Sheet Navigation: | F17: 2024-2029 based on population implied by GDP and GDP per capita growth from OBR October 2024 EFO Table TA.1, published 30/10/2024. For this period, according to OBR, this should be in line with the ONS 2021-based interim national principal population projection.
F18: 2030-2073 from OBR May 24 Long-term Economic Determinants (ONS 2021-based interim national principal population projection) published 16/05/2024.
F19: 2074 onwards: from ONS 2021-based interim national principal population projection
E20: 4. Households | F20: 1996-2023 from Labour Force Survey (UK households, '000s) published 08/05/2024
F21: 2024-2039 uses ONS projections of UK households last updated 29/06/2020
F22: Post-2039, household growth is assumed to equal population growth
F23: For 2024 and beyond, the series has been constructed to be consistent with the population forecast, by constraining the average household size in each forecast year to that implied by the ONS 2021-based interim national principal population projection
F24: This is necessary because changes in population must entail household growth, all else equal, but ONS have not produced a household forecast to accompany the aforementioned projection.
E25: If using historic values of Real GDP, GDP per person or GDP per household, users can edit the base year of Real GDP using the input cell B16 (otherwise set to latest ONS base year).
E26: VoT elasticities are set in Default Pars. The VoT index and growth p.a have been interpolated from 2019-2022 to account for short-term fluctuations due to Covid-19.
E28: Important notice for users (May 2021)
E29: - Following changes to appraisal accounting detailed in a Forthcoming Change to TAG Unit A1.3 (May 2021), the VoT indices in columns V-Z should now be used for modelling purposes only. A separate set of VoT indices for appraisal purposes is provided alongside cols X-AA).
E30: - For appraisal purposes, all non-heath values formerly assumed to grow in line with annual OBR GDP forecasts should now be uprated by 1.5% each year from the appraisal year onwards, in line with the long-term OBR growth rate.
E31: - As a consequence, users should first enter the correct appraisal year in the input cell B15 before using the appraisal VoT indices in columns X-AA (as the two are now linked).
E32: - Please also note that all VoT growth indices (cols V, W, Z and AA) have been interpolated between 2019-2022 to mitigate the impact of short-term fluctuations due to Covid-19 on values used for modelling/appraisal - this is particularly relevant for appraisals starting in this period.
E34: These tables feed Annual Parameters, and hence: 1.3.1, 1.3.2, 1.3.6, 1.3.7, 1.3.12, 1.3.13, 1.3.14, 1.3.15, 3.1, 3.2, 3.4, 4.1.1, 4.1.2, 4.1.4, 4.1.5, 4.1.6, 4.1.7, 4.1.8, 5.4.2, 5.4.4, COBALT1, COBALT2.
E35: Where a longer appraisal period is used for the purpose of sensitivity testing, relevant series' should be assumed to continue to grow at the same rate from the end of the period for which data is provided.
E36: TAG1: Unit 3.5.6 (Table 3)
A38: Annual Parameters
D39: GDP deflator1 (2010=100) | E39: Real GDP2 | H39: Population3 | K39: Households4 | N39: Average GDP per person | Q39: Average GDP per household | T39: Work & Non-Work VoT For modelling purposes only | X39: Work & Non-Work VoT For appraisal purposes only | AB39: Population Scenarios3
X40: Appraisal start year | Z40: =$B$15 -> 2024
E41: Historic Value | F41: Annual | G41: Index | H41: Historic | I41: Annual | J41: Index | K41: Historic | L41: Annual | M41: Index | N41: Historic Value | O41: Annual | P41: Index | Q41: Historic Value | R41: Annual | S41: Index | T41: Work | U41: Non-Work | V41: Work | W41: Non-work | X41: Work | Y41: Non-Work | Z41: Work | AA41: Non-work | AB41: High | AC41: Low
E42: Base Year = | F42: Growth | G42: 1990 = 100 | H42: Value | I42: Growth | J42: 1990 = 100 | K42: Value | L42: Growth | M42: 1996 = 100 | N42: Base Year = | O42: Growth | P42: 1990 = 100 | Q42: Base Year = | R42: Growth | S42: 1996 = 100 | T42: VoT Growth | U42: VoT Growth | V42: Index | W42: Index | X42: VoT Growth | Y42: VoT Growth | Z42: Index | AA42: Index | AB42: Growth | AC42: Growth
B43: Year | E43: =B16 -> 2019 | F43: (%pa) | I43: (%pa) | L43: (%pa) | N43: =B16 -> 2019 | O43: (%pa) | Q43: =B16 -> 2019 | R43: (%pa) | T43: (% pa) | U43: (% pa) | V43: 2002 = 100 | W43: 2002 = 100 | X43: (% pa) | Y43: (% pa) | Z43: 2002 = 100 | AA43: 2002 = 100 | AB43: (%pa) | AC43: (%pa)
B44: 1990 | D44: =IF('Annual Parameters Source'!D40="","-",'Annual Parameters Source'!D40/VLOOKUP($B$14,'Annual Parameters Source'!$B$40:$D$150,3,1)*100) -> 61.88839743 | E44: =IF('Annual Parameters Source'!E40="","-",VLOOKUP($B$16,'Annual Parameters Source'!$B$40:$AH$154,33,FALSE)/VLOOKUP($B$16,'Annual Parameters Source'!$B$40:$AH$154,4,FALSE)*'Annual Parameters Source'!E40) -> 1266248 | F44: =IF('Annual Parameters Source'!F40="","-",'Annual Parameters Source'!F40) -> - | G44: =IF('Annual Parameters Source'!G40="","-",'Annual Parameters Source'!G40) -> 100 | H44: =IF('Annual Parameters Source'!H40="","-",'Annual Parameters Source'!H40) -> 57237.5 | I44: =IF('Annual Parameters Source'!I40="","-",'Annual Parameters Source'!I40) -> - | J44: =IF('Annual Parameters Source'!L40="","-",'Annual Parameters Source'!L40) -> 100 | K44: =IF('Annual Parameters Source'!M40="","-",'Annual Parameters Source'!M40) -> - | L44: =IF('Annual Parameters Source'!N40="","-",'Annual Parameters Source'!N40) -> - | M44: =IF('Annual Parameters Source'!O40="","-",'Annual Parameters Source'!O40) -> - | N44: =IF('Annual Parameters Source'!P40="","-",'Annual Parameters Source'!P40) -> 22122.69928 | O44: =IF('Annual Parameters Source'!Q40="","-",'Annual Parameters Source'!Q40) -> - | P44: =IF('Annual Parameters Source'!R40="","-",'Annual Parameters Source'!R40) -> 100 | Q44: =IF('Annual Parameters Source'!S40="","-",'Annual Parameters Source'!S40) -> - | R44: =IF('Annual Parameters Source'!T40="","-",'Annual Parameters Source'!T40) -> - | S44: =IF('Annual Parameters Source'!U40="","-",'Annual Parameters Source'!U40) -> - | T44: =IF('Annual Parameters Source'!V40="","-",'Annual Parameters Source'!V40) -> - | U44: =IF('Annual Parameters Source'!W40="","-",'Annual Parameters Source'!W40) -> - | V44: =IF('Annual Parameters Source'!X40="","-",'Annual Parameters Source'!X40) -> - | W44: =IF('Annual Parameters Source'!Y40="","-",'Annual Parameters Source'!Y40) -> - | X44: =IF('Annual Parameters Source'!AD40="","-",'Annual Parameters Source'!AD40) -> - | Y44: =IF('Annual Parameters Source'!AE40="","-",'Annual Parameters Source'!AE40) -> - | Z44: =IF('Annual Parameters Source'!AF40="","-",'Annual Parameters Source'!AF40) -> - | AA44: =IF('Annual Parameters Source'!AG40="","-",'Annual Parameters Source'!AG40) -> - | AB44: =IF('Annual Parameters Source'!J40="","-",'Annual Parameters Source'!J40) -> - | AC44: =IF('Annual Parameters Source'!K40="","-",'Annual Parameters Source'!K40) -> -
B45: 1991 | D45: =IF('Annual Parameters Source'!D41="","-",'Annual Parameters Source'!D41/VLOOKUP($B$14,'Annual Parameters Source'!$B$40:$D$150,3,1)*100) -> 66.0472051 | E45: =IF('Annual Parameters Source'!E41="","-",VLOOKUP($B$16,'Annual Parameters Source'!$B$40:$AH$154,33,FALSE)/VLOOKUP($B$16,'Annual Parameters Source'!$B$40:$AH$154,4,FALSE)*'Annual Parameters Source'!E41) -> 1248461 | F45: =IF('Annual Parameters Source'!F41="","-",'Annual Parameters Source'!F41) -> -1.404701133 | G45: =IF('Annual Parameters Source'!G41="","-",'Annual Parameters Source'!G41) -> 98.59529887 | H45: =IF('Annual Parameters Source'!H41="","-",'Annual Parameters Source'!H41) -> 57438.7 | I45: =IF('Annual Parameters Source'!I41="","-",'Annual Parameters Source'!I41) -> 0.3515177986 | J45: =IF('Annual Parameters Source'!L41="","-",'Annual Parameters Source'!L41) -> 100.3515178 | K45: =IF('Annual Parameters Source'!M41="","-",'Annual Parameters Source'!M41) -> - | L45: =IF('Annual Parameters Source'!N41="","-",'Annual Parameters Source'!N41) -> - | M45: =IF('Annual Parameters Source'!O41="","-",'Annual Parameters Source'!O41) -> - | N45: =IF('Annual Parameters Source'!P41="","-",'Annual Parameters Source'!P41) -> 21735.53719 | O45: =IF('Annual Parameters Source'!Q41="","-",'Annual Parameters Source'!Q41) -> -1.750067134 | P45: =IF('Annual Parameters Source'!R41="","-",'Annual Parameters Source'!R41) -> 98.24993287 | Q45: =IF('Annual Parameters Source'!S41="","-",'Annual Parameters Source'!S41) -> - | R45: =IF('Annual Parameters Source'!T41="","-",'Annual Parameters Source'!T41) -> - | S45: =IF('Annual Parameters Source'!U41="","-",'Annual Parameters Source'!U41) -> - | T45: =IF('Annual Parameters Source'!V41="","-",'Annual Parameters Source'!V41) -> - | U45: =IF('Annual Parameters Source'!W41="","-",'Annual Parameters Source'!W41) -> - | V45: =IF('Annual Parameters Source'!X41="","-",'Annual Parameters Source'!X41) -> - | W45: =IF('Annual Parameters Source'!Y41="","-",'Annual Parameters Source'!Y41) -> - | X45: =IF('Annual Parameters Source'!AD41="","-",'Annual Parameters Source'!AD41) -> - | Y45: =IF('Annual Parameters Source'!AE41="","-",'Annual Parameters Source'!AE41) -> - | Z45: =IF('Annual Parameters Source'!AF41="","-",'Annual Parameters Source'!AF41) -> - | AA45: =IF('Annual Parameters Source'!AG41="","-",'Annual Parameters Source'!AG41) -> - | AB45: =IF('Annual Parameters Source'!J41="","-",'Annual Parameters Source'!J41) -> - | AC45: =IF('Annual Parameters Source'!K41="","-",'Annual Parameters Source'!K41) -> -
B46: 1992 | D46: =IF('Annual Parameters Source'!D42="","-",'Annual Parameters Source'!D42/VLOOKUP($B$14,'Annual Parameters Source'!$B$40:$D$150,3,1)*100) -> 68.21635694 | E46: =IF('Annual Parameters Source'!E42="","-",VLOOKUP($B$16,'Annual Parameters Source'!$B$40:$AH$154,33,FALSE)/VLOOKUP($B$16,'Annual Parameters Source'!$B$40:$AH$154,4,FALSE)*'Annual Parameters Source'!E42) -> 1251525 | F46: =IF('Annual Parameters Source'!F42="","-",'Annual Parameters Source'!F42) -> 0.2454221638 | G46: =IF('Annual Parameters Source'!G42="","-",'Annual Parameters Source'!G42) -> 98.83727358 | H46: =IF('Annual Parameters Source'!H42="","-",'Annual Parameters Source'!H42) -> 57584.5 | I46: =IF('Annual Parameters Source'!I42="","-",'Annual Parameters Source'!I42) -> 0.2538358285 | J46: =IF('Annual Parameters Source'!L42="","-",'Annual Parameters Source'!L42) -> 100.6062459 | K46: =IF('Annual Parameters Source'!M42="","-",'Annual Parameters Source'!M42) -> - | L46: =IF('Annual Parameters Source'!N42="","-",'Annual Parameters Source'!N42) -> - | M46: =IF('Annual Parameters Source'!O42="","-",'Annual Parameters Source'!O42) -> - | N46: =IF('Annual Parameters Source'!P42="","-",'Annual Parameters Source'!P42) -> 21733.71307 | O46: =IF('Annual Parameters Source'!Q42="","-",'Annual Parameters Source'!Q42) -> -0.008392361868 | P46: =IF('Annual Parameters Source'!R42="","-",'Annual Parameters Source'!R42) -> 98.24168738 | Q46: =IF('Annual Parameters Source'!S42="","-",'Annual Parameters Source'!S42) -> - | R46: =IF('Annual Parameters Source'!T42="","-",'Annual Parameters Source'!T42) -> - | S46: =IF('Annual Parameters Source'!U42="","-",'Annual Parameters Source'!U42) -> - | T46: =IF('Annual Parameters Source'!V42="","-",'Annual Parameters Source'!V42) -> - | U46: =IF('Annual Parameters Source'!W42="","-",'Annual Parameters Source'!W42) -> - | V46: =IF('Annual Parameters Source'!X42="","-",'Annual Parameters Source'!X42) -> - | W46: =IF('Annual Parameters Source'!Y42="","-",'Annual Parameters Source'!Y42) -> - | X46: =IF('Annual Parameters Source'!AD42="","-",'Annual Parameters Source'!AD42) -> - | Y46: =IF('Annual Parameters Source'!AE42="","-",'Annual Parameters Source'!AE42) -> - | Z46: =IF('Annual Parameters Source'!AF42="","-",'Annual Parameters Source'!AF42) -> - | AA46: =IF('Annual Parameters Source'!AG42="","-",'Annual Parameters Source'!AG42) -> - | AB46: =IF('Annual Parameters Source'!J42="","-",'Annual Parameters Source'!J42) -> - | AC46: =IF('Annual Parameters Source'!K42="","-",'Annual Parameters Source'!K42) -> -
B47: 1993 | D47: =IF('Annual Parameters Source'!D43="","-",'Annual Parameters Source'!D43/VLOOKUP($B$14,'Annual Parameters Source'!$B$40:$D$150,3,1)*100) -> 70.26377207 | E47: =IF('Annual Parameters Source'!E43="","-",VLOOKUP($B$16,'Annual Parameters Source'!$B$40:$AH$154,33,FALSE)/VLOOKUP($B$16,'Annual Parameters Source'!$B$40:$AH$154,4,FALSE)*'Annual Parameters Source'!E43) -> 1279802 | F47: =IF('Annual Parameters Source'!F43="","-",'Annual Parameters Source'!F43) -> 2.259403528 | G47: =IF('Annual Parameters Source'!G43="","-",'Annual Parameters Source'!G43) -> 101.0704064 | H47: =IF('Annual Parameters Source'!H43="","-",'Annual Parameters Source'!H43) -> 57713.9 | I47: =IF('Annual Parameters Source'!I43="","-",'Annual Parameters Source'!I43) -> 0.2247132475 | J47: =IF('Annual Parameters Source'!L43="","-",'Annual Parameters Source'!L43) -> 100.8323215 | K47: =IF('Annual Parameters Source'!M43="","-",'Annual Parameters Source'!M43) -> - | L47: =IF('Annual Parameters Source'!N43="","-",'Annual Parameters Source'!N43) -> - | M47: =IF('Annual Parameters Source'!O43="","-",'Annual Parameters Source'!O43) -> - | N47: =IF('Annual Parameters Source'!P43="","-",'Annual Parameters Source'!P43) -> 22174.93533 | O47: =IF('Annual Parameters Source'!Q43="","-",'Annual Parameters Source'!Q43) -> 2.030128313 | P47: =IF('Annual Parameters Source'!R43="","-",'Annual Parameters Source'!R43) -> 100.2361197 | Q47: =IF('Annual Parameters Source'!S43="","-",'Annual Parameters Source'!S43) -> - | R47: =IF('Annual Parameters Source'!T43="","-",'Annual Parameters Source'!T43) -> - | S47: =IF('Annual Parameters Source'!U43="","-",'Annual Parameters Source'!U43) -> - | T47: =IF('Annual Parameters Source'!V43="","-",'Annual Parameters Source'!V43) -> - | U47: =IF('Annual Parameters Source'!W43="","-",'Annual Parameters Source'!W43) -> - | V47: =IF('Annual Parameters Source'!X43="","-",'Annual Parameters Source'!X43) -> - | W47: =IF('Annual Parameters Source'!Y43="","-",'Annual Parameters Source'!Y43) -> - | X47: =IF('Annual Parameters Source'!AD43="","-",'Annual Parameters Source'!AD43) -> - | Y47: =IF('Annual Parameters Source'!AE43="","-",'Annual Parameters Source'!AE43) -> - | Z47: =IF('Annual Parameters Source'!AF43="","-",'Annual Parameters Source'!AF43) -> - | AA47: =IF('Annual Parameters Source'!AG43="","-",'Annual Parameters Source'!AG43) -> - | AB47: =IF('Annual Parameters Source'!J43="","-",'Annual Parameters Source'!J43) -> - | AC47: =IF('Annual Parameters Source'!K43="","-",'Annual Parameters Source'!K43) -> -
B48: 1994 | D48: =IF('Annual Parameters Source'!D44="","-",'Annual Parameters Source'!D44/VLOOKUP($B$14,'Annual Parameters Source'!$B$40:$D$150,3,1)*100) -> 71.5618363 | E48: =IF('Annual Parameters Source'!E44="","-",VLOOKUP($B$16,'Annual Parameters Source'!$B$40:$AH$154,33,FALSE)/VLOOKUP($B$16,'Annual Parameters Source'!$B$40:$AH$154,4,FALSE)*'Annual Parameters Source'!E44) -> 1323443 | F48: =IF('Annual Parameters Source'!F44="","-",'Annual Parameters Source'!F44) -> 3.409980606 | G48: =IF('Annual Parameters Source'!G44="","-",'Annual Parameters Source'!G44) -> 104.5168877 | H48: =IF('Annual Parameters Source'!H44="","-",'Annual Parameters Source'!H44) -> 57862.1 | I48: =IF('Annual Parameters Source'!I44="","-",'Annual Parameters Source'!I44) -> 0.2567838943 | J48: =IF('Annual Parameters Source'!L44="","-",'Annual Parameters Source'!L44) -> 101.0912426 | K48: =IF('Annual Parameters Source'!M44="","-",'Annual Parameters Source'!M44) -> - | L48: =IF('Annual Parameters Source'!N44="","-",'Annual Parameters Source'!N44) -> - | M48: =IF('Annual Parameters Source'!O44="","-",'Annual Parameters Source'!O44) -> - | N48: =IF('Annual Parameters Source'!P44="","-",'Annual Parameters Source'!P44) -> 22872.36378 | O48: =IF('Annual Parameters Source'!Q44="","-",'Annual Parameters Source'!Q44) -> 3.145120549 | P48: =IF('Annual Parameters Source'!R44="","-",'Annual Parameters Source'!R44) -> 103.3886665 | Q48: =IF('Annual Parameters Source'!S44="","-",'Annual Parameters Source'!S44) -> - | R48: =IF('Annual Parameters Source'!T44="","-",'Annual Parameters Source'!T44) -> - | S48: =IF('Annual Parameters Source'!U44="","-",'Annual Parameters Source'!U44) -> - | T48: =IF('Annual Parameters Source'!V44="","-",'Annual Parameters Source'!V44) -> - | U48: =IF('Annual Parameters Source'!W44="","-",'Annual Parameters Source'!W44) -> - | V48: =IF('Annual Parameters Source'!X44="","-",'Annual Parameters Source'!X44) -> - | W48: =IF('Annual Parameters Source'!Y44="","-",'Annual Parameters Source'!Y44) -> - | X48: =IF('Annual Parameters Source'!AD44="","-",'Annual Parameters Source'!AD44) -> - | Y48: =IF('Annual Parameters Source'!AE44="","-",'Annual Parameters Source'!AE44) -> - | Z48: =IF('Annual Parameters Source'!AF44="","-",'Annual Parameters Source'!AF44) -> - | AA48: =IF('Annual Parameters Source'!AG44="","-",'Annual Parameters Source'!AG44) -> - | AB48: =IF('Annual Parameters Source'!J44="","-",'Annual Parameters Source'!J44) -> - | AC48: =IF('Annual Parameters Source'!K44="","-",'Annual Parameters Source'!K44) -> -
B49: 1995 | D49: =IF('Annual Parameters Source'!D45="","-",'Annual Parameters Source'!D45/VLOOKUP($B$14,'Annual Parameters Source'!$B$40:$D$150,3,1)*100) -> 73.43058452 | E49: =IF('Annual Parameters Source'!E45="","-",VLOOKUP($B$16,'Annual Parameters Source'!$B$40:$AH$154,33,FALSE)/VLOOKUP($B$16,'Annual Parameters Source'!$B$40:$AH$154,4,FALSE)*'Annual Parameters Source'!E45) -> 1355023 | F49: =IF('Annual Parameters Source'!F45="","-",'Annual Parameters Source'!F45) -> 2.386200237 | G49: =IF('Annual Parameters Source'!G45="","-",'Annual Parameters Source'!G45) -> 107.0108699 | H49: =IF('Annual Parameters Source'!H45="","-",'Annual Parameters Source'!H45) -> 58024.8 | I49: =IF('Annual Parameters Source'!I45="","-",'Annual Parameters Source'!I45) -> 0.2811857848 | J49: =IF('Annual Parameters Source'!L45="","-",'Annual Parameters Source'!L45) -> 101.3754968 | K49: =IF('Annual Parameters Source'!M45="","-",'Annual Parameters Source'!M45) -> - | L49: =IF('Annual Parameters Source'!N45="","-",'Annual Parameters Source'!N45) -> - | M49: =IF('Annual Parameters Source'!O45="","-",'Annual Parameters Source'!O45) -> - | N49: =IF('Annual Parameters Source'!P45="","-",'Annual Parameters Source'!P45) -> 23352.48032 | O49: =IF('Annual Parameters Source'!Q45="","-",'Annual Parameters Source'!Q45) -> 2.099112047 | P49: =IF('Annual Parameters Source'!R45="","-",'Annual Parameters Source'!R45) -> 105.5589104 | Q49: =IF('Annual Parameters Source'!S45="","-",'Annual Parameters Source'!S45) -> - | R49: =IF('Annual Parameters Source'!T45="","-",'Annual Parameters Source'!T45) -> - | S49: =IF('Annual Parameters Source'!U45="","-",'Annual Parameters Source'!U45) -> - | T49: =IF('Annual Parameters Source'!V45="","-",'Annual Parameters Source'!V45) -> - | U49: =IF('Annual Parameters Source'!W45="","-",'Annual Parameters Source'!W45) -> - | V49: =IF('Annual Parameters Source'!X45="","-",'Annual Parameters Source'!X45) -> - | W49: =IF('Annual Parameters Source'!Y45="","-",'Annual Parameters Source'!Y45) -> - | X49: =IF('Annual Parameters Source'!AD45="","-",'Annual Parameters Source'!AD45) -> - | Y49: =IF('Annual Parameters Source'!AE45="","-",'Annual Parameters Source'!AE45) -> - | Z49: =IF('Annual Parameters Source'!AF45="","-",'Annual Parameters Source'!AF45) -> - | AA49: =IF('Annual Parameters Source'!AG45="","-",'Annual Parameters Source'!AG45) -> - | AB49: =IF('Annual Parameters Source'!J45="","-",'Annual Parameters Source'!J45) -> - | AC49: =IF('Annual Parameters Source'!K45="","-",'Annual Parameters Source'!K45) -> -
B50: 1996 | D50: =IF('Annual Parameters Source'!D46="","-",'Annual Parameters Source'!D46/VLOOKUP($B$14,'Annual Parameters Source'!$B$40:$D$150,3,1)*100) -> 76.46833671 | E50: =IF('Annual Parameters Source'!E46="","-",VLOOKUP($B$16,'Annual Parameters Source'!$B$40:$AH$154,33,FALSE)/VLOOKUP($B$16,'Annual Parameters Source'!$B$40:$AH$154,4,FALSE)*'Annual Parameters Source'!E46) -> 1390010 | F50: =IF('Annual Parameters Source'!F46="","-",'Annual Parameters Source'!F46) -> 2.582022593 | G50: =IF('Annual Parameters Source'!G46="","-",'Annual Parameters Source'!G46) -> 109.7739147 | H50: =IF('Annual Parameters Source'!H46="","-",'Annual Parameters Source'!H46) -> 58164.4 | I50: =IF('Annual Parameters Source'!I46="","-",'Annual Parameters Source'!I46) -> 0.2405867836 | J50: =IF('Annual Parameters Source'!L46="","-",'Annual Parameters Source'!L46) -> 101.6193929 | K50: =IF('Annual Parameters Source'!M46="","-",'Annual Parameters Source'!M46) -> 23738 | L50: =IF('Annual Parameters Source'!N46="","-",'Annual Parameters Source'!N46) -> - | M50: =IF('Annual Parameters Source'!O46="","-",'Annual Parameters Source'!O46) -> 100 | N50: =IF('Annual Parameters Source'!P46="","-",'Annual Parameters Source'!P46) -> 23897.95132 | O50: =IF('Annual Parameters Source'!Q46="","-",'Annual Parameters Source'!Q46) -> 2.335816144 | P50: =IF('Annual Parameters Source'!R46="","-",'Annual Parameters Source'!R46) -> 108.0245725 | Q50: =IF('Annual Parameters Source'!S46="","-",'Annual Parameters Source'!S46) -> 58556.32319 | R50: =IF('Annual Parameters Source'!T46="","-",'Annual Parameters Source'!T46) -> - | S50: =IF('Annual Parameters Source'!U46="","-",'Annual Parameters Source'!U46) -> 100 | T50: =IF('Annual Parameters Source'!V46="","-",'Annual Parameters Source'!V46) -> - | U50: =IF('Annual Parameters Source'!W46="","-",'Annual Parameters Source'!W46) -> - | V50: =IF('Annual Parameters Source'!X46="","-",'Annual Parameters Source'!X46) -> - | W50: =IF('Annual Parameters Source'!Y46="","-",'Annual Parameters Source'!Y46) -> - | X50: =IF('Annual Parameters Source'!AD46="","-",'Annual Parameters Source'!AD46) -> - | Y50: =IF('Annual Parameters Source'!AE46="","-",'Annual Parameters Source'!AE46) -> - | Z50: =IF('Annual Parameters Source'!AF46="","-",'Annual Parameters Source'!AF46) -> - | AA50: =IF('Annual Parameters Source'!AG46="","-",'Annual Parameters Source'!AG46) -> - | AB50: =IF('Annual Parameters Source'!J46="","-",'Annual Parameters Source'!J46) -> - | AC50: =IF('Annual Parameters Source'!K46="","-",'Annual Parameters Source'!K46) -> -
B51: 1997 | D51: =IF('Annual Parameters Source'!D47="","-",'Annual Parameters Source'!D47/VLOOKUP($B$14,'Annual Parameters Source'!$B$40:$D$150,3,1)*100) -> 76.3591744 | E51: =IF('Annual Parameters Source'!E47="","-",VLOOKUP($B$16,'Annual Parameters Source'!$B$40:$AH$154,33,FALSE)/VLOOKUP($B$16,'Annual Parameters Source'!$B$40:$AH$154,4,FALSE)*'Annual Parameters Source'!E47) -> 1458467 | F51: =IF('Annual Parameters Source'!F47="","-",'Annual Parameters Source'!F47) -> 4.924928598 | G51: =IF('Annual Parameters Source'!G47="","-",'Annual Parameters Source'!G47) -> 115.1802017 | H51: =IF('Annual Parameters Source'!H47="","-",'Annual Parameters Source'!H47) -> 58314.2 | I51: =IF('Annual Parameters Source'!I47="","-",'Annual Parameters Source'!I47) -> 0.2575458528 | J51: =IF('Annual Parameters Source'!L47="","-",'Annual Parameters Source'!L47) -> 101.8811094 | K51: =IF('Annual Parameters Source'!M47="","-",'Annual Parameters Source'!M47) -> 23865 | L51: =IF('Annual Parameters Source'!N47="","-",'Annual Parameters Source'!N47) -> 0.5350071615 | M51: =IF('Annual Parameters Source'!O47="","-",'Annual Parameters Source'!O47) -> 100.5350072 | N51: =IF('Annual Parameters Source'!P47="","-",'Annual Parameters Source'!P47) -> 25010.49487 | O51: =IF('Annual Parameters Source'!Q47="","-",'Annual Parameters Source'!Q47) -> 4.655392973 | P51: =IF('Annual Parameters Source'!R47="","-",'Annual Parameters Source'!R47) -> 113.0535409 | Q51: =IF('Annual Parameters Source'!S47="","-",'Annual Parameters Source'!S47) -> 61113.2202 | R51: =IF('Annual Parameters Source'!T47="","-",'Annual Parameters Source'!T47) -> 4.366560027 | S51: =IF('Annual Parameters Source'!U47="","-",'Annual Parameters Source'!U47) -> 104.36656 | T51: =IF('Annual Parameters Source'!V47="","-",'Annual Parameters Source'!V47) -> - | U51: =IF('Annual Parameters Source'!W47="","-",'Annual Parameters Source'!W47) -> - | V51: =IF('Annual Parameters Source'!X47="","-",'Annual Parameters Source'!X47) -> - | W51: =IF('Annual Parameters Source'!Y47="","-",'Annual Parameters Source'!Y47) -> - | X51: =IF('Annual Parameters Source'!AD47="","-",'Annual Parameters Source'!AD47) -> - | Y51: =IF('Annual Parameters Source'!AE47="","-",'Annual Parameters Source'!AE47) -> - | Z51: =IF('Annual Parameters Source'!AF47="","-",'Annual Parameters Source'!AF47) -> - | AA51: =IF('Annual Parameters Source'!AG47="","-",'Annual Parameters Source'!AG47) -> - | AB51: =IF('Annual Parameters Source'!J47="","-",'Annual Parameters Source'!J47) -> - | AC51: =IF('Annual Parameters Source'!K47="","-",'Annual Parameters Source'!K47) -> -
B52: 1998 | D52: =IF('Annual Parameters Source'!D48="","-",'Annual Parameters Source'!D48/VLOOKUP($B$14,'Annual Parameters Source'!$B$40:$D$150,3,1)*100) -> 77.3297517 | E52: =IF('Annual Parameters Source'!E48="","-",VLOOKUP($B$16,'Annual Parameters Source'!$B$40:$AH$154,33,FALSE)/VLOOKUP($B$16,'Annual Parameters Source'!$B$40:$AH$154,4,FALSE)*'Annual Parameters Source'!E48) -> 1508263 | F52: =IF('Annual Parameters Source'!F48="","-",'Annual Parameters Source'!F48) -> 3.414269915 | G52: =IF('Annual Parameters Source'!G48="","-",'Annual Parameters Source'!G48) -> 119.1127646 | H52: =IF('Annual Parameters Source'!H48="","-",'Annual Parameters Source'!H48) -> 58474.9 | I52: =IF('Annual Parameters Source'!I48="","-",'Annual Parameters Source'!I48) -> 0.2755761032 | J52: =IF('Annual Parameters Source'!L48="","-",'Annual Parameters Source'!L48) -> 102.1618694 | K52: =IF('Annual Parameters Source'!M48="","-",'Annual Parameters Source'!M48) -> 24036 | L52: =IF('Annual Parameters Source'!N48="","-",'Annual Parameters Source'!N48) -> 0.716530484 | M52: =IF('Annual Parameters Source'!O48="","-",'Annual Parameters Source'!O48) -> 101.2553711 | N52: =IF('Annual Parameters Source'!P48="","-",'Annual Parameters Source'!P48) -> 25793.34039 | O52: =IF('Annual Parameters Source'!Q48="","-",'Annual Parameters Source'!Q48) -> 3.130068092 | P52: =IF('Annual Parameters Source'!R48="","-",'Annual Parameters Source'!R48) -> 116.5921937 | Q52: =IF('Annual Parameters Source'!S48="","-",'Annual Parameters Source'!S48) -> 62750.16642 | R52: =IF('Annual Parameters Source'!T48="","-",'Annual Parameters Source'!T48) -> 2.678546826 | S52: =IF('Annual Parameters Source'!U48="","-",'Annual Parameters Source'!U48) -> 107.1620672 | T52: =IF('Annual Parameters Source'!V48="","-",'Annual Parameters Source'!V48) -> - | U52: =IF('Annual Parameters Source'!W48="","-",'Annual Parameters Source'!W48) -> - | V52: =IF('Annual Parameters Source'!X48="","-",'Annual Parameters Source'!X48) -> - | W52: =IF('Annual Parameters Source'!Y48="","-",'Annual Parameters Source'!Y48) -> - | X52: =IF('Annual Parameters Source'!AD48="","-",'Annual Parameters Source'!AD48) -> - | Y52: =IF('Annual Parameters Source'!AE48="","-",'Annual Parameters Source'!AE48) -> - | Z52: =IF('Annual Parameters Source'!AF48="","-",'Annual Parameters Source'!AF48) -> - | AA52: =IF('Annual Parameters Source'!AG48="","-",'Annual Parameters Source'!AG48) -> - | AB52: =IF('Annual Parameters Source'!J48="","-",'Annual Parameters Source'!J48) -> - | AC52: =IF('Annual Parameters Source'!K48="","-",'Annual Parameters Source'!K48) -> -
B53: 1999 | D53: =IF('Annual Parameters Source'!D49="","-",'Annual Parameters Source'!D49/VLOOKUP($B$14,'Annual Parameters Source'!$B$40:$D$150,3,1)*100) -> 78.39111336 | E53: =IF('Annual Parameters Source'!E49="","-",VLOOKUP($B$16,'Annual Parameters Source'!$B$40:$AH$154,33,FALSE)/VLOOKUP($B$16,'Annual Parameters Source'!$B$40:$AH$154,4,FALSE)*'Annual Parameters Source'!E49) -> 1554509 | F53: =IF('Annual Parameters Source'!F49="","-",'Annual Parameters Source'!F49) -> 3.066176124 | G53: =IF('Annual Parameters Source'!G49="","-",'Annual Parameters Source'!G49) -> 122.7649718 | H53: =IF('Annual Parameters Source'!H49="","-",'Annual Parameters Source'!H49) -> 58684.4 | I53: =IF('Annual Parameters Source'!I49="","-",'Annual Parameters Source'!I49) -> 0.3582733788 | J53: =IF('Annual Parameters Source'!L49="","-",'Annual Parameters Source'!L49) -> 102.5278882 | K53: =IF('Annual Parameters Source'!M49="","-",'Annual Parameters Source'!M49) -> 24209 | L53: =IF('Annual Parameters Source'!N49="","-",'Annual Parameters Source'!N49) -> 0.7197537028 | M53: =IF('Annual Parameters Source'!O49="","-",'Annual Parameters Source'!O49) -> 101.9841604 | N53: =IF('Annual Parameters Source'!P49="","-",'Annual Parameters Source'!P49) -> 26489.30551 | O53: =IF('Annual Parameters Source'!Q49="","-",'Annual Parameters Source'!Q49) -> 2.698235685 | P53: =IF('Annual Parameters Source'!R49="","-",'Annual Parameters Source'!R49) -> 119.7381259 | Q53: =IF('Annual Parameters Source'!S49="","-",'Annual Parameters Source'!S49) -> 64212.02858 | R53: =IF('Annual Parameters Source'!T49="","-",'Annual Parameters Source'!T49) -> 2.329654646 | S53: =IF('Annual Parameters Source'!U49="","-",'Annual Parameters Source'!U49) -> 109.6585733 | T53: =IF('Annual Parameters Source'!V49="","-",'Annual Parameters Source'!V49) -> - | U53: =IF('Annual Parameters Source'!W49="","-",'Annual Parameters Source'!W49) -> - | V53: =IF('Annual Parameters Source'!X49="","-",'Annual Parameters Source'!X49) -> - | W53: =IF('Annual Parameters Source'!Y49="","-",'Annual Parameters Source'!Y49) -> - | X53: =IF('Annual Parameters Source'!AD49="","-",'Annual Parameters Source'!AD49) -> - | Y53: =IF('Annual Parameters Source'!AE49="","-",'Annual Parameters Source'!AE49) -> - | Z53: =IF('Annual Parameters Source'!AF49="","-",'Annual Parameters Source'!AF49) -> - | AA53: =IF('Annual Parameters Source'!AG49="","-",'Annual Parameters Source'!AG49) -> - | AB53: =IF('Annual Parameters Source'!J49="","-",'Annual Parameters Source'!J49) -> - | AC53: =IF('Annual Parameters Source'!K49="","-",'Annual Parameters Source'!K49) -> -
B54: 2000 | D54: =IF('Annual Parameters Source'!D50="","-",'Annual Parameters Source'!D50/VLOOKUP($B$14,'Annual Parameters Source'!$B$40:$D$150,3,1)*100) -> 79.29052789 | E54: =IF('Annual Parameters Source'!E50="","-",VLOOKUP($B$16,'Annual Parameters Source'!$B$40:$AH$154,33,FALSE)/VLOOKUP($B$16,'Annual Parameters Source'!$B$40:$AH$154,4,FALSE)*'Annual Parameters Source'!E50) -> 1621644 | F54: =IF('Annual Parameters Source'!F50="","-",'Annual Parameters Source'!F50) -> 4.318727006 | G54: =IF('Annual Parameters Source'!G50="","-",'Annual Parameters Source'!G50) -> 128.0668558 | H54: =IF('Annual Parameters Source'!H50="","-",'Annual Parameters Source'!H50) -> 58886.1 | I54: =IF('Annual Parameters Source'!I50="","-",'Annual Parameters Source'!I50) -> 0.3437029262 | J54: =IF('Annual Parameters Source'!L50="","-",'Annual Parameters Source'!L50) -> 102.8802795 | K54: =IF('Annual Parameters Source'!M50="","-",'Annual Parameters Source'!M50) -> 24396 | L54: =IF('Annual Parameters Source'!N50="","-",'Annual Parameters Source'!N50) -> 0.7724400017 | M54: =IF('Annual Parameters Source'!O50="","-",'Annual Parameters Source'!O50) -> 102.7719269 | N54: =IF('Annual Parameters Source'!P50="","-",'Annual Parameters Source'!P50) -> 27538.65513 | O54: =IF('Annual Parameters Source'!Q50="","-",'Annual Parameters Source'!Q50) -> 3.961408603 | P54: =IF('Annual Parameters Source'!R50="","-",'Annual Parameters Source'!R50) -> 124.4814423 | Q54: =IF('Annual Parameters Source'!S50="","-",'Annual Parameters Source'!S50) -> 66471.71667 | R54: =IF('Annual Parameters Source'!T50="","-",'Annual Parameters Source'!T50) -> 3.519104037 | S54: =IF('Annual Parameters Source'!U50="","-",'Annual Parameters Source'!U50) -> 113.5175726 | T54: =IF('Annual Parameters Source'!V50="","-",'Annual Parameters Source'!V50) -> - | U54: =IF('Annual Parameters Source'!W50="","-",'Annual Parameters Source'!W50) -> - | V54: =IF('Annual Parameters Source'!X50="","-",'Annual Parameters Source'!X50) -> - | W54: =IF('Annual Parameters Source'!Y50="","-",'Annual Parameters Source'!Y50) -> - | X54: =IF('Annual Parameters Source'!AD50="","-",'Annual Parameters Source'!AD50) -> - | Y54: =IF('Annual Parameters Source'!AE50="","-",'Annual Parameters Source'!AE50) -> - | Z54: =IF('Annual Parameters Source'!AF50="","-",'Annual Parameters Source'!AF50) -> - | AA54: =IF('Annual Parameters Source'!AG50="","-",'Annual Parameters Source'!AG50) -> - | AB54: =IF('Annual Parameters Source'!J50="","-",'Annual Parameters Source'!J50) -> - | AC54: =IF('Annual Parameters Source'!K50="","-",'Annual Parameters Source'!K50) -> -
B55: 2001 | D55: =IF('Annual Parameters Source'!D51="","-",'Annual Parameters Source'!D51/VLOOKUP($B$14,'Annual Parameters Source'!$B$40:$D$150,3,1)*100) -> 80.48385158 | E55: =IF('Annual Parameters Source'!E51="","-",VLOOKUP($B$16,'Annual Parameters Source'!$B$40:$AH$154,33,FALSE)/VLOOKUP($B$16,'Annual Parameters Source'!$B$40:$AH$154,4,FALSE)*'Annual Parameters Source'!E51) -> 1663462 | F55: =IF('Annual Parameters Source'!F51="","-",'Annual Parameters Source'!F51) -> 2.57874108 | G55: =IF('Annual Parameters Source'!G51="","-",'Annual Parameters Source'!G51) -> 131.3693684 | H55: =IF('Annual Parameters Source'!H51="","-",'Annual Parameters Source'!H51) -> 59113 | I55: =IF('Annual Parameters Source'!I51="","-",'Annual Parameters Source'!I51) -> 0.385320135 | J55: =IF('Annual Parameters Source'!L51="","-",'Annual Parameters Source'!L51) -> 103.276698 | K55: =IF('Annual Parameters Source'!M51="","-",'Annual Parameters Source'!M51) -> 24535 | L55: =IF('Annual Parameters Source'!N51="","-",'Annual Parameters Source'!N51) -> 0.5697655353 | M55: =IF('Annual Parameters Source'!O51="","-",'Annual Parameters Source'!O51) -> 103.3574859 | N55: =IF('Annual Parameters Source'!P51="","-",'Annual Parameters Source'!P51) -> 28140.37521 | O55: =IF('Annual Parameters Source'!Q51="","-",'Annual Parameters Source'!Q51) -> 2.185001694 | P55: =IF('Annual Parameters Source'!R51="","-",'Annual Parameters Source'!R51) -> 127.2013639 | Q55: =IF('Annual Parameters Source'!S51="","-",'Annual Parameters Source'!S51) -> 67799.55166 | R55: =IF('Annual Parameters Source'!T51="","-",'Annual Parameters Source'!T51) -> 1.997593943 | S55: =IF('Annual Parameters Source'!U51="","-",'Annual Parameters Source'!U51) -> 115.7851927 | T55: =IF('Annual Parameters Source'!V51="","-",'Annual Parameters Source'!V51) -> - | U55: =IF('Annual Parameters Source'!W51="","-",'Annual Parameters Source'!W51) -> - | V55: =IF('Annual Parameters Source'!X51="","-",'Annual Parameters Source'!X51) -> - | W55: =IF('Annual Parameters Source'!Y51="","-",'Annual Parameters Source'!Y51) -> - | X55: =IF('Annual Parameters Source'!AD51="","-",'Annual Parameters Source'!AD51) -> - | Y55: =IF('Annual Parameters Source'!AE51="","-",'Annual Parameters Source'!AE51) -> - | Z55: =IF('Annual Parameters Source'!AF51="","-",'Annual Parameters Source'!AF51) -> - | AA55: =IF('Annual Parameters Source'!AG51="","-",'Annual Parameters Source'!AG51) -> - | AB55: =IF('Annual Parameters Source'!J51="","-",'Annual Parameters Source'!J51) -> - | AC55: =IF('Annual Parameters Source'!K51="","-",'Annual Parameters Source'!K51) -> -
B56: 2002 | D56: =IF('Annual Parameters Source'!D52="","-",'Annual Parameters Source'!D52/VLOOKUP($B$14,'Annual Parameters Source'!$B$40:$D$150,3,1)*100) -> 82.18885632 | E56: =IF('Annual Parameters Source'!E52="","-",VLOOKUP($B$16,'Annual Parameters Source'!$B$40:$AH$154,33,FALSE)/VLOOKUP($B$16,'Annual Parameters Source'!$B$40:$AH$154,4,FALSE)*'Annual Parameters Source'!E52) -> 1693271 | F56: =IF('Annual Parameters Source'!F52="","-",'Annual Parameters Source'!F52) -> 1.79198563 | G56: =IF('Annual Parameters Source'!G52="","-",'Annual Parameters Source'!G52) -> 133.7234886 | H56: =IF('Annual Parameters Source'!H52="","-",'Annual Parameters Source'!H52) -> 59365.7 | I56: =IF('Annual Parameters Source'!I52="","-",'Annual Parameters Source'!I52) -> 0.4274863397 | J56: =IF('Annual Parameters Source'!L52="","-",'Annual Parameters Source'!L52) -> 103.7181917 | K56: =IF('Annual Parameters Source'!M52="","-",'Annual Parameters Source'!M52) -> 24792 | L56: =IF('Annual Parameters Source'!N52="","-",'Annual Parameters Source'!N52) -> 1.047483187 | M56: =IF('Annual Parameters Source'!O52="","-",'Annual Parameters Source'!O52) -> 104.4401382 | N56: =IF('Annual Parameters Source'!P52="","-",'Annual Parameters Source'!P52) -> 28522.71598 | O56: =IF('Annual Parameters Source'!Q52="","-",'Annual Parameters Source'!Q52) -> 1.358691072 | P56: =IF('Annual Parameters Source'!R52="","-",'Annual Parameters Source'!R52) -> 128.9296375 | Q56: =IF('Annual Parameters Source'!S52="","-",'Annual Parameters Source'!S52) -> 68299.08842 | R56: =IF('Annual Parameters Source'!T52="","-",'Annual Parameters Source'!T52) -> 0.7367847463 | S56: =IF('Annual Parameters Source'!U52="","-",'Annual Parameters Source'!U52) -> 116.6382804 | T56: =IF('Annual Parameters Source'!V52="","-",'Annual Parameters Source'!V52) -> - | U56: =IF('Annual Parameters Source'!W52="","-",'Annual Parameters Source'!W52) -> - | V56: =IF('Annual Parameters Source'!X52="","-",'Annual Parameters Source'!X52) -> 100 | W56: =IF('Annual Parameters Source'!Y52="","-",'Annual Parameters Source'!Y52) -> 100 | X56: =IF('Annual Parameters Source'!AD52="","-",'Annual Parameters Source'!AD52) -> - | Y56: =IF('Annual Parameters Source'!AE52="","-",'Annual Parameters Source'!AE52) -> - | Z56: =IF('Annual Parameters Source'!AF52="","-",'Annual Parameters Source'!AF52) -> 100 | AA56: =IF('Annual Parameters Source'!AG52="","-",'Annual Parameters Source'!AG52) -> 100 | AB56: =IF('Annual Parameters Source'!J52="","-",'Annual Parameters Source'!J52) -> - | AC56: =IF('Annual Parameters Source'!K52="","-",'Annual Parameters Source'!K52) -> -
B57: 2003 | D57: =IF('Annual Parameters Source'!D53="","-",'Annual Parameters Source'!D53/VLOOKUP($B$14,'Annual Parameters Source'!$B$40:$D$150,3,1)*100) -> 84.1552979 | E57: =IF('Annual Parameters Source'!E53="","-",VLOOKUP($B$16,'Annual Parameters Source'!$B$40:$AH$154,33,FALSE)/VLOOKUP($B$16,'Annual Parameters Source'!$B$40:$AH$154,4,FALSE)*'Annual Parameters Source'!E53) -> 1746551 | F57: =IF('Annual Parameters Source'!F53="","-",'Annual Parameters Source'!F53) -> 3.146572521 | G57: =IF('Annual Parameters Source'!G53="","-",'Annual Parameters Source'!G53) -> 137.9311952 | H57: =IF('Annual Parameters Source'!H53="","-",'Annual Parameters Source'!H53) -> 59636.7 | I57: =IF('Annual Parameters Source'!I53="","-",'Annual Parameters Source'!I53) -> 0.4564925538 | J57: =IF('Annual Parameters Source'!L53="","-",'Annual Parameters Source'!L53) -> 104.1916576 | K57: =IF('Annual Parameters Source'!M53="","-",'Annual Parameters Source'!M53) -> 24917 | L57: =IF('Annual Parameters Source'!N53="","-",'Annual Parameters Source'!N53) -> 0.5041949016 | M57: =IF('Annual Parameters Source'!O53="","-",'Annual Parameters Source'!O53) -> 104.96672 | N57: =IF('Annual Parameters Source'!P53="","-",'Annual Parameters Source'!P53) -> 29286.51317 | O57: =IF('Annual Parameters Source'!Q53="","-",'Annual Parameters Source'!Q53) -> 2.677855756 | P57: =IF('Annual Parameters Source'!R53="","-",'Annual Parameters Source'!R53) -> 132.3821872 | Q57: =IF('Annual Parameters Source'!S53="","-",'Annual Parameters Source'!S53) -> 70094.75459 | R57: =IF('Annual Parameters Source'!T53="","-",'Annual Parameters Source'!T53) -> 2.629121722 | S57: =IF('Annual Parameters Source'!U53="","-",'Annual Parameters Source'!U53) -> 119.7048427 | T57: =IF('Annual Parameters Source'!V53="","-",'Annual Parameters Source'!V53) -> 2.677855756 | U57: =IF('Annual Parameters Source'!W53="","-",'Annual Parameters Source'!W53) -> 2.677855756 | V57: =IF('Annual Parameters Source'!X53="","-",'Annual Parameters Source'!X53) -> 102.6778558 | W57: =IF('Annual Parameters Source'!Y53="","-",'Annual Parameters Source'!Y53) -> 102.6778558 | X57: =IF('Annual Parameters Source'!AD53="","-",'Annual Parameters Source'!AD53) -> 2.677855756 | Y57: =IF('Annual Parameters Source'!AE53="","-",'Annual Parameters Source'!AE53) -> 2.677855756 | Z57: =IF('Annual Parameters Source'!AF53="","-",'Annual Parameters Source'!AF53) -> 102.6778558 | AA57: =IF('Annual Parameters Source'!AG53="","-",'Annual Parameters Source'!AG53) -> 102.6778558 | AB57: =IF('Annual Parameters Source'!J53="","-",'Annual Parameters Source'!J53) -> - | AC57: =IF('Annual Parameters Source'!K53="","-",'Annual Parameters Source'!K53) -> -
B58: 2004 | D58: =IF('Annual Parameters Source'!D54="","-",'Annual Parameters Source'!D54/VLOOKUP($B$14,'Annual Parameters Source'!$B$40:$D$150,3,1)*100) -> 86.35954749 | E58: =IF('Annual Parameters Source'!E54="","-",VLOOKUP($B$16,'Annual Parameters Source'!$B$40:$AH$154,33,FALSE)/VLOOKUP($B$16,'Annual Parameters Source'!$B$40:$AH$154,4,FALSE)*'Annual Parameters Source'!E54) -> 1788931 | F58: =IF('Annual Parameters Source'!F54="","-",'Annual Parameters Source'!F54) -> 2.426496564 | G58: =IF('Annual Parameters Source'!G54="","-",'Annual Parameters Source'!G54) -> 141.2780909 | H58: =IF('Annual Parameters Source'!H54="","-",'Annual Parameters Source'!H54) -> 59950.4 | I58: =IF('Annual Parameters Source'!I54="","-",'Annual Parameters Source'!I54) -> 0.5260183746 | J58: =IF('Annual Parameters Source'!L54="","-",'Annual Parameters Source'!L54) -> 104.7397248 | K58: =IF('Annual Parameters Source'!M54="","-",'Annual Parameters Source'!M54) -> 24993 | L58: =IF('Annual Parameters Source'!N54="","-",'Annual Parameters Source'!N54) -> 0.305012642 | M58: =IF('Annual Parameters Source'!O54="","-",'Annual Parameters Source'!O54) -> 105.2868818 | N58: =IF('Annual Parameters Source'!P54="","-",'Annual Parameters Source'!P54) -> 29840.18455 | O58: =IF('Annual Parameters Source'!Q54="","-",'Annual Parameters Source'!Q54) -> 1.890533635 | P58: =IF('Annual Parameters Source'!R54="","-",'Annual Parameters Source'!R54) -> 134.884917 | Q58: =IF('Annual Parameters Source'!S54="","-",'Annual Parameters Source'!S54) -> 71577.28164 | R58: =IF('Annual Parameters Source'!T54="","-",'Annual Parameters Source'!T54) -> 2.115032804 | S58: =IF('Annual Parameters Source'!U54="","-",'Annual Parameters Source'!U54) -> 122.2366394 | T58: =IF('Annual Parameters Source'!V54="","-",'Annual Parameters Source'!V54) -> 1.890533635 | U58: =IF('Annual Parameters Source'!W54="","-",'Annual Parameters Source'!W54) -> 1.890533635 | V58: =IF('Annual Parameters Source'!X54="","-",'Annual Parameters Source'!X54) -> 104.6190152 | W58: =IF('Annual Parameters Source'!Y54="","-",'Annual Parameters Source'!Y54) -> 104.6190152 | X58: =IF('Annual Parameters Source'!AD54="","-",'Annual Parameters Source'!AD54) -> 1.890533635 | Y58: =IF('Annual Parameters Source'!AE54="","-",'Annual Parameters Source'!AE54) -> 1.890533635 | Z58: =IF('Annual Parameters Source'!AF54="","-",'Annual Parameters Source'!AF54) -> 104.6190152 | AA58: =IF('Annual Parameters Source'!AG54="","-",'Annual Parameters Source'!AG54) -> 104.6190152 | AB58: =IF('Annual Parameters Source'!J54="","-",'Annual Parameters Source'!J54) -> - | AC58: =IF('Annual Parameters Source'!K54="","-",'Annual Parameters Source'!K54) -> -
B59: 2005 | D59: =IF('Annual Parameters Source'!D55="","-",'Annual Parameters Source'!D55/VLOOKUP($B$14,'Annual Parameters Source'!$B$40:$D$150,3,1)*100) -> 88.89473851 | E59: =IF('Annual Parameters Source'!E55="","-",VLOOKUP($B$16,'Annual Parameters Source'!$B$40:$AH$154,33,FALSE)/VLOOKUP($B$16,'Annual Parameters Source'!$B$40:$AH$154,4,FALSE)*'Annual Parameters Source'!E55) -> 1837927 | F59: =IF('Annual Parameters Source'!F55="","-",'Annual Parameters Source'!F55) -> 2.738842359 | G59: =IF('Annual Parameters Source'!G55="","-",'Annual Parameters Source'!G55) -> 145.1474751 | H59: =IF('Annual Parameters Source'!H55="","-",'Annual Parameters Source'!H55) -> 60413.3 | I59: =IF('Annual Parameters Source'!I55="","-",'Annual Parameters Source'!I55) -> 0.772138301 | J59: =IF('Annual Parameters Source'!L55="","-",'Annual Parameters Source'!L55) -> 105.5484604 | K59: =IF('Annual Parameters Source'!M55="","-",'Annual Parameters Source'!M55) -> 25217 | L59: =IF('Annual Parameters Source'!N55="","-",'Annual Parameters Source'!N55) -> 0.8962509503 | M59: =IF('Annual Parameters Source'!O55="","-",'Annual Parameters Source'!O55) -> 106.2305165 | N59: =IF('Annual Parameters Source'!P55="","-",'Annual Parameters Source'!P55) -> 30422.55596 | O59: =IF('Annual Parameters Source'!Q55="","-",'Annual Parameters Source'!Q55) -> 1.951634739 | P59: =IF('Annual Parameters Source'!R55="","-",'Annual Parameters Source'!R55) -> 137.5173779 | Q59: =IF('Annual Parameters Source'!S55="","-",'Annual Parameters Source'!S55) -> 72884.44303 | R59: =IF('Annual Parameters Source'!T55="","-",'Annual Parameters Source'!T55) -> 1.82622386 | S59: =IF('Annual Parameters Source'!U55="","-",'Annual Parameters Source'!U55) -> 124.4689541 | T59: =IF('Annual Parameters Source'!V55="","-",'Annual Parameters Source'!V55) -> 1.951634739 | U59: =IF('Annual Parameters Source'!W55="","-",'Annual Parameters Source'!W55) -> 1.951634739 | V59: =IF('Annual Parameters Source'!X55="","-",'Annual Parameters Source'!X55) -> 106.6607962 | W59: =IF('Annual Parameters Source'!Y55="","-",'Annual Parameters Source'!Y55) -> 106.6607962 | X59: =IF('Annual Parameters Source'!AD55="","-",'Annual Parameters Source'!AD55) -> 1.951634739 | Y59: =IF('Annual Parameters Source'!AE55="","-",'Annual Parameters Source'!AE55) -> 1.951634739 | Z59: =IF('Annual Parameters Source'!AF55="","-",'Annual Parameters Source'!AF55) -> 106.6607962 | AA59: =IF('Annual Parameters Source'!AG55="","-",'Annual Parameters Source'!AG55) -> 106.6607962 | AB59: =IF('Annual Parameters Source'!J55="","-",'Annual Parameters Source'!J55) -> - | AC59: =IF('Annual Parameters Source'!K55="","-",'Annual Parameters Source'!K55) -> -
B60: 2006 | D60: =IF('Annual Parameters Source'!D56="","-",'Annual Parameters Source'!D56/VLOOKUP($B$14,'Annual Parameters Source'!$B$40:$D$150,3,1)*100) -> 91.37479567 | E60: =IF('Annual Parameters Source'!E56="","-",VLOOKUP($B$16,'Annual Parameters Source'!$B$40:$AH$154,33,FALSE)/VLOOKUP($B$16,'Annual Parameters Source'!$B$40:$AH$154,4,FALSE)*'Annual Parameters Source'!E56) -> 1881785 | F60: =IF('Annual Parameters Source'!F56="","-",'Annual Parameters Source'!F56) -> 2.386275407 | G60: =IF('Annual Parameters Source'!G56="","-",'Annual Parameters Source'!G56) -> 148.6110936 | H60: =IF('Annual Parameters Source'!H56="","-",'Annual Parameters Source'!H56) -> 60827.1 | I60: =IF('Annual Parameters Source'!I56="","-",'Annual Parameters Source'!I56) -> 0.684948513 | J60: =IF('Annual Parameters Source'!L56="","-",'Annual Parameters Source'!L56) -> 106.271413 | K60: =IF('Annual Parameters Source'!M56="","-",'Annual Parameters Source'!M56) -> 25379 | L60: =IF('Annual Parameters Source'!N56="","-",'Annual Parameters Source'!N56) -> 0.6424237617 | M60: =IF('Annual Parameters Source'!O56="","-",'Annual Parameters Source'!O56) -> 106.9129666 | N60: =IF('Annual Parameters Source'!P56="","-",'Annual Parameters Source'!P56) -> 30936.622 | O60: =IF('Annual Parameters Source'!Q56="","-",'Annual Parameters Source'!Q56) -> 1.689752956 | P60: =IF('Annual Parameters Source'!R56="","-",'Annual Parameters Source'!R56) -> 139.8410818 | Q60: =IF('Annual Parameters Source'!S56="","-",'Annual Parameters Source'!S56) -> 74147.32653 | R60: =IF('Annual Parameters Source'!T56="","-",'Annual Parameters Source'!T56) -> 1.732720239 | S60: =IF('Annual Parameters Source'!U56="","-",'Annual Parameters Source'!U56) -> 126.6256528 | T60: =IF('Annual Parameters Source'!V56="","-",'Annual Parameters Source'!V56) -> 1.689752956 | U60: =IF('Annual Parameters Source'!W56="","-",'Annual Parameters Source'!W56) -> 1.689752956 | V60: =IF('Annual Parameters Source'!X56="","-",'Annual Parameters Source'!X56) -> 108.4631002 | W60: =IF('Annual Parameters Source'!Y56="","-",'Annual Parameters Source'!Y56) -> 108.4631002 | X60: =IF('Annual Parameters Source'!AD56="","-",'Annual Parameters Source'!AD56) -> 1.689752956 | Y60: =IF('Annual Parameters Source'!AE56="","-",'Annual Parameters Source'!AE56) -> 1.689752956 | Z60: =IF('Annual Parameters Source'!AF56="","-",'Annual Parameters Source'!AF56) -> 108.4631002 | AA60: =IF('Annual Parameters Source'!AG56="","-",'Annual Parameters Source'!AG56) -> 108.4631002 | AB60: =IF('Annual Parameters Source'!J56="","-",'Annual Parameters Source'!J56) -> - | AC60: =IF('Annual Parameters Source'!K56="","-",'Annual Parameters Source'!K56) -> -
B61: 2007 | D61: =IF('Annual Parameters Source'!D57="","-",'Annual Parameters Source'!D57/VLOOKUP($B$14,'Annual Parameters Source'!$B$40:$D$150,3,1)*100) -> 93.43119251 | E61: =IF('Annual Parameters Source'!E57="","-",VLOOKUP($B$16,'Annual Parameters Source'!$B$40:$AH$154,33,FALSE)/VLOOKUP($B$16,'Annual Parameters Source'!$B$40:$AH$154,4,FALSE)*'Annual Parameters Source'!E57) -> 1931094 | F61: =IF('Annual Parameters Source'!F57="","-",'Annual Parameters Source'!F57) -> 2.620331228 | G61: =IF('Annual Parameters Source'!G57="","-",'Annual Parameters Source'!G57) -> 152.5051965 | H61: =IF('Annual Parameters Source'!H57="","-",'Annual Parameters Source'!H57) -> 61319.1 | I61: =IF('Annual Parameters Source'!I57="","-",'Annual Parameters Source'!I57) -> 0.8088500027 | J61: =IF('Annual Parameters Source'!L57="","-",'Annual Parameters Source'!L57) -> 107.1309893 | K61: =IF('Annual Parameters Source'!M57="","-",'Annual Parameters Source'!M57) -> 25609 | L61: =IF('Annual Parameters Source'!N57="","-",'Annual Parameters Source'!N57) -> 0.906261082 | M61: =IF('Annual Parameters Source'!O57="","-",'Annual Parameters Source'!O57) -> 107.8818772 | N61: =IF('Annual Parameters Source'!P57="","-",'Annual Parameters Source'!P57) -> 31492.53658 | O61: =IF('Annual Parameters Source'!Q57="","-",'Annual Parameters Source'!Q57) -> 1.796946623 | P61: =IF('Annual Parameters Source'!R57="","-",'Annual Parameters Source'!R57) -> 142.3539514 | Q61: =IF('Annual Parameters Source'!S57="","-",'Annual Parameters Source'!S57) -> 75406.84915 | R61: =IF('Annual Parameters Source'!T57="","-",'Annual Parameters Source'!T57) -> 1.698675709 | S61: =IF('Annual Parameters Source'!U57="","-",'Annual Parameters Source'!U57) -> 128.7766121 | T61: =IF('Annual Parameters Source'!V57="","-",'Annual Parameters Source'!V57) -> 1.796946623 | U61: =IF('Annual Parameters Source'!W57="","-",'Annual Parameters Source'!W57) -> 1.796946623 | V61: =IF('Annual Parameters Source'!X57="","-",'Annual Parameters Source'!X57) -> 110.4121242 | W61: =IF('Annual Parameters Source'!Y57="","-",'Annual Parameters Source'!Y57) -> 110.4121242 | X61: =IF('Annual Parameters Source'!AD57="","-",'Annual Parameters Source'!AD57) -> 1.796946623 | Y61: =IF('Annual Parameters Source'!AE57="","-",'Annual Parameters Source'!AE57) -> 1.796946623 | Z61: =IF('Annual Parameters Source'!AF57="","-",'Annual Parameters Source'!AF57) -> 110.4121242 | AA61: =IF('Annual Parameters Source'!AG57="","-",'Annual Parameters Source'!AG57) -> 110.4121242 | AB61: =IF('Annual Parameters Source'!J57="","-",'Annual Parameters Source'!J57) -> - | AC61: =IF('Annual Parameters Source'!K57="","-",'Annual Parameters Source'!K57) -> -
B62: 2008 | D62: =IF('Annual Parameters Source'!D58="","-",'Annual Parameters Source'!D58/VLOOKUP($B$14,'Annual Parameters Source'!$B$40:$D$150,3,1)*100) -> 96.63600449 | E62: =IF('Annual Parameters Source'!E58="","-",VLOOKUP($B$16,'Annual Parameters Source'!$B$40:$AH$154,33,FALSE)/VLOOKUP($B$16,'Annual Parameters Source'!$B$40:$AH$154,4,FALSE)*'Annual Parameters Source'!E58) -> 1926735 | F62: =IF('Annual Parameters Source'!F58="","-",'Annual Parameters Source'!F58) -> -0.2257269713 | G62: =IF('Annual Parameters Source'!G58="","-",'Annual Parameters Source'!G58) -> 152.1609511 | H62: =IF('Annual Parameters Source'!H58="","-",'Annual Parameters Source'!H58) -> 61823.8 | I62: =IF('Annual Parameters Source'!I58="","-",'Annual Parameters Source'!I58) -> 0.823071441 | J62: =IF('Annual Parameters Source'!L58="","-",'Annual Parameters Source'!L58) -> 108.0127539 | K62: =IF('Annual Parameters Source'!M58="","-",'Annual Parameters Source'!M58) -> 25875 | L62: =IF('Annual Parameters Source'!N58="","-",'Annual Parameters Source'!N58) -> 1.038697333 | M62: =IF('Annual Parameters Source'!O58="","-",'Annual Parameters Source'!O58) -> 109.0024433 | N62: =IF('Annual Parameters Source'!P58="","-",'Annual Parameters Source'!P58) -> 31164.93972 | O62: =IF('Annual Parameters Source'!Q58="","-",'Annual Parameters Source'!Q58) -> -1.040236523 | P62: =IF('Annual Parameters Source'!R58="","-",'Annual Parameters Source'!R58) -> 140.8731336 | Q62: =IF('Annual Parameters Source'!S58="","-",'Annual Parameters Source'!S58) -> 74463.18841 | R62: =IF('Annual Parameters Source'!T58="","-",'Annual Parameters Source'!T58) -> -1.251425778 | S62: =IF('Annual Parameters Source'!U58="","-",'Annual Parameters Source'!U58) -> 127.1650683 | T62: =IF('Annual Parameters Source'!V58="","-",'Annual Parameters Source'!V58) -> -1.040236523 | U62: =IF('Annual Parameters Source'!W58="","-",'Annual Parameters Source'!W58) -> -1.040236523 | V62: =IF('Annual Parameters Source'!X58="","-",'Annual Parameters Source'!X58) -> 109.2635769 | W62: =IF('Annual Parameters Source'!Y58="","-",'Annual Parameters Source'!Y58) -> 109.2635769 | X62: =IF('Annual Parameters Source'!AD58="","-",'Annual Parameters Source'!AD58) -> -1.040236523 | Y62: =IF('Annual Parameters Source'!AE58="","-",'Annual Parameters Source'!AE58) -> -1.040236523 | Z62: =IF('Annual Parameters Source'!AF58="","-",'Annual Parameters Source'!AF58) -> 109.2635769 | AA62: =IF('Annual Parameters Source'!AG58="","-",'Annual Parameters Source'!AG58) -> 109.2635769 | AB62: =IF('Annual Parameters Source'!J58="","-",'Annual Parameters Source'!J58) -> - | AC62: =IF('Annual Parameters Source'!K58="","-",'Annual Parameters Source'!K58) -> -
B63: 2009 | D63: =IF('Annual Parameters Source'!D59="","-",'Annual Parameters Source'!D59/VLOOKUP($B$14,'Annual Parameters Source'!$B$40:$D$150,3,1)*100) -> 98.44326254 | E63: =IF('Annual Parameters Source'!E59="","-",VLOOKUP($B$16,'Annual Parameters Source'!$B$40:$AH$154,33,FALSE)/VLOOKUP($B$16,'Annual Parameters Source'!$B$40:$AH$154,4,FALSE)*'Annual Parameters Source'!E59) -> 1837817 | F63: =IF('Annual Parameters Source'!F59="","-",'Annual Parameters Source'!F59) -> -4.614957428 | G63: =IF('Annual Parameters Source'!G59="","-",'Annual Parameters Source'!G59) -> 145.138788 | H63: =IF('Annual Parameters Source'!H59="","-",'Annual Parameters Source'!H59) -> 62260.5 | I63: =IF('Annual Parameters Source'!I59="","-",'Annual Parameters Source'!I59) -> 0.7063622747 | J63: =IF('Annual Parameters Source'!L59="","-",'Annual Parameters Source'!L59) -> 108.7757152 | K63: =IF('Annual Parameters Source'!M59="","-",'Annual Parameters Source'!M59) -> 26042 | L63: =IF('Annual Parameters Source'!N59="","-",'Annual Parameters Source'!N59) -> 0.645410628 | M63: =IF('Annual Parameters Source'!O59="","-",'Annual Parameters Source'!O59) -> 109.7059567 | N63: =IF('Annual Parameters Source'!P59="","-",'Annual Parameters Source'!P59) -> 29518.18569 | O63: =IF('Annual Parameters Source'!Q59="","-",'Annual Parameters Source'!Q59) -> -5.283995552 | P63: =IF('Annual Parameters Source'!R59="","-",'Annual Parameters Source'!R59) -> 133.4294035 | Q63: =IF('Annual Parameters Source'!S59="","-",'Annual Parameters Source'!S59) -> 70571.26949 | R63: =IF('Annual Parameters Source'!T59="","-",'Annual Parameters Source'!T59) -> -5.2266348 | S63: =IF('Annual Parameters Source'!U59="","-",'Annual Parameters Source'!U59) -> 120.5186146 | T63: =IF('Annual Parameters Source'!V59="","-",'Annual Parameters Source'!V59) -> -5.283995552 | U63: =IF('Annual Parameters Source'!W59="","-",'Annual Parameters Source'!W59) -> -5.283995552 | V63: =IF('Annual Parameters Source'!X59="","-",'Annual Parameters Source'!X59) -> 103.4900944 | W63: =IF('Annual Parameters Source'!Y59="","-",'Annual Parameters Source'!Y59) -> 103.4900944 | X63: =IF('Annual Parameters Source'!AD59="","-",'Annual Parameters Source'!AD59) -> -5.283995552 | Y63: =IF('Annual Parameters Source'!AE59="","-",'Annual Parameters Source'!AE59) -> -5.283995552 | Z63: =IF('Annual Parameters Source'!AF59="","-",'Annual Parameters Source'!AF59) -> 103.4900944 | AA63: =IF('Annual Parameters Source'!AG59="","-",'Annual Parameters Source'!AG59) -> 103.4900944 | AB63: =IF('Annual Parameters Source'!J59="","-",'Annual Parameters Source'!J59) -> - | AC63: =IF('Annual Parameters Source'!K59="","-",'Annual Parameters Source'!K59) -> -
B64: 2010 | D64: =IF('Annual Parameters Source'!D60="","-",'Annual Parameters Source'!D60/VLOOKUP($B$14,'Annual Parameters Source'!$B$40:$D$150,3,1)*100) -> 100 | E64: =IF('Annual Parameters Source'!E60="","-",VLOOKUP($B$16,'Annual Parameters Source'!$B$40:$AH$154,33,FALSE)/VLOOKUP($B$16,'Annual Parameters Source'!$B$40:$AH$154,4,FALSE)*'Annual Parameters Source'!E60) -> 1878960 | F64: =IF('Annual Parameters Source'!F60="","-",'Annual Parameters Source'!F60) -> 2.238688618 | G64: =IF('Annual Parameters Source'!G60="","-",'Annual Parameters Source'!G60) -> 148.3879935 | H64: =IF('Annual Parameters Source'!H60="","-",'Annual Parameters Source'!H60) -> 62759.5 | I64: =IF('Annual Parameters Source'!I60="","-",'Annual Parameters Source'!I60) -> 0.8014712378 | J64: =IF('Annual Parameters Source'!L60="","-",'Annual Parameters Source'!L60) -> 109.6475213 | K64: =IF('Annual Parameters Source'!M60="","-",'Annual Parameters Source'!M60) -> 26240 | L64: =IF('Annual Parameters Source'!N60="","-",'Annual Parameters Source'!N60) -> 0.760310268 | M64: =IF('Annual Parameters Source'!O60="","-",'Annual Parameters Source'!O60) -> 110.5400623 | N64: =IF('Annual Parameters Source'!P60="","-",'Annual Parameters Source'!P60) -> 29939.05305 | O64: =IF('Annual Parameters Source'!Q60="","-",'Annual Parameters Source'!Q60) -> 1.425790083 | P64: =IF('Annual Parameters Source'!R60="","-",'Annual Parameters Source'!R60) -> 135.3318267 | Q64: =IF('Annual Parameters Source'!S60="","-",'Annual Parameters Source'!S60) -> 71606.70732 | R64: =IF('Annual Parameters Source'!T60="","-",'Annual Parameters Source'!T60) -> 1.467222904 | S64: =IF('Annual Parameters Source'!U60="","-",'Annual Parameters Source'!U60) -> 122.2868913 | T64: =IF('Annual Parameters Source'!V60="","-",'Annual Parameters Source'!V60) -> 1.425790083 | U64: =IF('Annual Parameters Source'!W60="","-",'Annual Parameters Source'!W60) -> 1.425790083 | V64: =IF('Annual Parameters Source'!X60="","-",'Annual Parameters Source'!X60) -> 104.9656459 | W64: =IF('Annual Parameters Source'!Y60="","-",'Annual Parameters Source'!Y60) -> 104.9656459 | X64: =IF('Annual Parameters Source'!AD60="","-",'Annual Parameters Source'!AD60) -> 1.425790083 | Y64: =IF('Annual Parameters Source'!AE60="","-",'Annual Parameters Source'!AE60) -> 1.425790083 | Z64: =IF('Annual Parameters Source'!AF60="","-",'Annual Parameters Source'!AF60) -> 104.9656459 | AA64: =IF('Annual Parameters Source'!AG60="","-",'Annual Parameters Source'!AG60) -> 104.9656459 | AB64: =IF('Annual Parameters Source'!J60="","-",'Annual Parameters Source'!J60) -> - | AC64: =IF('Annual Parameters Source'!K60="","-",'Annual Parameters Source'!K60) -> -
B65: 2011 | D65: =IF('Annual Parameters Source'!D61="","-",'Annual Parameters Source'!D61/VLOOKUP($B$14,'Annual Parameters Source'!$B$40:$D$150,3,1)*100) -> 102.1905698 | E65: =IF('Annual Parameters Source'!E61="","-",VLOOKUP($B$16,'Annual Parameters Source'!$B$40:$AH$154,33,FALSE)/VLOOKUP($B$16,'Annual Parameters Source'!$B$40:$AH$154,4,FALSE)*'Annual Parameters Source'!E61) -> 1900476 | F65: =IF('Annual Parameters Source'!F61="","-",'Annual Parameters Source'!F61) -> 1.145101546 | G65: =IF('Annual Parameters Source'!G61="","-",'Annual Parameters Source'!G61) -> 150.0871867 | H65: =IF('Annual Parameters Source'!H61="","-",'Annual Parameters Source'!H61) -> 63285.1 | I65: =IF('Annual Parameters Source'!I61="","-",'Annual Parameters Source'!I61) -> 0.8374827715 | J65: =IF('Annual Parameters Source'!L61="","-",'Annual Parameters Source'!L61) -> 110.5658004 | K65: =IF('Annual Parameters Source'!M61="","-",'Annual Parameters Source'!M61) -> 26409 | L65: =IF('Annual Parameters Source'!N61="","-",'Annual Parameters Source'!N61) -> 0.644054878 | M65: =IF('Annual Parameters Source'!O61="","-",'Annual Parameters Source'!O61) -> 111.252001 | N65: =IF('Annual Parameters Source'!P61="","-",'Annual Parameters Source'!P61) -> 30030.3863 | O65: =IF('Annual Parameters Source'!Q61="","-",'Annual Parameters Source'!Q61) -> 0.3050639163 | P65: =IF('Annual Parameters Source'!R61="","-",'Annual Parameters Source'!R61) -> 135.7446753 | Q65: =IF('Annual Parameters Source'!S61="","-",'Annual Parameters Source'!S61) -> 71963.19437 | R65: =IF('Annual Parameters Source'!T61="","-",'Annual Parameters Source'!T61) -> 0.4978403027 | S65: =IF('Annual Parameters Source'!U61="","-",'Annual Parameters Source'!U61) -> 122.8956848 | T65: =IF('Annual Parameters Source'!V61="","-",'Annual Parameters Source'!V61) -> 0.3050639163 | U65: =IF('Annual Parameters Source'!W61="","-",'Annual Parameters Source'!W61) -> 0.3050639163 | V65: =IF('Annual Parameters Source'!X61="","-",'Annual Parameters Source'!X61) -> 105.2858582 | W65: =IF('Annual Parameters Source'!Y61="","-",'Annual Parameters Source'!Y61) -> 105.2858582 | X65: =IF('Annual Parameters Source'!AD61="","-",'Annual Parameters Source'!AD61) -> 0.3050639163 | Y65: =IF('Annual Parameters Source'!AE61="","-",'Annual Parameters Source'!AE61) -> 0.3050639163 | Z65: =IF('Annual Parameters Source'!AF61="","-",'Annual Parameters Source'!AF61) -> 105.2858582 | AA65: =IF('Annual Parameters Source'!AG61="","-",'Annual Parameters Source'!AG61) -> 105.2858582 | AB65: =IF('Annual Parameters Source'!J61="","-",'Annual Parameters Source'!J61) -> - | AC65: =IF('Annual Parameters Source'!K61="","-",'Annual Parameters Source'!K61) -> -
B66: 2012 | D66: =IF('Annual Parameters Source'!D62="","-",'Annual Parameters Source'!D62/VLOOKUP($B$14,'Annual Parameters Source'!$B$40:$D$150,3,1)*100) -> 103.7620925 | E66: =IF('Annual Parameters Source'!E62="","-",VLOOKUP($B$16,'Annual Parameters Source'!$B$40:$AH$154,33,FALSE)/VLOOKUP($B$16,'Annual Parameters Source'!$B$40:$AH$154,4,FALSE)*'Annual Parameters Source'!E62) -> 1929229 | F66: =IF('Annual Parameters Source'!F62="","-",'Annual Parameters Source'!F62) -> 1.512936759 | G66: =IF('Annual Parameters Source'!G62="","-",'Annual Parameters Source'!G62) -> 152.3579109 | H66: =IF('Annual Parameters Source'!H62="","-",'Annual Parameters Source'!H62) -> 63710.8 | I66: =IF('Annual Parameters Source'!I62="","-",'Annual Parameters Source'!I62) -> 0.6726701862 | J66: =IF('Annual Parameters Source'!L62="","-",'Annual Parameters Source'!L62) -> 111.3095436 | K66: =IF('Annual Parameters Source'!M62="","-",'Annual Parameters Source'!M62) -> 26620 | L66: =IF('Annual Parameters Source'!N62="","-",'Annual Parameters Source'!N62) -> 0.7989700481 | M66: =IF('Annual Parameters Source'!O62="","-",'Annual Parameters Source'!O62) -> 112.1408712 | N66: =IF('Annual Parameters Source'!P62="","-",'Annual Parameters Source'!P62) -> 30281.03555 | O66: =IF('Annual Parameters Source'!Q62="","-",'Annual Parameters Source'!Q62) -> 0.8346521169 | P66: =IF('Annual Parameters Source'!R62="","-",'Annual Parameters Source'!R62) -> 136.8776711 | Q66: =IF('Annual Parameters Source'!S62="","-",'Annual Parameters Source'!S62) -> 72472.9151 | R66: =IF('Annual Parameters Source'!T62="","-",'Annual Parameters Source'!T62) -> 0.7083075458 | S66: =IF('Annual Parameters Source'!U62="","-",'Annual Parameters Source'!U62) -> 123.7661642 | T66: =IF('Annual Parameters Source'!V62="","-",'Annual Parameters Source'!V62) -> 0.8346521169 | U66: =IF('Annual Parameters Source'!W62="","-",'Annual Parameters Source'!W62) -> 0.8346521169 | V66: =IF('Annual Parameters Source'!X62="","-",'Annual Parameters Source'!X62) -> 106.1646288 | W66: =IF('Annual Parameters Source'!Y62="","-",'Annual Parameters Source'!Y62) -> 106.1646288 | X66: =IF('Annual Parameters Source'!AD62="","-",'Annual Parameters Source'!AD62) -> 0.8346521169 | Y66: =IF('Annual Parameters Source'!AE62="","-",'Annual Parameters Source'!AE62) -> 0.8346521169 | Z66: =IF('Annual Parameters Source'!AF62="","-",'Annual Parameters Source'!AF62) -> 106.1646288 | AA66: =IF('Annual Parameters Source'!AG62="","-",'Annual Parameters Source'!AG62) -> 106.1646288 | AB66: =IF('Annual Parameters Source'!J62="","-",'Annual Parameters Source'!J62) -> - | AC66: =IF('Annual Parameters Source'!K62="","-",'Annual Parameters Source'!K62) -> -
B67: 2013 | D67: =IF('Annual Parameters Source'!D63="","-",'Annual Parameters Source'!D63/VLOOKUP($B$14,'Annual Parameters Source'!$B$40:$D$150,3,1)*100) -> 105.9569458 | E67: =IF('Annual Parameters Source'!E63="","-",VLOOKUP($B$16,'Annual Parameters Source'!$B$40:$AH$154,33,FALSE)/VLOOKUP($B$16,'Annual Parameters Source'!$B$40:$AH$154,4,FALSE)*'Annual Parameters Source'!E63) -> 1963807 | F67: =IF('Annual Parameters Source'!F63="","-",'Annual Parameters Source'!F63) -> 1.792322218 | G67: =IF('Annual Parameters Source'!G63="","-",'Annual Parameters Source'!G63) -> 155.0886556 | H67: =IF('Annual Parameters Source'!H63="","-",'Annual Parameters Source'!H63) -> 64138.7 | I67: =IF('Annual Parameters Source'!I63="","-",'Annual Parameters Source'!I63) -> 0.6716286721 | J67: =IF('Annual Parameters Source'!L63="","-",'Annual Parameters Source'!L63) -> 112.0571304 | K67: =IF('Annual Parameters Source'!M63="","-",'Annual Parameters Source'!M63) -> 26663 | L67: =IF('Annual Parameters Source'!N63="","-",'Annual Parameters Source'!N63) -> 0.1615326822 | M67: =IF('Annual Parameters Source'!O63="","-",'Annual Parameters Source'!O63) -> 112.3220153 | N67: =IF('Annual Parameters Source'!P63="","-",'Annual Parameters Source'!P63) -> 30618.12915 | O67: =IF('Annual Parameters Source'!Q63="","-",'Annual Parameters Source'!Q63) -> 1.113216862 | P67: =IF('Annual Parameters Source'!R63="","-",'Annual Parameters Source'!R63) -> 138.4014164 | Q67: =IF('Annual Parameters Source'!S63="","-",'Annual Parameters Source'!S63) -> 73652.88977 | R67: =IF('Annual Parameters Source'!T63="","-",'Annual Parameters Source'!T63) -> 1.628159526 | S67: =IF('Annual Parameters Source'!U63="","-",'Annual Parameters Source'!U63) -> 125.7812748 | T67: =IF('Annual Parameters Source'!V63="","-",'Annual Parameters Source'!V63) -> 1.113216862 | U67: =IF('Annual Parameters Source'!W63="","-",'Annual Parameters Source'!W63) -> 1.113216862 | V67: =IF('Annual Parameters Source'!X63="","-",'Annual Parameters Source'!X63) -> 107.3464714 | W67: =IF('Annual Parameters Source'!Y63="","-",'Annual Parameters Source'!Y63) -> 107.3464714 | X67: =IF('Annual Parameters Source'!AD63="","-",'Annual Parameters Source'!AD63) -> 1.113216862 | Y67: =IF('Annual Parameters Source'!AE63="","-",'Annual Parameters Source'!AE63) -> 1.113216862 | Z67: =IF('Annual Parameters Source'!AF63="","-",'Annual Parameters Source'!AF63) -> 107.3464714 | AA67: =IF('Annual Parameters Source'!AG63="","-",'Annual Parameters Source'!AG63) -> 107.3464714 | AB67: =IF('Annual Parameters Source'!J63="","-",'Annual Parameters Source'!J63) -> - | AC67: =IF('Annual Parameters Source'!K63="","-",'Annual Parameters Source'!K63) -> -
B68: 2014 | D68: =IF('Annual Parameters Source'!D64="","-",'Annual Parameters Source'!D64/VLOOKUP($B$14,'Annual Parameters Source'!$B$40:$D$150,3,1)*100) -> 107.353118 | E68: =IF('Annual Parameters Source'!E64="","-",VLOOKUP($B$16,'Annual Parameters Source'!$B$40:$AH$154,33,FALSE)/VLOOKUP($B$16,'Annual Parameters Source'!$B$40:$AH$154,4,FALSE)*'Annual Parameters Source'!E64) -> 2026566 | F68: =IF('Annual Parameters Source'!F64="","-",'Annual Parameters Source'!F64) -> 3.195782478 | G68: =IF('Annual Parameters Source'!G64="","-",'Annual Parameters Source'!G64) -> 160.0449517 | H68: =IF('Annual Parameters Source'!H64="","-",'Annual Parameters Source'!H64) -> 64619.5 | I68: =IF('Annual Parameters Source'!I64="","-",'Annual Parameters Source'!I64) -> 0.7496254212 | J68: =IF('Annual Parameters Source'!L64="","-",'Annual Parameters Source'!L64) -> 112.8971391 | K68: =IF('Annual Parameters Source'!M64="","-",'Annual Parameters Source'!M64) -> 26734 | L68: =IF('Annual Parameters Source'!N64="","-",'Annual Parameters Source'!N64) -> 0.2662866144 | M68: =IF('Annual Parameters Source'!O64="","-",'Annual Parameters Source'!O64) -> 112.6211138 | N68: =IF('Annual Parameters Source'!P64="","-",'Annual Parameters Source'!P64) -> 31361.524 | O68: =IF('Annual Parameters Source'!Q64="","-",'Annual Parameters Source'!Q64) -> 2.427956477 | P68: =IF('Annual Parameters Source'!R64="","-",'Annual Parameters Source'!R64) -> 141.7617426 | Q68: =IF('Annual Parameters Source'!S64="","-",'Annual Parameters Source'!S64) -> 75804.81783 | R68: =IF('Annual Parameters Source'!T64="","-",'Annual Parameters Source'!T64) -> 2.921715725 | S68: =IF('Annual Parameters Source'!U64="","-",'Annual Parameters Source'!U64) -> 129.4562461 | T68: =IF('Annual Parameters Source'!V64="","-",'Annual Parameters Source'!V64) -> 2.427956477 | U68: =IF('Annual Parameters Source'!W64="","-",'Annual Parameters Source'!W64) -> 2.427956477 | V68: =IF('Annual Parameters Source'!X64="","-",'Annual Parameters Source'!X64) -> 109.952797 | W68: =IF('Annual Parameters Source'!Y64="","-",'Annual Parameters Source'!Y64) -> 109.952797 | X68: =IF('Annual Parameters Source'!AD64="","-",'Annual Parameters Source'!AD64) -> 2.427956477 | Y68: =IF('Annual Parameters Source'!AE64="","-",'Annual Parameters Source'!AE64) -> 2.427956477 | Z68: =IF('Annual Parameters Source'!AF64="","-",'Annual Parameters Source'!AF64) -> 109.952797 | AA68: =IF('Annual Parameters Source'!AG64="","-",'Annual Parameters Source'!AG64) -> 109.952797 | AB68: =IF('Annual Parameters Source'!J64="","-",'Annual Parameters Source'!J64) -> - | AC68: =IF('Annual Parameters Source'!K64="","-",'Annual Parameters Source'!K64) -> -
B69: 2015 | D69: =IF('Annual Parameters Source'!D65="","-",'Annual Parameters Source'!D65/VLOOKUP($B$14,'Annual Parameters Source'!$B$40:$D$150,3,1)*100) -> 108.0648839 | E69: =IF('Annual Parameters Source'!E65="","-",VLOOKUP($B$16,'Annual Parameters Source'!$B$40:$AH$154,33,FALSE)/VLOOKUP($B$16,'Annual Parameters Source'!$B$40:$AH$154,4,FALSE)*'Annual Parameters Source'!E65) -> 2071561 | F69: =IF('Annual Parameters Source'!F65="","-",'Annual Parameters Source'!F65) -> 2.220258309 | G69: =IF('Annual Parameters Source'!G65="","-",'Annual Parameters Source'!G65) -> 163.598363 | H69: =IF('Annual Parameters Source'!H65="","-",'Annual Parameters Source'!H65) -> 65088.1 | I69: =IF('Annual Parameters Source'!I65="","-",'Annual Parameters Source'!I65) -> 0.7251680994 | J69: =IF('Annual Parameters Source'!L65="","-",'Annual Parameters Source'!L65) -> 113.7158332 | K69: =IF('Annual Parameters Source'!M65="","-",'Annual Parameters Source'!M65) -> 27046 | L69: =IF('Annual Parameters Source'!N65="","-",'Annual Parameters Source'!N65) -> 1.167053191 | M69: =IF('Annual Parameters Source'!O65="","-",'Annual Parameters Source'!O65) -> 113.9354621 | N69: =IF('Annual Parameters Source'!P65="","-",'Annual Parameters Source'!P65) -> 31827.03136 | O69: =IF('Annual Parameters Source'!Q65="","-",'Annual Parameters Source'!Q65) -> 1.484326348 | P69: =IF('Annual Parameters Source'!R65="","-",'Annual Parameters Source'!R65) -> 143.8659494 | Q69: =IF('Annual Parameters Source'!S65="","-",'Annual Parameters Source'!S65) -> 76593.98802 | R69: =IF('Annual Parameters Source'!T65="","-",'Annual Parameters Source'!T65) -> 1.041055447 | S69: =IF('Annual Parameters Source'!U65="","-",'Annual Parameters Source'!U65) -> 130.8039574 | T69: =IF('Annual Parameters Source'!V65="","-",'Annual Parameters Source'!V65) -> 1.484326348 | U69: =IF('Annual Parameters Source'!W65="","-",'Annual Parameters Source'!W65) -> 1.484326348 | V69: =IF('Annual Parameters Source'!X65="","-",'Annual Parameters Source'!X65) -> 111.5848553 | W69: =IF('Annual Parameters Source'!Y65="","-",'Annual Parameters Source'!Y65) -> 111.5848553 | X69: =IF('Annual Parameters Source'!AD65="","-",'Annual Parameters Source'!AD65) -> 1.484326348 | Y69: =IF('Annual Parameters Source'!AE65="","-",'Annual Parameters Source'!AE65) -> 1.484326348 | Z69: =IF('Annual Parameters Source'!AF65="","-",'Annual Parameters Source'!AF65) -> 111.5848553 | AA69: =IF('Annual Parameters Source'!AG65="","-",'Annual Parameters Source'!AG65) -> 111.5848553 | AB69: =IF('Annual Parameters Source'!J65="","-",'Annual Parameters Source'!J65) -> - | AC69: =IF('Annual Parameters Source'!K65="","-",'Annual Parameters Source'!K65) -> -
B70: 2016 | D70: =IF('Annual Parameters Source'!D66="","-",'Annual Parameters Source'!D66/VLOOKUP($B$14,'Annual Parameters Source'!$B$40:$D$150,3,1)*100) -> 110.1849818 | E70: =IF('Annual Parameters Source'!E66="","-",VLOOKUP($B$16,'Annual Parameters Source'!$B$40:$AH$154,33,FALSE)/VLOOKUP($B$16,'Annual Parameters Source'!$B$40:$AH$154,4,FALSE)*'Annual Parameters Source'!E66) -> 2111357 | F70: =IF('Annual Parameters Source'!F66="","-",'Annual Parameters Source'!F66) -> 1.921063391 | G70: =IF('Annual Parameters Source'!G66="","-",'Annual Parameters Source'!G66) -> 166.7411913 | H70: =IF('Annual Parameters Source'!H66="","-",'Annual Parameters Source'!H66) -> 65607.1 | I70: =IF('Annual Parameters Source'!I66="","-",'Annual Parameters Source'!I66) -> 0.7973807808 | J70: =IF('Annual Parameters Source'!L66="","-",'Annual Parameters Source'!L66) -> 114.6225813 | K70: =IF('Annual Parameters Source'!M66="","-",'Annual Parameters Source'!M66) -> 27109 | L70: =IF('Annual Parameters Source'!N66="","-",'Annual Parameters Source'!N66) -> 0.2329364786 | M70: =IF('Annual Parameters Source'!O66="","-",'Annual Parameters Source'!O66) -> 114.2008594 | N70: =IF('Annual Parameters Source'!P66="","-",'Annual Parameters Source'!P66) -> 32181.83703 | O70: =IF('Annual Parameters Source'!Q66="","-",'Annual Parameters Source'!Q66) -> 1.114793462 | P70: =IF('Annual Parameters Source'!R66="","-",'Annual Parameters Source'!R66) -> 145.4697576 | Q70: =IF('Annual Parameters Source'!S66="","-",'Annual Parameters Source'!S66) -> 77883.98687 | R70: =IF('Annual Parameters Source'!T66="","-",'Annual Parameters Source'!T66) -> 1.684203788 | S70: =IF('Annual Parameters Source'!U66="","-",'Annual Parameters Source'!U66) -> 133.0069626 | T70: =IF('Annual Parameters Source'!V66="","-",'Annual Parameters Source'!V66) -> 1.114793462 | U70: =IF('Annual Parameters Source'!W66="","-",'Annual Parameters Source'!W66) -> 1.114793462 | V70: =IF('Annual Parameters Source'!X66="","-",'Annual Parameters Source'!X66) -> 112.828796 | W70: =IF('Annual Parameters Source'!Y66="","-",'Annual Parameters Source'!Y66) -> 112.828796 | X70: =IF('Annual Parameters Source'!AD66="","-",'Annual Parameters Source'!AD66) -> 1.114793462 | Y70: =IF('Annual Parameters Source'!AE66="","-",'Annual Parameters Source'!AE66) -> 1.114793462 | Z70: =IF('Annual Parameters Source'!AF66="","-",'Annual Parameters Source'!AF66) -> 112.828796 | AA70: =IF('Annual Parameters Source'!AG66="","-",'Annual Parameters Source'!AG66) -> 112.828796 | AB70: =IF('Annual Parameters Source'!J66="","-",'Annual Parameters Source'!J66) -> - | AC70: =IF('Annual Parameters Source'!K66="","-",'Annual Parameters Source'!K66) -> -
B71: 2017 | D71: =IF('Annual Parameters Source'!D67="","-",'Annual Parameters Source'!D67/VLOOKUP($B$14,'Annual Parameters Source'!$B$40:$D$150,3,1)*100) -> 112.2323969 | E71: =IF('Annual Parameters Source'!E67="","-",VLOOKUP($B$16,'Annual Parameters Source'!$B$40:$AH$154,33,FALSE)/VLOOKUP($B$16,'Annual Parameters Source'!$B$40:$AH$154,4,FALSE)*'Annual Parameters Source'!E67) -> 2167415 | F71: =IF('Annual Parameters Source'!F67="","-",'Annual Parameters Source'!F67) -> 2.655069702 | G71: =IF('Annual Parameters Source'!G67="","-",'Annual Parameters Source'!G67) -> 171.1682861 | H71: =IF('Annual Parameters Source'!H67="","-",'Annual Parameters Source'!H67) -> 65966 | I71: =IF('Annual Parameters Source'!I67="","-",'Annual Parameters Source'!I67) -> 0.547044451 | J71: =IF('Annual Parameters Source'!L67="","-",'Annual Parameters Source'!L67) -> 115.2496178 | K71: =IF('Annual Parameters Source'!M67="","-",'Annual Parameters Source'!M67) -> 27226 | L71: =IF('Annual Parameters Source'!N67="","-",'Annual Parameters Source'!N67) -> 0.4315909845 | M71: =IF('Annual Parameters Source'!O67="","-",'Annual Parameters Source'!O67) -> 114.69374 | N71: =IF('Annual Parameters Source'!P67="","-",'Annual Parameters Source'!P67) -> 32856.54731 | O71: =IF('Annual Parameters Source'!Q67="","-",'Annual Parameters Source'!Q67) -> 2.096556157 | P71: =IF('Annual Parameters Source'!R67="","-",'Annual Parameters Source'!R67) -> 148.5196128 | Q71: =IF('Annual Parameters Source'!S67="","-",'Annual Parameters Source'!S67) -> 79608.27885 | R71: =IF('Annual Parameters Source'!T67="","-",'Annual Parameters Source'!T67) -> 2.213923622 | S71: =IF('Annual Parameters Source'!U67="","-",'Annual Parameters Source'!U67) -> 135.9516351 | T71: =IF('Annual Parameters Source'!V67="","-",'Annual Parameters Source'!V67) -> 2.096556157 | U71: =IF('Annual Parameters Source'!W67="","-",'Annual Parameters Source'!W67) -> 2.096556157 | V71: =IF('Annual Parameters Source'!X67="","-",'Annual Parameters Source'!X67) -> 115.1943151 | W71: =IF('Annual Parameters Source'!Y67="","-",'Annual Parameters Source'!Y67) -> 115.1943151 | X71: =IF('Annual Parameters Source'!AD67="","-",'Annual Parameters Source'!AD67) -> 2.096556157 | Y71: =IF('Annual Parameters Source'!AE67="","-",'Annual Parameters Source'!AE67) -> 2.096556157 | Z71: =IF('Annual Parameters Source'!AF67="","-",'Annual Parameters Source'!AF67) -> 115.1943151 | AA71: =IF('Annual Parameters Source'!AG67="","-",'Annual Parameters Source'!AG67) -> 115.1943151 | AB71: =IF('Annual Parameters Source'!J67="","-",'Annual Parameters Source'!J67) -> - | AC71: =IF('Annual Parameters Source'!K67="","-",'Annual Parameters Source'!K67) -> -
B72: 2018 | D72: =IF('Annual Parameters Source'!D68="","-",'Annual Parameters Source'!D68/VLOOKUP($B$14,'Annual Parameters Source'!$B$40:$D$150,3,1)*100) -> 114.3906325 | E72: =IF('Annual Parameters Source'!E68="","-",VLOOKUP($B$16,'Annual Parameters Source'!$B$40:$AH$154,33,FALSE)/VLOOKUP($B$16,'Annual Parameters Source'!$B$40:$AH$154,4,FALSE)*'Annual Parameters Source'!E68) -> 2197841 | F72: =IF('Annual Parameters Source'!F68="","-",'Annual Parameters Source'!F68) -> 1.403792075 | G72: =IF('Annual Parameters Source'!G68="","-",'Annual Parameters Source'!G68) -> 173.571133 | H72: =IF('Annual Parameters Source'!H68="","-",'Annual Parameters Source'!H68) -> 66288.9 | I72: =IF('Annual Parameters Source'!I68="","-",'Annual Parameters Source'!I68) -> 0.4894945881 | J72: =IF('Annual Parameters Source'!L68="","-",'Annual Parameters Source'!L68) -> 115.8137585 | K72: =IF('Annual Parameters Source'!M68="","-",'Annual Parameters Source'!M68) -> 27576 | L72: =IF('Annual Parameters Source'!N68="","-",'Annual Parameters Source'!N68) -> 1.285535885 | M72: =IF('Annual Parameters Source'!O68="","-",'Annual Parameters Source'!O68) -> 116.1681692 | N72: =IF('Annual Parameters Source'!P68="","-",'Annual Parameters Source'!P68) -> 33155.49059 | O72: =IF('Annual Parameters Source'!Q68="","-",'Annual Parameters Source'!Q68) -> 0.9098438504 | P72: =IF('Annual Parameters Source'!R68="","-",'Annual Parameters Source'!R68) -> 149.8709094 | Q72: =IF('Annual Parameters Source'!S68="","-",'Annual Parameters Source'!S68) -> 79701.2257 | R72: =IF('Annual Parameters Source'!T68="","-",'Annual Parameters Source'!T68) -> 0.1167552593 | S72: =IF('Annual Parameters Source'!U68="","-",'Annual Parameters Source'!U68) -> 136.1103658 | T72: =IF('Annual Parameters Source'!V68="","-",'Annual Parameters Source'!V68) -> 0.9098438504 | U72: =IF('Annual Parameters Source'!W68="","-",'Annual Parameters Source'!W68) -> 0.9098438504 | V72: =IF('Annual Parameters Source'!X68="","-",'Annual Parameters Source'!X68) -> 116.2424035 | W72: =IF('Annual Parameters Source'!Y68="","-",'Annual Parameters Source'!Y68) -> 116.2424035 | X72: =IF('Annual Parameters Source'!AD68="","-",'Annual Parameters Source'!AD68) -> 0.9098438504 | Y72: =IF('Annual Parameters Source'!AE68="","-",'Annual Parameters Source'!AE68) -> 0.9098438504 | Z72: =IF('Annual Parameters Source'!AF68="","-",'Annual Parameters Source'!AF68) -> 116.2424035 | AA72: =IF('Annual Parameters Source'!AG68="","-",'Annual Parameters Source'!AG68) -> 116.2424035 | AB72: =IF('Annual Parameters Source'!J68="","-",'Annual Parameters Source'!J68) -> - | AC72: =IF('Annual Parameters Source'!K68="","-",'Annual Parameters Source'!K68) -> -
B73: 2019 | D73: =IF('Annual Parameters Source'!D69="","-",'Annual Parameters Source'!D69/VLOOKUP($B$14,'Annual Parameters Source'!$B$40:$D$150,3,1)*100) -> 116.8093377 | E73: =IF('Annual Parameters Source'!E69="","-",VLOOKUP($B$16,'Annual Parameters Source'!$B$40:$AH$154,33,FALSE)/VLOOKUP($B$16,'Annual Parameters Source'!$B$40:$AH$154,4,FALSE)*'Annual Parameters Source'!E69) -> 2233921 | F73: =IF('Annual Parameters Source'!F69="","-",'Annual Parameters Source'!F69) -> 1.641611017 | G73: =IF('Annual Parameters Source'!G69="","-",'Annual Parameters Source'!G69) -> 176.4204958 | H73: =IF('Annual Parameters Source'!H69="","-",'Annual Parameters Source'!H69) -> 66630.7 | I73: =IF('Annual Parameters Source'!I69="","-",'Annual Parameters Source'!I69) -> 0.5156217708 | J73: =IF('Annual Parameters Source'!L69="","-",'Annual Parameters Source'!L69) -> 116.4109194 | K73: =IF('Annual Parameters Source'!M69="","-",'Annual Parameters Source'!M69) -> 27824 | L73: =IF('Annual Parameters Source'!N69="","-",'Annual Parameters Source'!N69) -> 0.8993327531 | M73: =IF('Annual Parameters Source'!O69="","-",'Annual Parameters Source'!O69) -> 117.2129076 | N73: =IF('Annual Parameters Source'!P69="","-",'Annual Parameters Source'!P69) -> 33526.90276 | O73: =IF('Annual Parameters Source'!Q69="","-",'Annual Parameters Source'!Q69) -> 1.120213184 | P73: =IF('Annual Parameters Source'!R69="","-",'Annual Parameters Source'!R69) -> 151.5497831 | Q73: =IF('Annual Parameters Source'!S69="","-",'Annual Parameters Source'!S69) -> 80287.5575 | R73: =IF('Annual Parameters Source'!T69="","-",'Annual Parameters Source'!T69) -> 0.735662213 | S73: =IF('Annual Parameters Source'!U69="","-",'Annual Parameters Source'!U69) -> 137.1116783 | T73: =IF('Annual Parameters Source'!V69="","-",'Annual Parameters Source'!V69) -> 1.120213184 | U73: =IF('Annual Parameters Source'!W69="","-",'Annual Parameters Source'!W69) -> 1.120213184 | V73: =IF('Annual Parameters Source'!X69="","-",'Annual Parameters Source'!X69) -> 117.5445662 | W73: =IF('Annual Parameters Source'!Y69="","-",'Annual Parameters Source'!Y69) -> 117.5445662 | X73: =IF('Annual Parameters Source'!AD69="","-",'Annual Parameters Source'!AD69) -> 1.120213184 | Y73: =IF('Annual Parameters Source'!AE69="","-",'Annual Parameters Source'!AE69) -> 1.120213184 | Z73: =IF('Annual Parameters Source'!AF69="","-",'Annual Parameters Source'!AF69) -> 117.5445662 | AA73: =IF('Annual Parameters Source'!AG69="","-",'Annual Parameters Source'!AG69) -> 117.5445662 | AB73: =IF('Annual Parameters Source'!J69="","-",'Annual Parameters Source'!J69) -> 0.62077909 | AC73: =IF('Annual Parameters Source'!K69="","-",'Annual Parameters Source'!K69) -> 0.57664759
B74: 2020 | D74: =IF('Annual Parameters Source'!D70="","-",'Annual Parameters Source'!D70/VLOOKUP($B$14,'Annual Parameters Source'!$B$40:$D$150,3,1)*100) -> 123.0040915 | E74: =IF('Annual Parameters Source'!E70="","-",VLOOKUP($B$16,'Annual Parameters Source'!$B$40:$AH$154,33,FALSE)/VLOOKUP($B$16,'Annual Parameters Source'!$B$40:$AH$154,4,FALSE)*'Annual Parameters Source'!E70) -> 2002489 | F74: =IF('Annual Parameters Source'!F70="","-",'Annual Parameters Source'!F70) -> -10.35990082 | G74: =IF('Annual Parameters Source'!G70="","-",'Annual Parameters Source'!G70) -> 158.1435074 | H74: =IF('Annual Parameters Source'!H70="","-",'Annual Parameters Source'!H70) -> 66744.1 | I74: =IF('Annual Parameters Source'!I70="","-",'Annual Parameters Source'!I70) -> 0.1701918185 | J74: =IF('Annual Parameters Source'!L70="","-",'Annual Parameters Source'!L70) -> 116.6090413 | K74: =IF('Annual Parameters Source'!M70="","-",'Annual Parameters Source'!M70) -> 27893 | L74: =IF('Annual Parameters Source'!N70="","-",'Annual Parameters Source'!N70) -> 0.2479873491 | M74: =IF('Annual Parameters Source'!O70="","-",'Annual Parameters Source'!O70) -> 117.5035808 | N74: =IF('Annual Parameters Source'!P70="","-",'Annual Parameters Source'!P70) -> 30002.48711 | O74: =IF('Annual Parameters Source'!Q70="","-",'Annual Parameters Source'!Q70) -> -10.51220173 | P74: =IF('Annual Parameters Source'!R70="","-",'Annual Parameters Source'!R70) -> 135.6185641 | Q74: =IF('Annual Parameters Source'!S70="","-",'Annual Parameters Source'!S70) -> 71791.81157 | R74: =IF('Annual Parameters Source'!T70="","-",'Annual Parameters Source'!T70) -> -10.58164702 | S74: =IF('Annual Parameters Source'!U70="","-",'Annual Parameters Source'!U70) -> 122.6030045 | T74: =IF('Annual Parameters Source'!V70="","-",'Annual Parameters Source'!V70) -> 0.06252627946 | U74: =IF('Annual Parameters Source'!W70="","-",'Annual Parameters Source'!W70) -> 0.06252627946 | V74: =IF('Annual Parameters Source'!X70="","-",'Annual Parameters Source'!X70) -> 117.6180624 | W74: =IF('Annual Parameters Source'!Y70="","-",'Annual Parameters Source'!Y70) -> 117.6180624 | X74: =IF('Annual Parameters Source'!AD70="","-",'Annual Parameters Source'!AD70) -> 0.06252627946 | Y74: =IF('Annual Parameters Source'!AE70="","-",'Annual Parameters Source'!AE70) -> 0.06252627946 | Z74: =IF('Annual Parameters Source'!AF70="","-",'Annual Parameters Source'!AF70) -> 117.6180624 | AA74: =IF('Annual Parameters Source'!AG70="","-",'Annual Parameters Source'!AG70) -> 117.6180624 | AB74: =IF('Annual Parameters Source'!J70="","-",'Annual Parameters Source'!J70) -> 0.62865037 | AC74: =IF('Annual Parameters Source'!K70="","-",'Annual Parameters Source'!K70) -> 0.44828952
B75: 2021 | D75: =IF('Annual Parameters Source'!D71="","-",'Annual Parameters Source'!D71/VLOOKUP($B$14,'Annual Parameters Source'!$B$40:$D$150,3,1)*100) -> 122.6116599 | E75: =IF('Annual Parameters Source'!E71="","-",VLOOKUP($B$16,'Annual Parameters Source'!$B$40:$AH$154,33,FALSE)/VLOOKUP($B$16,'Annual Parameters Source'!$B$40:$AH$154,4,FALSE)*'Annual Parameters Source'!E71) -> 2176203 | F75: =IF('Annual Parameters Source'!F71="","-",'Annual Parameters Source'!F71) -> 8.674904082 | G75: =IF('Annual Parameters Source'!G71="","-",'Annual Parameters Source'!G71) -> 171.862305 | H75: =IF('Annual Parameters Source'!H71="","-",'Annual Parameters Source'!H71) -> 66983.5 | I75: =IF('Annual Parameters Source'!I71="","-",'Annual Parameters Source'!I71) -> 0.3586833892 | J75: =IF('Annual Parameters Source'!L71="","-",'Annual Parameters Source'!L71) -> 117.0272985 | K75: =IF('Annual Parameters Source'!M71="","-",'Annual Parameters Source'!M71) -> 28119 | L75: =IF('Annual Parameters Source'!N71="","-",'Annual Parameters Source'!N71) -> 0.8102391281 | M75: =IF('Annual Parameters Source'!O71="","-",'Annual Parameters Source'!O71) -> 118.4556407 | N75: =IF('Annual Parameters Source'!P71="","-",'Annual Parameters Source'!P71) -> 32488.64273 | O75: =IF('Annual Parameters Source'!Q71="","-",'Annual Parameters Source'!Q71) -> 8.286498399 | P75: =IF('Annual Parameters Source'!R71="","-",'Annual Parameters Source'!R71) -> 146.8565943 | Q75: =IF('Annual Parameters Source'!S71="","-",'Annual Parameters Source'!S71) -> 77392.61709 | R75: =IF('Annual Parameters Source'!T71="","-",'Annual Parameters Source'!T71) -> 7.801454517 | S75: =IF('Annual Parameters Source'!U71="","-",'Annual Parameters Source'!U71) -> 132.1678221 | T75: =IF('Annual Parameters Source'!V71="","-",'Annual Parameters Source'!V71) -> 0.06248720853 | U75: =IF('Annual Parameters Source'!W71="","-",'Annual Parameters Source'!W71) -> 0.06248720853 | V75: =IF('Annual Parameters Source'!X71="","-",'Annual Parameters Source'!X71) -> 117.6915587 | W75: =IF('Annual Parameters Source'!Y71="","-",'Annual Parameters Source'!Y71) -> 117.6915587 | X75: =IF('Annual Parameters Source'!AD71="","-",'Annual Parameters Source'!AD71) -> 0.06248720853 | Y75: =IF('Annual Parameters Source'!AE71="","-",'Annual Parameters Source'!AE71) -> 0.06248720853 | Z75: =IF('Annual Parameters Source'!AF71="","-",'Annual Parameters Source'!AF71) -> 117.6915587 | AA75: =IF('Annual Parameters Source'!AG71="","-",'Annual Parameters Source'!AG71) -> 117.6915587 | AB75: =IF('Annual Parameters Source'!J71="","-",'Annual Parameters Source'!J71) -> 0.61898929 | AC75: =IF('Annual Parameters Source'!K71="","-",'Annual Parameters Source'!K71) -> 0.36183485
B76: 2022 | D76: =IF('Annual Parameters Source'!D72="","-",'Annual Parameters Source'!D72/VLOOKUP($B$14,'Annual Parameters Source'!$B$40:$D$150,3,1)*100) -> 128.9119834 | E76: =IF('Annual Parameters Source'!E72="","-",VLOOKUP($B$16,'Annual Parameters Source'!$B$40:$AH$154,33,FALSE)/VLOOKUP($B$16,'Annual Parameters Source'!$B$40:$AH$154,4,FALSE)*'Annual Parameters Source'!E72) -> 2270764 | F76: =IF('Annual Parameters Source'!F72="","-",'Annual Parameters Source'!F72) -> 4.345228823 | G76: =IF('Annual Parameters Source'!G72="","-",'Annual Parameters Source'!G72) -> 179.3301154 | H76: =IF('Annual Parameters Source'!H72="","-",'Annual Parameters Source'!H72) -> 67602.8 | I76: =IF('Annual Parameters Source'!I72="","-",'Annual Parameters Source'!I72) -> 0.9245560474 | J76: =IF('Annual Parameters Source'!L72="","-",'Annual Parameters Source'!L72) -> 118.1092815 | K76: =IF('Annual Parameters Source'!M72="","-",'Annual Parameters Source'!M72) -> 28243 | L76: =IF('Annual Parameters Source'!N72="","-",'Annual Parameters Source'!N72) -> 0.4409829653 | M76: =IF('Annual Parameters Source'!O72="","-",'Annual Parameters Source'!O72) -> 118.9780099 | N76: =IF('Annual Parameters Source'!P72="","-",'Annual Parameters Source'!P72) -> 33589.79214 | O76: =IF('Annual Parameters Source'!Q72="","-",'Annual Parameters Source'!Q72) -> 3.38933646 | P76: =IF('Annual Parameters Source'!R72="","-",'Annual Parameters Source'!R72) -> 151.8340584 | Q76: =IF('Annual Parameters Source'!S72="","-",'Annual Parameters Source'!S72) -> 80400.94891 | R76: =IF('Annual Parameters Source'!T72="","-",'Annual Parameters Source'!T72) -> 3.887104389 | S76: =IF('Annual Parameters Source'!U72="","-",'Annual Parameters Source'!U72) -> 137.3053234 | T76: =IF('Annual Parameters Source'!V72="","-",'Annual Parameters Source'!V72) -> 0.0624481864 | U76: =IF('Annual Parameters Source'!W72="","-",'Annual Parameters Source'!W72) -> 0.0624481864 | V76: =IF('Annual Parameters Source'!X72="","-",'Annual Parameters Source'!X72) -> 117.7650549 | W76: =IF('Annual Parameters Source'!Y72="","-",'Annual Parameters Source'!Y72) -> 117.7650549 | X76: =IF('Annual Parameters Source'!AD72="","-",'Annual Parameters Source'!AD72) -> 0.0624481864 | Y76: =IF('Annual Parameters Source'!AE72="","-",'Annual Parameters Source'!AE72) -> 0.0624481864 | Z76: =IF('Annual Parameters Source'!AF72="","-",'Annual Parameters Source'!AF72) -> 117.7650549 | AA76: =IF('Annual Parameters Source'!AG72="","-",'Annual Parameters Source'!AG72) -> 117.7650549 | AB76: =IF('Annual Parameters Source'!J72="","-",'Annual Parameters Source'!J72) -> 0.61975554 | AC76: =IF('Annual Parameters Source'!K72="","-",'Annual Parameters Source'!K72) -> 0.28835211
B77: 2023 | D77: =IF('Annual Parameters Source'!D73="","-",'Annual Parameters Source'!D73/VLOOKUP($B$14,'Annual Parameters Source'!$B$40:$D$150,3,1)*100) -> 138.1801399 | E77: =IF('Annual Parameters Source'!E73="","-",VLOOKUP($B$16,'Annual Parameters Source'!$B$40:$AH$154,33,FALSE)/VLOOKUP($B$16,'Annual Parameters Source'!$B$40:$AH$154,4,FALSE)*'Annual Parameters Source'!E73) -> 2274050 | F77: =IF('Annual Parameters Source'!F73="","-",'Annual Parameters Source'!F73) -> 0.1447090054 | G77: =IF('Annual Parameters Source'!G73="","-",'Annual Parameters Source'!G73) -> 179.5896223 | H77: =IF('Annual Parameters Source'!H73="","-",'Annual Parameters Source'!H73) -> 68265.2 | I77: =IF('Annual Parameters Source'!I73="","-",'Annual Parameters Source'!I73) -> 0.9798410717 | J77: =IF('Annual Parameters Source'!L73="","-",'Annual Parameters Source'!L73) -> 119.2665648 | K77: =IF('Annual Parameters Source'!M73="","-",'Annual Parameters Source'!M73) -> 28358 | L77: =IF('Annual Parameters Source'!N73="","-",'Annual Parameters Source'!N73) -> 0.4071805403 | M77: =IF('Annual Parameters Source'!O73="","-",'Annual Parameters Source'!O73) -> 119.4624652 | N77: =IF('Annual Parameters Source'!P73="","-",'Annual Parameters Source'!P73) -> 33311.99498 | O77: =IF('Annual Parameters Source'!Q73="","-",'Annual Parameters Source'!Q73) -> -0.8270285013 | P77: =IF('Annual Parameters Source'!R73="","-",'Annual Parameters Source'!R73) -> 150.5783474 | Q77: =IF('Annual Parameters Source'!S73="","-",'Annual Parameters Source'!S73) -> 80190.77509 | R77: =IF('Annual Parameters Source'!T73="","-",'Annual Parameters Source'!T73) -> -0.2614071359 | S77: =IF('Annual Parameters Source'!U73="","-",'Annual Parameters Source'!U73) -> 136.9463974 | T77: =IF('Annual Parameters Source'!V73="","-",'Annual Parameters Source'!V73) -> -0.8270285013 | U77: =IF('Annual Parameters Source'!W73="","-",'Annual Parameters Source'!W73) -> -0.8270285013 | V77: =IF('Annual Parameters Source'!X73="","-",'Annual Parameters Source'!X73) -> 116.7911044 | W77: =IF('Annual Parameters Source'!Y73="","-",'Annual Parameters Source'!Y73) -> 116.7911044 | X77: =IF('Annual Parameters Source'!AD73="","-",'Annual Parameters Source'!AD73) -> -0.8270285013 | Y77: =IF('Annual Parameters Source'!AE73="","-",'Annual Parameters Source'!AE73) -> -0.8270285013 | Z77: =IF('Annual Parameters Source'!AF73="","-",'Annual Parameters Source'!AF73) -> 116.7911044 | AA77: =IF('Annual Parameters Source'!AG73="","-",'Annual Parameters Source'!AG73) -> 116.7911044 | AB77: =IF('Annual Parameters Source'!J73="","-",'Annual Parameters Source'!J73) -> 0.61966928 | AC77: =IF('Annual Parameters Source'!K73="","-",'Annual Parameters Source'!K73) -> 0.22048608
B78: 2024 | D78: =IF('Annual Parameters Source'!D74="","-",'Annual Parameters Source'!D74/VLOOKUP($B$14,'Annual Parameters Source'!$B$40:$D$150,3,1)*100) -> 142.0732741 | E78: =IF('Annual Parameters Source'!E74="","-",VLOOKUP($B$16,'Annual Parameters Source'!$B$40:$AH$154,33,FALSE)/VLOOKUP($B$16,'Annual Parameters Source'!$B$40:$AH$154,4,FALSE)*'Annual Parameters Source'!E74) -> - | F78: =IF('Annual Parameters Source'!F74="","-",'Annual Parameters Source'!F74) -> 1.122010505 | G78: =IF('Annual Parameters Source'!G74="","-",'Annual Parameters Source'!G74) -> 181.6046367 | H78: =IF('Annual Parameters Source'!H74="","-",'Annual Parameters Source'!H74) -> - | I78: =IF('Annual Parameters Source'!I74="","-",'Annual Parameters Source'!I74) -> 0.9029248343 | J78: =IF('Annual Parameters Source'!L74="","-",'Annual Parameters Source'!L74) -> 120.3434522 | K78: =IF('Annual Parameters Source'!M74="","-",'Annual Parameters Source'!M74) -> - | L78: =IF('Annual Parameters Source'!N74="","-",'Annual Parameters Source'!N74) -> 1.966051967 | M78: =IF('Annual Parameters Source'!O74="","-",'Annual Parameters Source'!O74) -> 121.8111594 | N78: =IF('Annual Parameters Source'!P74="","-",'Annual Parameters Source'!P74) -> - | O78: =IF('Annual Parameters Source'!Q74="","-",'Annual Parameters Source'!Q74) -> 0.2171251932 | P78: =IF('Annual Parameters Source'!R74="","-",'Annual Parameters Source'!R74) -> 150.905291 | Q78: =IF('Annual Parameters Source'!S74="","-",'Annual Parameters Source'!S74) -> - | R78: =IF('Annual Parameters Source'!T74="","-",'Annual Parameters Source'!T74) -> -0.8277671297 | S78: =IF('Annual Parameters Source'!U74="","-",'Annual Parameters Source'!U74) -> 135.8128002 | T78: =IF('Annual Parameters Source'!V74="","-",'Annual Parameters Source'!V74) -> 0.2171251932 | U78: =IF('Annual Parameters Source'!W74="","-",'Annual Parameters Source'!W74) -> 0.2171251932 | V78: =IF('Annual Parameters Source'!X74="","-",'Annual Parameters Source'!X74) -> 117.0446873 | W78: =IF('Annual Parameters Source'!Y74="","-",'Annual Parameters Source'!Y74) -> 117.0446873 | X78: =IF('Annual Parameters Source'!AD74="","-",'Annual Parameters Source'!AD74) -> 0.2171251932 | Y78: =IF('Annual Parameters Source'!AE74="","-",'Annual Parameters Source'!AE74) -> 0.2171251932 | Z78: =IF('Annual Parameters Source'!AF74="","-",'Annual Parameters Source'!AF74) -> 117.0446873 | AA78: =IF('Annual Parameters Source'!AG74="","-",'Annual Parameters Source'!AG74) -> 117.0446873 | AB78: =IF('Annual Parameters Source'!J74="","-",'Annual Parameters Source'!J74) -> 0.61605879 | AC78: =IF('Annual Parameters Source'!K74="","-",'Annual Parameters Source'!K74) -> 0.15602274
B79: 2025 | D79: =IF('Annual Parameters Source'!D75="","-",'Annual Parameters Source'!D75/VLOOKUP($B$14,'Annual Parameters Source'!$B$40:$D$150,3,1)*100) -> 145.6325527 | E79: =IF('Annual Parameters Source'!E75="","-",VLOOKUP($B$16,'Annual Parameters Source'!$B$40:$AH$154,33,FALSE)/VLOOKUP($B$16,'Annual Parameters Source'!$B$40:$AH$154,4,FALSE)*'Annual Parameters Source'!E75) -> - | F79: =IF('Annual Parameters Source'!F75="","-",'Annual Parameters Source'!F75) -> 1.986537453 | G79: =IF('Annual Parameters Source'!G75="","-",'Annual Parameters Source'!G75) -> 185.2122808 | H79: =IF('Annual Parameters Source'!H75="","-",'Annual Parameters Source'!H75) -> - | I79: =IF('Annual Parameters Source'!I75="","-",'Annual Parameters Source'!I75) -> 0.60274498 | J79: =IF('Annual Parameters Source'!L75="","-",'Annual Parameters Source'!L75) -> 121.0688163 | K79: =IF('Annual Parameters Source'!M75="","-",'Annual Parameters Source'!M75) -> - | L79: =IF('Annual Parameters Source'!N75="","-",'Annual Parameters Source'!N75) -> 0.3569361689 | M79: =IF('Annual Parameters Source'!O75="","-",'Annual Parameters Source'!O75) -> 122.2459475 | N79: =IF('Annual Parameters Source'!P75="","-",'Annual Parameters Source'!P75) -> - | O79: =IF('Annual Parameters Source'!Q75="","-",'Annual Parameters Source'!Q75) -> 1.375501706 | P79: =IF('Annual Parameters Source'!R75="","-",'Annual Parameters Source'!R75) -> 152.9809958 | Q79: =IF('Annual Parameters Source'!S75="","-",'Annual Parameters Source'!S75) -> - | R79: =IF('Annual Parameters Source'!T75="","-",'Annual Parameters Source'!T75) -> 1.623805336 | S79: =IF('Annual Parameters Source'!U75="","-",'Annual Parameters Source'!U75) -> 138.0181357 | T79: =IF('Annual Parameters Source'!V75="","-",'Annual Parameters Source'!V75) -> 1.375501706 | U79: =IF('Annual Parameters Source'!W75="","-",'Annual Parameters Source'!W75) -> 1.375501706 | V79: =IF('Annual Parameters Source'!X75="","-",'Annual Parameters Source'!X75) -> 118.6546389 | W79: =IF('Annual Parameters Source'!Y75="","-",'Annual Parameters Source'!Y75) -> 118.6546389 | X79: =IF('Annual Parameters Source'!AD75="","-",'Annual Parameters Source'!AD75) -> 1.5 | Y79: =IF('Annual Parameters Source'!AE75="","-",'Annual Parameters Source'!AE75) -> 1.5 | Z79: =IF('Annual Parameters Source'!AF75="","-",'Annual Parameters Source'!AF75) -> 118.8003576 | AA79: =IF('Annual Parameters Source'!AG75="","-",'Annual Parameters Source'!AG75) -> 118.8003576 | AB79: =IF('Annual Parameters Source'!J75="","-",'Annual Parameters Source'!J75) -> 0.61198072 | AC79: =IF('Annual Parameters Source'!K75="","-",'Annual Parameters Source'!K75) -> 0.09317081
B80: 2026 | D80: =IF('Annual Parameters Source'!D76="","-",'Annual Parameters Source'!D76/VLOOKUP($B$14,'Annual Parameters Source'!$B$40:$D$150,3,1)*100) -> 148.5328102 | E80: =IF('Annual Parameters Source'!E76="","-",VLOOKUP($B$16,'Annual Parameters Source'!$B$40:$AH$154,33,FALSE)/VLOOKUP($B$16,'Annual Parameters Source'!$B$40:$AH$154,4,FALSE)*'Annual Parameters Source'!E76) -> - | F80: =IF('Annual Parameters Source'!F76="","-",'Annual Parameters Source'!F76) -> 1.823256366 | G80: =IF('Annual Parameters Source'!G76="","-",'Annual Parameters Source'!G76) -> 188.5891755 | H80: =IF('Annual Parameters Source'!H76="","-",'Annual Parameters Source'!H76) -> - | I80: =IF('Annual Parameters Source'!I76="","-",'Annual Parameters Source'!I76) -> 0.5081594839 | J80: =IF('Annual Parameters Source'!L76="","-",'Annual Parameters Source'!L76) -> 121.684039 | K80: =IF('Annual Parameters Source'!M76="","-",'Annual Parameters Source'!M76) -> - | L80: =IF('Annual Parameters Source'!N76="","-",'Annual Parameters Source'!N76) -> 0.3693540704 | M80: =IF('Annual Parameters Source'!O76="","-",'Annual Parameters Source'!O76) -> 122.6974679 | N80: =IF('Annual Parameters Source'!P76="","-",'Annual Parameters Source'!P76) -> - | O80: =IF('Annual Parameters Source'!Q76="","-",'Annual Parameters Source'!Q76) -> 1.30844788 | P80: =IF('Annual Parameters Source'!R76="","-",'Annual Parameters Source'!R76) -> 154.9826724 | Q80: =IF('Annual Parameters Source'!S76="","-",'Annual Parameters Source'!S76) -> - | R80: =IF('Annual Parameters Source'!T76="","-",'Annual Parameters Source'!T76) -> 1.448552009 | S80: =IF('Annual Parameters Source'!U76="","-",'Annual Parameters Source'!U76) -> 140.0174002 | T80: =IF('Annual Parameters Source'!V76="","-",'Annual Parameters Source'!V76) -> 1.30844788 | U80: =IF('Annual Parameters Source'!W76="","-",'Annual Parameters Source'!W76) -> 1.30844788 | V80: =IF('Annual Parameters Source'!X76="","-",'Annual Parameters Source'!X76) -> 120.207173 | W80: =IF('Annual Parameters Source'!Y76="","-",'Annual Parameters Source'!Y76) -> 120.207173 | X80: =IF('Annual Parameters Source'!AD76="","-",'Annual Parameters Source'!AD76) -> 1.5 | Y80: =IF('Annual Parameters Source'!AE76="","-",'Annual Parameters Source'!AE76) -> 1.5 | Z80: =IF('Annual Parameters Source'!AF76="","-",'Annual Parameters Source'!AF76) -> 120.5823629 | AA80: =IF('Annual Parameters Source'!AG76="","-",'Annual Parameters Source'!AG76) -> 120.5823629 | AB80: =IF('Annual Parameters Source'!J76="","-",'Annual Parameters Source'!J76) -> 0.60224418 | AC80: =IF('Annual Parameters Source'!K76="","-",'Annual Parameters Source'!K76) -> 0.06913495
B81: 2027 | D81: =IF('Annual Parameters Source'!D77="","-",'Annual Parameters Source'!D77/VLOOKUP($B$14,'Annual Parameters Source'!$B$40:$D$150,3,1)*100) -> 151.4394949 | E81: =IF('Annual Parameters Source'!E77="","-",VLOOKUP($B$16,'Annual Parameters Source'!$B$40:$AH$154,33,FALSE)/VLOOKUP($B$16,'Annual Parameters Source'!$B$40:$AH$154,4,FALSE)*'Annual Parameters Source'!E77) -> - | F81: =IF('Annual Parameters Source'!F77="","-",'Annual Parameters Source'!F77) -> 1.548786177 | G81: =IF('Annual Parameters Source'!G77="","-",'Annual Parameters Source'!G77) -> 191.5100186 | H81: =IF('Annual Parameters Source'!H77="","-",'Annual Parameters Source'!H77) -> - | I81: =IF('Annual Parameters Source'!I77="","-",'Annual Parameters Source'!I77) -> 0.520851168 | J81: =IF('Annual Parameters Source'!L77="","-",'Annual Parameters Source'!L77) -> 122.3178317 | K81: =IF('Annual Parameters Source'!M77="","-",'Annual Parameters Source'!M77) -> - | L81: =IF('Annual Parameters Source'!N77="","-",'Annual Parameters Source'!N77) -> 0.505873691 | M81: =IF('Annual Parameters Source'!O77="","-",'Annual Parameters Source'!O77) -> 123.3181621 | N81: =IF('Annual Parameters Source'!P77="","-",'Annual Parameters Source'!P77) -> - | O81: =IF('Annual Parameters Source'!Q77="","-",'Annual Parameters Source'!Q77) -> 1.022608739 | P81: =IF('Annual Parameters Source'!R77="","-",'Annual Parameters Source'!R77) -> 156.5675388 | Q81: =IF('Annual Parameters Source'!S77="","-",'Annual Parameters Source'!S77) -> - | R81: =IF('Annual Parameters Source'!T77="","-",'Annual Parameters Source'!T77) -> 1.03766322 | S81: =IF('Annual Parameters Source'!U77="","-",'Annual Parameters Source'!U77) -> 141.4703092 | T81: =IF('Annual Parameters Source'!V77="","-",'Annual Parameters Source'!V77) -> 1.022608739 | U81: =IF('Annual Parameters Source'!W77="","-",'Annual Parameters Source'!W77) -> 1.022608739 | V81: =IF('Annual Parameters Source'!X77="","-",'Annual Parameters Source'!X77) -> 121.4364221 | W81: =IF('Annual Parameters Source'!Y77="","-",'Annual Parameters Source'!Y77) -> 121.4364221 | X81: =IF('Annual Parameters Source'!AD77="","-",'Annual Parameters Source'!AD77) -> 1.5 | Y81: =IF('Annual Parameters Source'!AE77="","-",'Annual Parameters Source'!AE77) -> 1.5 | Z81: =IF('Annual Parameters Source'!AF77="","-",'Annual Parameters Source'!AF77) -> 122.3910984 | AA81: =IF('Annual Parameters Source'!AG77="","-",'Annual Parameters Source'!AG77) -> 122.3910984 | AB81: =IF('Annual Parameters Source'!J77="","-",'Annual Parameters Source'!J77) -> 0.59213923 | AC81: =IF('Annual Parameters Source'!K77="","-",'Annual Parameters Source'!K77) -> 0.0485969
B82: 2028 | D82: =IF('Annual Parameters Source'!D78="","-",'Annual Parameters Source'!D78/VLOOKUP($B$14,'Annual Parameters Source'!$B$40:$D$150,3,1)*100) -> 154.4179717 | E82: =IF('Annual Parameters Source'!E78="","-",VLOOKUP($B$16,'Annual Parameters Source'!$B$40:$AH$154,33,FALSE)/VLOOKUP($B$16,'Annual Parameters Source'!$B$40:$AH$154,4,FALSE)*'Annual Parameters Source'!E78) -> - | F82: =IF('Annual Parameters Source'!F78="","-",'Annual Parameters Source'!F78) -> 1.524584848 | G82: =IF('Annual Parameters Source'!G78="","-",'Annual Parameters Source'!G78) -> 194.4297513 | H82: =IF('Annual Parameters Source'!H78="","-",'Annual Parameters Source'!H78) -> - | I82: =IF('Annual Parameters Source'!I78="","-",'Annual Parameters Source'!I78) -> 0.5198026118 | J82: =IF('Annual Parameters Source'!L78="","-",'Annual Parameters Source'!L78) -> 122.953643 | K82: =IF('Annual Parameters Source'!M78="","-",'Annual Parameters Source'!M78) -> - | L82: =IF('Annual Parameters Source'!N78="","-",'Annual Parameters Source'!N78) -> 0.605558564 | M82: =IF('Annual Parameters Source'!O78="","-",'Annual Parameters Source'!O78) -> 124.0649258 | N82: =IF('Annual Parameters Source'!P78="","-",'Annual Parameters Source'!P78) -> - | O82: =IF('Annual Parameters Source'!Q78="","-",'Annual Parameters Source'!Q78) -> 0.9995863599 | P82: =IF('Annual Parameters Source'!R78="","-",'Annual Parameters Source'!R78) -> 158.1325665 | Q82: =IF('Annual Parameters Source'!S78="","-",'Annual Parameters Source'!S78) -> - | R82: =IF('Annual Parameters Source'!T78="","-",'Annual Parameters Source'!T78) -> 0.9134945392 | S82: =IF('Annual Parameters Source'!U78="","-",'Annual Parameters Source'!U78) -> 142.7626328 | T82: =IF('Annual Parameters Source'!V78="","-",'Annual Parameters Source'!V78) -> 0.9995863599 | U82: =IF('Annual Parameters Source'!W78="","-",'Annual Parameters Source'!W78) -> 0.9995863599 | V82: =IF('Annual Parameters Source'!X78="","-",'Annual Parameters Source'!X78) -> 122.650284 | W82: =IF('Annual Parameters Source'!Y78="","-",'Annual Parameters Source'!Y78) -> 122.650284 | X82: =IF('Annual Parameters Source'!AD78="","-",'Annual Parameters Source'!AD78) -> 1.5 | Y82: =IF('Annual Parameters Source'!AE78="","-",'Annual Parameters Source'!AE78) -> 1.5 | Z82: =IF('Annual Parameters Source'!AF78="","-",'Annual Parameters Source'!AF78) -> 124.2269649 | AA82: =IF('Annual Parameters Source'!AG78="","-",'Annual Parameters Source'!AG78) -> 124.2269649 | AB82: =IF('Annual Parameters Source'!J78="","-",'Annual Parameters Source'!J78) -> 0.58228759 | AC82: =IF('Annual Parameters Source'!K78="","-",'Annual Parameters Source'!K78) -> 0.03116861
B83: 2029 | D83: =IF('Annual Parameters Source'!D79="","-",'Annual Parameters Source'!D79/VLOOKUP($B$14,'Annual Parameters Source'!$B$40:$D$150,3,1)*100) -> 157.4656719 | E83: =IF('Annual Parameters Source'!E79="","-",VLOOKUP($B$16,'Annual Parameters Source'!$B$40:$AH$154,33,FALSE)/VLOOKUP($B$16,'Annual Parameters Source'!$B$40:$AH$154,4,FALSE)*'Annual Parameters Source'!E79) -> - | F83: =IF('Annual Parameters Source'!F79="","-",'Annual Parameters Source'!F79) -> 1.570870308 | G83: =IF('Annual Parameters Source'!G79="","-",'Annual Parameters Source'!G79) -> 197.4839905 | H83: =IF('Annual Parameters Source'!H79="","-",'Annual Parameters Source'!H79) -> - | I83: =IF('Annual Parameters Source'!I79="","-",'Annual Parameters Source'!I79) -> 0.5138378681 | J83: =IF('Annual Parameters Source'!L79="","-",'Annual Parameters Source'!L79) -> 123.5854254 | K83: =IF('Annual Parameters Source'!M79="","-",'Annual Parameters Source'!M79) -> - | L83: =IF('Annual Parameters Source'!N79="","-",'Annual Parameters Source'!N79) -> 0.5903984791 | M83: =IF('Annual Parameters Source'!O79="","-",'Annual Parameters Source'!O79) -> 124.7974032 | N83: =IF('Annual Parameters Source'!P79="","-",'Annual Parameters Source'!P79) -> - | O83: =IF('Annual Parameters Source'!Q79="","-",'Annual Parameters Source'!Q79) -> 1.051628773 | P83: =IF('Annual Parameters Source'!R79="","-",'Annual Parameters Source'!R79) -> 159.7955341 | Q83: =IF('Annual Parameters Source'!S79="","-",'Annual Parameters Source'!S79) -> - | R83: =IF('Annual Parameters Source'!T79="","-",'Annual Parameters Source'!T79) -> 0.9747171139 | S83: =IF('Annual Parameters Source'!U79="","-",'Annual Parameters Source'!U79) -> 144.1541646 | T83: =IF('Annual Parameters Source'!V79="","-",'Annual Parameters Source'!V79) -> 1.051628773 | U83: =IF('Annual Parameters Source'!W79="","-",'Annual Parameters Source'!W79) -> 1.051628773 | V83: =IF('Annual Parameters Source'!X79="","-",'Annual Parameters Source'!X79) -> 123.9401097 | W83: =IF('Annual Parameters Source'!Y79="","-",'Annual Parameters Source'!Y79) -> 123.9401097 | X83: =IF('Annual Parameters Source'!AD79="","-",'Annual Parameters Source'!AD79) -> 1.5 | Y83: =IF('Annual Parameters Source'!AE79="","-",'Annual Parameters Source'!AE79) -> 1.5 | Z83: =IF('Annual Parameters Source'!AF79="","-",'Annual Parameters Source'!AF79) -> 126.0903693 | AA83: =IF('Annual Parameters Source'!AG79="","-",'Annual Parameters Source'!AG79) -> 126.0903693 | AB83: =IF('Annual Parameters Source'!J79="","-",'Annual Parameters Source'!J79) -> 0.57350663 | AC83: =IF('Annual Parameters Source'!K79="","-",'Annual Parameters Source'!K79) -> 0.01487477
B84: 2030 | D84: =IF('Annual Parameters Source'!D80="","-",'Annual Parameters Source'!D80/VLOOKUP($B$14,'Annual Parameters Source'!$B$40:$D$150,3,1)*100) -> 161.0873824 | E84: =IF('Annual Parameters Source'!E80="","-",VLOOKUP($B$16,'Annual Parameters Source'!$B$40:$AH$154,33,FALSE)/VLOOKUP($B$16,'Annual Parameters Source'!$B$40:$AH$154,4,FALSE)*'Annual Parameters Source'!E80) -> - | F84: =IF('Annual Parameters Source'!F80="","-",'Annual Parameters Source'!F80) -> 1.856051669 | G84: =IF('Annual Parameters Source'!G80="","-",'Annual Parameters Source'!G80) -> 201.1493954 | H84: =IF('Annual Parameters Source'!H80="","-",'Annual Parameters Source'!H80) -> - | I84: =IF('Annual Parameters Source'!I80="","-",'Annual Parameters Source'!I80) -> 0.4977298506 | J84: =IF('Annual Parameters Source'!L80="","-",'Annual Parameters Source'!L80) -> 124.2005469 | K84: =IF('Annual Parameters Source'!M80="","-",'Annual Parameters Source'!M80) -> - | L84: =IF('Annual Parameters Source'!N80="","-",'Annual Parameters Source'!N80) -> 0.5679325958 | M84: =IF('Annual Parameters Source'!O80="","-",'Annual Parameters Source'!O80) -> 125.5061683 | N84: =IF('Annual Parameters Source'!P80="","-",'Annual Parameters Source'!P80) -> - | O84: =IF('Annual Parameters Source'!Q80="","-",'Annual Parameters Source'!Q80) -> 1.351594529 | P84: =IF('Annual Parameters Source'!R80="","-",'Annual Parameters Source'!R80) -> 161.9553218 | Q84: =IF('Annual Parameters Source'!S80="","-",'Annual Parameters Source'!S80) -> - | R84: =IF('Annual Parameters Source'!T80="","-",'Annual Parameters Source'!T80) -> 1.280844738 | S84: =IF('Annual Parameters Source'!U80="","-",'Annual Parameters Source'!U80) -> 146.0005556 | T84: =IF('Annual Parameters Source'!V80="","-",'Annual Parameters Source'!V80) -> 1.351594529 | U84: =IF('Annual Parameters Source'!W80="","-",'Annual Parameters Source'!W80) -> 1.351594529 | V84: =IF('Annual Parameters Source'!X80="","-",'Annual Parameters Source'!X80) -> 125.6152774 | W84: =IF('Annual Parameters Source'!Y80="","-",'Annual Parameters Source'!Y80) -> 125.6152774 | X84: =IF('Annual Parameters Source'!AD80="","-",'Annual Parameters Source'!AD80) -> 1.5 | Y84: =IF('Annual Parameters Source'!AE80="","-",'Annual Parameters Source'!AE80) -> 1.5 | Z84: =IF('Annual Parameters Source'!AF80="","-",'Annual Parameters Source'!AF80) -> 127.9817249 | AA84: =IF('Annual Parameters Source'!AG80="","-",'Annual Parameters Source'!AG80) -> 127.9817249 | AB84: =IF('Annual Parameters Source'!J80="","-",'Annual Parameters Source'!J80) -> 0.56585834 | AC84: =IF('Annual Parameters Source'!K80="","-",'Annual Parameters Source'!K80) -> -0.0009958186
B85: 2031 | D85: =IF('Annual Parameters Source'!D81="","-",'Annual Parameters Source'!D81/VLOOKUP($B$14,'Annual Parameters Source'!$B$40:$D$150,3,1)*100) -> 164.7923922 | E85: =IF('Annual Parameters Source'!E81="","-",VLOOKUP($B$16,'Annual Parameters Source'!$B$40:$AH$154,33,FALSE)/VLOOKUP($B$16,'Annual Parameters Source'!$B$40:$AH$154,4,FALSE)*'Annual Parameters Source'!E81) -> - | F85: =IF('Annual Parameters Source'!F81="","-",'Annual Parameters Source'!F81) -> 1.867210242 | G85: =IF('Annual Parameters Source'!G81="","-",'Annual Parameters Source'!G81) -> 204.9052776 | H85: =IF('Annual Parameters Source'!H81="","-",'Annual Parameters Source'!H81) -> - | I85: =IF('Annual Parameters Source'!I81="","-",'Annual Parameters Source'!I81) -> 0.4827761503 | J85: =IF('Annual Parameters Source'!L81="","-",'Annual Parameters Source'!L81) -> 124.8001575 | K85: =IF('Annual Parameters Source'!M81="","-",'Annual Parameters Source'!M81) -> - | L85: =IF('Annual Parameters Source'!N81="","-",'Annual Parameters Source'!N81) -> 0.5737802377 | M85: =IF('Annual Parameters Source'!O81="","-",'Annual Parameters Source'!O81) -> 126.2262979 | N85: =IF('Annual Parameters Source'!P81="","-",'Annual Parameters Source'!P81) -> - | O85: =IF('Annual Parameters Source'!Q81="","-",'Annual Parameters Source'!Q81) -> 1.377782487 | P85: =IF('Annual Parameters Source'!R81="","-",'Annual Parameters Source'!R81) -> 164.1867139 | Q85: =IF('Annual Parameters Source'!S81="","-",'Annual Parameters Source'!S81) -> - | R85: =IF('Annual Parameters Source'!T81="","-",'Annual Parameters Source'!T81) -> 1.286050899 | S85: =IF('Annual Parameters Source'!U81="","-",'Annual Parameters Source'!U81) -> 147.8781971 | T85: =IF('Annual Parameters Source'!V81="","-",'Annual Parameters Source'!V81) -> 1.377782487 | U85: =IF('Annual Parameters Source'!W81="","-",'Annual Parameters Source'!W81) -> 1.377782487 | V85: =IF('Annual Parameters Source'!X81="","-",'Annual Parameters Source'!X81) -> 127.3459827 | W85: =IF('Annual Parameters Source'!Y81="","-",'Annual Parameters Source'!Y81) -> 127.3459827 | X85: =IF('Annual Parameters Source'!AD81="","-",'Annual Parameters Source'!AD81) -> 1.5 | Y85: =IF('Annual Parameters Source'!AE81="","-",'Annual Parameters Source'!AE81) -> 1.5 | Z85: =IF('Annual Parameters Source'!AF81="","-",'Annual Parameters Source'!AF81) -> 129.9014507 | AA85: =IF('Annual Parameters Source'!AG81="","-",'Annual Parameters Source'!AG81) -> 129.9014507 | AB85: =IF('Annual Parameters Source'!J81="","-",'Annual Parameters Source'!J81) -> 0.55924103 | AC85: =IF('Annual Parameters Source'!K81="","-",'Annual Parameters Source'!K81) -> -0.0164643
B86: 2032 | D86: =IF('Annual Parameters Source'!D82="","-",'Annual Parameters Source'!D82/VLOOKUP($B$14,'Annual Parameters Source'!$B$40:$D$150,3,1)*100) -> 168.5826172 | E86: =IF('Annual Parameters Source'!E82="","-",VLOOKUP($B$16,'Annual Parameters Source'!$B$40:$AH$154,33,FALSE)/VLOOKUP($B$16,'Annual Parameters Source'!$B$40:$AH$154,4,FALSE)*'Annual Parameters Source'!E82) -> - | F86: =IF('Annual Parameters Source'!F82="","-",'Annual Parameters Source'!F82) -> 1.910737704 | G86: =IF('Annual Parameters Source'!G82="","-",'Annual Parameters Source'!G82) -> 208.82048 | H86: =IF('Annual Parameters Source'!H82="","-",'Annual Parameters Source'!H82) -> - | I86: =IF('Annual Parameters Source'!I82="","-",'Annual Parameters Source'!I82) -> 0.4684568631 | J86: =IF('Annual Parameters Source'!L82="","-",'Annual Parameters Source'!L82) -> 125.3847924 | K86: =IF('Annual Parameters Source'!M82="","-",'Annual Parameters Source'!M82) -> - | L86: =IF('Annual Parameters Source'!N82="","-",'Annual Parameters Source'!N82) -> 0.5677508231 | M86: =IF('Annual Parameters Source'!O82="","-",'Annual Parameters Source'!O82) -> 126.9429488 | N86: =IF('Annual Parameters Source'!P82="","-",'Annual Parameters Source'!P82) -> - | O86: =IF('Annual Parameters Source'!Q82="","-",'Annual Parameters Source'!Q82) -> 1.435555881 | P86: =IF('Annual Parameters Source'!R82="","-",'Annual Parameters Source'!R82) -> 166.5437059 | Q86: =IF('Annual Parameters Source'!S82="","-",'Annual Parameters Source'!S82) -> - | R86: =IF('Annual Parameters Source'!T82="","-",'Annual Parameters Source'!T82) -> 1.335405107 | S86: =IF('Annual Parameters Source'!U82="","-",'Annual Parameters Source'!U82) -> 149.8529701 | T86: =IF('Annual Parameters Source'!V82="","-",'Annual Parameters Source'!V82) -> 1.435555881 | U86: =IF('Annual Parameters Source'!W82="","-",'Annual Parameters Source'!W82) -> 1.435555881 | V86: =IF('Annual Parameters Source'!X82="","-",'Annual Parameters Source'!X82) -> 129.1741055 | W86: =IF('Annual Parameters Source'!Y82="","-",'Annual Parameters Source'!Y82) -> 129.1741055 | X86: =IF('Annual Parameters Source'!AD82="","-",'Annual Parameters Source'!AD82) -> 1.5 | Y86: =IF('Annual Parameters Source'!AE82="","-",'Annual Parameters Source'!AE82) -> 1.5 | Z86: =IF('Annual Parameters Source'!AF82="","-",'Annual Parameters Source'!AF82) -> 131.8499725 | AA86: =IF('Annual Parameters Source'!AG82="","-",'Annual Parameters Source'!AG82) -> 131.8499725 | AB86: =IF('Annual Parameters Source'!J82="","-",'Annual Parameters Source'!J82) -> 0.55389187 | AC86: =IF('Annual Parameters Source'!K82="","-",'Annual Parameters Source'!K82) -> -0.0311229
B87: 2033 | D87: =IF('Annual Parameters Source'!D83="","-",'Annual Parameters Source'!D83/VLOOKUP($B$14,'Annual Parameters Source'!$B$40:$D$150,3,1)*100) -> 172.4600174 | E87: =IF('Annual Parameters Source'!E83="","-",VLOOKUP($B$16,'Annual Parameters Source'!$B$40:$AH$154,33,FALSE)/VLOOKUP($B$16,'Annual Parameters Source'!$B$40:$AH$154,4,FALSE)*'Annual Parameters Source'!E83) -> - | F87: =IF('Annual Parameters Source'!F83="","-",'Annual Parameters Source'!F83) -> 1.930764488 | G87: =IF('Annual Parameters Source'!G83="","-",'Annual Parameters Source'!G83) -> 212.8523116 | H87: =IF('Annual Parameters Source'!H83="","-",'Annual Parameters Source'!H83) -> - | I87: =IF('Annual Parameters Source'!I83="","-",'Annual Parameters Source'!I83) -> 0.4544185643 | J87: =IF('Annual Parameters Source'!L83="","-",'Annual Parameters Source'!L83) -> 125.9545642 | K87: =IF('Annual Parameters Source'!M83="","-",'Annual Parameters Source'!M83) -> - | L87: =IF('Annual Parameters Source'!N83="","-",'Annual Parameters Source'!N83) -> 0.5537355203 | M87: =IF('Annual Parameters Source'!O83="","-",'Annual Parameters Source'!O83) -> 127.645877 | N87: =IF('Annual Parameters Source'!P83="","-",'Annual Parameters Source'!P83) -> - | O87: =IF('Annual Parameters Source'!Q83="","-",'Annual Parameters Source'!Q83) -> 1.469667482 | P87: =IF('Annual Parameters Source'!R83="","-",'Annual Parameters Source'!R83) -> 168.9913446 | Q87: =IF('Annual Parameters Source'!S83="","-",'Annual Parameters Source'!S83) -> - | R87: =IF('Annual Parameters Source'!T83="","-",'Annual Parameters Source'!T83) -> 1.36944586 | S87: =IF('Annual Parameters Source'!U83="","-",'Annual Parameters Source'!U83) -> 151.9051254 | T87: =IF('Annual Parameters Source'!V83="","-",'Annual Parameters Source'!V83) -> 1.469667482 | U87: =IF('Annual Parameters Source'!W83="","-",'Annual Parameters Source'!W83) -> 1.469667482 | V87: =IF('Annual Parameters Source'!X83="","-",'Annual Parameters Source'!X83) -> 131.0725353 | W87: =IF('Annual Parameters Source'!Y83="","-",'Annual Parameters Source'!Y83) -> 131.0725353 | X87: =IF('Annual Parameters Source'!AD83="","-",'Annual Parameters Source'!AD83) -> 1.5 | Y87: =IF('Annual Parameters Source'!AE83="","-",'Annual Parameters Source'!AE83) -> 1.5 | Z87: =IF('Annual Parameters Source'!AF83="","-",'Annual Parameters Source'!AF83) -> 133.8277221 | AA87: =IF('Annual Parameters Source'!AG83="","-",'Annual Parameters Source'!AG83) -> 133.8277221 | AB87: =IF('Annual Parameters Source'!J83="","-",'Annual Parameters Source'!J83) -> 0.54994209 | AC87: =IF('Annual Parameters Source'!K83="","-",'Annual Parameters Source'!K83) -> -0.0447924
B88: 2034 | D88: =IF('Annual Parameters Source'!D84="","-",'Annual Parameters Source'!D84/VLOOKUP($B$14,'Annual Parameters Source'!$B$40:$D$150,3,1)*100) -> 176.4265978 | E88: =IF('Annual Parameters Source'!E84="","-",VLOOKUP($B$16,'Annual Parameters Source'!$B$40:$AH$154,33,FALSE)/VLOOKUP($B$16,'Annual Parameters Source'!$B$40:$AH$154,4,FALSE)*'Annual Parameters Source'!E84) -> - | F88: =IF('Annual Parameters Source'!F84="","-",'Annual Parameters Source'!F84) -> 1.914359241 | G88: =IF('Annual Parameters Source'!G84="","-",'Annual Parameters Source'!G84) -> 216.9270695 | H88: =IF('Annual Parameters Source'!H84="","-",'Annual Parameters Source'!H84) -> - | I88: =IF('Annual Parameters Source'!I84="","-",'Annual Parameters Source'!I84) -> 0.440980607 | J88: =IF('Annual Parameters Source'!L84="","-",'Annual Parameters Source'!L84) -> 126.5099994 | K88: =IF('Annual Parameters Source'!M84="","-",'Annual Parameters Source'!M84) -> - | L88: =IF('Annual Parameters Source'!N84="","-",'Annual Parameters Source'!N84) -> 0.5331813012 | M88: =IF('Annual Parameters Source'!O84="","-",'Annual Parameters Source'!O84) -> 128.3264609 | N88: =IF('Annual Parameters Source'!P84="","-",'Annual Parameters Source'!P84) -> - | O88: =IF('Annual Parameters Source'!Q84="","-",'Annual Parameters Source'!Q84) -> 1.466909846 | P88: =IF('Annual Parameters Source'!R84="","-",'Annual Parameters Source'!R84) -> 171.4702952 | Q88: =IF('Annual Parameters Source'!S84="","-",'Annual Parameters Source'!S84) -> - | R88: =IF('Annual Parameters Source'!T84="","-",'Annual Parameters Source'!T84) -> 1.373852814 | S88: =IF('Annual Parameters Source'!U84="","-",'Annual Parameters Source'!U84) -> 153.9920782 | T88: =IF('Annual Parameters Source'!V84="","-",'Annual Parameters Source'!V84) -> 1.466909846 | U88: =IF('Annual Parameters Source'!W84="","-",'Annual Parameters Source'!W84) -> 1.466909846 | V88: =IF('Annual Parameters Source'!X84="","-",'Annual Parameters Source'!X84) -> 132.9952512 | W88: =IF('Annual Parameters Source'!Y84="","-",'Annual Parameters Source'!Y84) -> 132.9952512 | X88: =IF('Annual Parameters Source'!AD84="","-",'Annual Parameters Source'!AD84) -> 1.5 | Y88: =IF('Annual Parameters Source'!AE84="","-",'Annual Parameters Source'!AE84) -> 1.5 | Z88: =IF('Annual Parameters Source'!AF84="","-",'Annual Parameters Source'!AF84) -> 135.8351379 | AA88: =IF('Annual Parameters Source'!AG84="","-",'Annual Parameters Source'!AG84) -> 135.8351379 | AB88: =IF('Annual Parameters Source'!J84="","-",'Annual Parameters Source'!J84) -> 0.54689708 | AC88: =IF('Annual Parameters Source'!K84="","-",'Annual Parameters Source'!K84) -> -0.0577113
B89: 2035 | D89: =IF('Annual Parameters Source'!D85="","-",'Annual Parameters Source'!D85/VLOOKUP($B$14,'Annual Parameters Source'!$B$40:$D$150,3,1)*100) -> 180.4844095 | E89: =IF('Annual Parameters Source'!E85="","-",VLOOKUP($B$16,'Annual Parameters Source'!$B$40:$AH$154,33,FALSE)/VLOOKUP($B$16,'Annual Parameters Source'!$B$40:$AH$154,4,FALSE)*'Annual Parameters Source'!E85) -> - | F89: =IF('Annual Parameters Source'!F85="","-",'Annual Parameters Source'!F85) -> 1.907353568 | G89: =IF('Annual Parameters Source'!G85="","-",'Annual Parameters Source'!G85) -> 221.0646357 | H89: =IF('Annual Parameters Source'!H85="","-",'Annual Parameters Source'!H85) -> - | I89: =IF('Annual Parameters Source'!I85="","-",'Annual Parameters Source'!I85) -> 0.4285486872 | J89: =IF('Annual Parameters Source'!L85="","-",'Annual Parameters Source'!L85) -> 127.0521564 | K89: =IF('Annual Parameters Source'!M85="","-",'Annual Parameters Source'!M85) -> - | L89: =IF('Annual Parameters Source'!N85="","-",'Annual Parameters Source'!N85) -> 0.5175779949 | M89: =IF('Annual Parameters Source'!O85="","-",'Annual Parameters Source'!O85) -> 128.9906504 | N89: =IF('Annual Parameters Source'!P85="","-",'Annual Parameters Source'!P85) -> - | O89: =IF('Annual Parameters Source'!Q85="","-",'Annual Parameters Source'!Q85) -> 1.472494525 | P89: =IF('Annual Parameters Source'!R85="","-",'Annual Parameters Source'!R85) -> 173.995186 | Q89: =IF('Annual Parameters Source'!S85="","-",'Annual Parameters Source'!S85) -> - | R89: =IF('Annual Parameters Source'!T85="","-",'Annual Parameters Source'!T85) -> 1.382619439 | S89: =IF('Annual Parameters Source'!U85="","-",'Annual Parameters Source'!U85) -> 156.1212026 | T89: =IF('Annual Parameters Source'!V85="","-",'Annual Parameters Source'!V85) -> 1.472494525 | U89: =IF('Annual Parameters Source'!W85="","-",'Annual Parameters Source'!W85) -> 1.472494525 | V89: =IF('Annual Parameters Source'!X85="","-",'Annual Parameters Source'!X85) -> 134.953599 | W89: =IF('Annual Parameters Source'!Y85="","-",'Annual Parameters Source'!Y85) -> 134.953599 | X89: =IF('Annual Parameters Source'!AD85="","-",'Annual Parameters Source'!AD85) -> 1.5 | Y89: =IF('Annual Parameters Source'!AE85="","-",'Annual Parameters Source'!AE85) -> 1.5 | Z89: =IF('Annual Parameters Source'!AF85="","-",'Annual Parameters Source'!AF85) -> 137.872665 | AA89: =IF('Annual Parameters Source'!AG85="","-",'Annual Parameters Source'!AG85) -> 137.872665 | AB89: =IF('Annual Parameters Source'!J85="","-",'Annual Parameters Source'!J85) -> 0.54489077 | AC89: =IF('Annual Parameters Source'!K85="","-",'Annual Parameters Source'!K85) -> -0.069689
B90: 2036 | D90: =IF('Annual Parameters Source'!D86="","-",'Annual Parameters Source'!D86/VLOOKUP($B$14,'Annual Parameters Source'!$B$40:$D$150,3,1)*100) -> 184.6355509 | E90: =IF('Annual Parameters Source'!E86="","-",VLOOKUP($B$16,'Annual Parameters Source'!$B$40:$AH$154,33,FALSE)/VLOOKUP($B$16,'Annual Parameters Source'!$B$40:$AH$154,4,FALSE)*'Annual Parameters Source'!E86) -> - | F90: =IF('Annual Parameters Source'!F86="","-",'Annual Parameters Source'!F86) -> 2.026063513 | G90: =IF('Annual Parameters Source'!G86="","-",'Annual Parameters Source'!G86) -> 225.5435457 | H90: =IF('Annual Parameters Source'!H86="","-",'Annual Parameters Source'!H86) -> - | I90: =IF('Annual Parameters Source'!I86="","-",'Annual Parameters Source'!I86) -> 0.4187774189 | J90: =IF('Annual Parameters Source'!L86="","-",'Annual Parameters Source'!L86) -> 127.5842221 | K90: =IF('Annual Parameters Source'!M86="","-",'Annual Parameters Source'!M86) -> - | L90: =IF('Annual Parameters Source'!N86="","-",'Annual Parameters Source'!N86) -> 0.5231656843 | M90: =IF('Annual Parameters Source'!O86="","-",'Annual Parameters Source'!O86) -> 129.6654853 | N90: =IF('Annual Parameters Source'!P86="","-",'Annual Parameters Source'!P86) -> - | O90: =IF('Annual Parameters Source'!Q86="","-",'Annual Parameters Source'!Q86) -> 1.600583213 | P90: =IF('Annual Parameters Source'!R86="","-",'Annual Parameters Source'!R86) -> 176.7801237 | Q90: =IF('Annual Parameters Source'!S86="","-",'Annual Parameters Source'!S86) -> - | R90: =IF('Annual Parameters Source'!T86="","-",'Annual Parameters Source'!T86) -> 1.495076104 | S90: =IF('Annual Parameters Source'!U86="","-",'Annual Parameters Source'!U86) -> 158.4553334 | T90: =IF('Annual Parameters Source'!V86="","-",'Annual Parameters Source'!V86) -> 1.600583213 | U90: =IF('Annual Parameters Source'!W86="","-",'Annual Parameters Source'!W86) -> 1.600583213 | V90: =IF('Annual Parameters Source'!X86="","-",'Annual Parameters Source'!X86) -> 137.1136437 | W90: =IF('Annual Parameters Source'!Y86="","-",'Annual Parameters Source'!Y86) -> 137.1136437 | X90: =IF('Annual Parameters Source'!AD86="","-",'Annual Parameters Source'!AD86) -> 1.5 | Y90: =IF('Annual Parameters Source'!AE86="","-",'Annual Parameters Source'!AE86) -> 1.5 | Z90: =IF('Annual Parameters Source'!AF86="","-",'Annual Parameters Source'!AF86) -> 139.940755 | AA90: =IF('Annual Parameters Source'!AG86="","-",'Annual Parameters Source'!AG86) -> 139.940755 | AB90: =IF('Annual Parameters Source'!J86="","-",'Annual Parameters Source'!J86) -> 0.54456157 | AC90: =IF('Annual Parameters Source'!K86="","-",'Annual Parameters Source'!K86) -> -0.0800185
B91: 2037 | D91: =IF('Annual Parameters Source'!D87="","-",'Annual Parameters Source'!D87/VLOOKUP($B$14,'Annual Parameters Source'!$B$40:$D$150,3,1)*100) -> 188.8821686 | E91: =IF('Annual Parameters Source'!E87="","-",VLOOKUP($B$16,'Annual Parameters Source'!$B$40:$AH$154,33,FALSE)/VLOOKUP($B$16,'Annual Parameters Source'!$B$40:$AH$154,4,FALSE)*'Annual Parameters Source'!E87) -> - | F91: =IF('Annual Parameters Source'!F87="","-",'Annual Parameters Source'!F87) -> 2.01448634 | G91: =IF('Annual Parameters Source'!G87="","-",'Annual Parameters Source'!G87) -> 230.0870896 | H91: =IF('Annual Parameters Source'!H87="","-",'Annual Parameters Source'!H87) -> - | I91: =IF('Annual Parameters Source'!I87="","-",'Annual Parameters Source'!I87) -> 0.4118001116 | J91: =IF('Annual Parameters Source'!L87="","-",'Annual Parameters Source'!L87) -> 128.1096141 | K91: =IF('Annual Parameters Source'!M87="","-",'Annual Parameters Source'!M87) -> - | L91: =IF('Annual Parameters Source'!N87="","-",'Annual Parameters Source'!N87) -> 0.5047842807 | M91: =IF('Annual Parameters Source'!O87="","-",'Annual Parameters Source'!O87) -> 130.3200162 | N91: =IF('Annual Parameters Source'!P87="","-",'Annual Parameters Source'!P87) -> - | O91: =IF('Annual Parameters Source'!Q87="","-",'Annual Parameters Source'!Q87) -> 1.596113432 | P91: =IF('Annual Parameters Source'!R87="","-",'Annual Parameters Source'!R87) -> 179.601735 | Q91: =IF('Annual Parameters Source'!S87="","-",'Annual Parameters Source'!S87) -> - | R91: =IF('Annual Parameters Source'!T87="","-",'Annual Parameters Source'!T87) -> 1.502119596 | S91: =IF('Annual Parameters Source'!U87="","-",'Annual Parameters Source'!U87) -> 160.835522 | T91: =IF('Annual Parameters Source'!V87="","-",'Annual Parameters Source'!V87) -> 1.596113432 | U91: =IF('Annual Parameters Source'!W87="","-",'Annual Parameters Source'!W87) -> 1.596113432 | V91: =IF('Annual Parameters Source'!X87="","-",'Annual Parameters Source'!X87) -> 139.3021329 | W91: =IF('Annual Parameters Source'!Y87="","-",'Annual Parameters Source'!Y87) -> 139.3021329 | X91: =IF('Annual Parameters Source'!AD87="","-",'Annual Parameters Source'!AD87) -> 1.5 | Y91: =IF('Annual Parameters Source'!AE87="","-",'Annual Parameters Source'!AE87) -> 1.5 | Z91: =IF('Annual Parameters Source'!AF87="","-",'Annual Parameters Source'!AF87) -> 142.0398663 | AA91: =IF('Annual Parameters Source'!AG87="","-",'Annual Parameters Source'!AG87) -> 142.0398663 | AB91: =IF('Annual Parameters Source'!J87="","-",'Annual Parameters Source'!J87) -> 0.54567688 | AC91: =IF('Annual Parameters Source'!K87="","-",'Annual Parameters Source'!K87) -> -0.0887902
B92: 2038 | D92: =IF('Annual Parameters Source'!D88="","-",'Annual Parameters Source'!D88/VLOOKUP($B$14,'Annual Parameters Source'!$B$40:$D$150,3,1)*100) -> 193.2264585 | E92: =IF('Annual Parameters Source'!E88="","-",VLOOKUP($B$16,'Annual Parameters Source'!$B$40:$AH$154,33,FALSE)/VLOOKUP($B$16,'Annual Parameters Source'!$B$40:$AH$154,4,FALSE)*'Annual Parameters Source'!E88) -> - | F92: =IF('Annual Parameters Source'!F88="","-",'Annual Parameters Source'!F88) -> 1.990358655 | G92: =IF('Annual Parameters Source'!G88="","-",'Annual Parameters Source'!G88) -> 234.6666479 | H92: =IF('Annual Parameters Source'!H88="","-",'Annual Parameters Source'!H88) -> - | I92: =IF('Annual Parameters Source'!I88="","-",'Annual Parameters Source'!I88) -> 0.4059997089 | J92: =IF('Annual Parameters Source'!L88="","-",'Annual Parameters Source'!L88) -> 128.6297387 | K92: =IF('Annual Parameters Source'!M88="","-",'Annual Parameters Source'!M88) -> - | L92: =IF('Annual Parameters Source'!N88="","-",'Annual Parameters Source'!N88) -> 0.4887480687 | M92: =IF('Annual Parameters Source'!O88="","-",'Annual Parameters Source'!O88) -> 130.9569528 | N92: =IF('Annual Parameters Source'!P88="","-",'Annual Parameters Source'!P88) -> - | O92: =IF('Annual Parameters Source'!Q88="","-",'Annual Parameters Source'!Q88) -> 1.577952464 | P92: =IF('Annual Parameters Source'!R88="","-",'Annual Parameters Source'!R88) -> 182.435765 | Q92: =IF('Annual Parameters Source'!S88="","-",'Annual Parameters Source'!S88) -> - | R92: =IF('Annual Parameters Source'!T88="","-",'Annual Parameters Source'!T88) -> 1.494307189 | S92: =IF('Annual Parameters Source'!U88="","-",'Annual Parameters Source'!U88) -> 163.2388988 | T92: =IF('Annual Parameters Source'!V88="","-",'Annual Parameters Source'!V88) -> 1.577952464 | U92: =IF('Annual Parameters Source'!W88="","-",'Annual Parameters Source'!W88) -> 1.577952464 | V92: =IF('Annual Parameters Source'!X88="","-",'Annual Parameters Source'!X88) -> 141.5002544 | W92: =IF('Annual Parameters Source'!Y88="","-",'Annual Parameters Source'!Y88) -> 141.5002544 | X92: =IF('Annual Parameters Source'!AD88="","-",'Annual Parameters Source'!AD88) -> 1.5 | Y92: =IF('Annual Parameters Source'!AE88="","-",'Annual Parameters Source'!AE88) -> 1.5 | Z92: =IF('Annual Parameters Source'!AF88="","-",'Annual Parameters Source'!AF88) -> 144.1704643 | AA92: =IF('Annual Parameters Source'!AG88="","-",'Annual Parameters Source'!AG88) -> 144.1704643 | AB92: =IF('Annual Parameters Source'!J88="","-",'Annual Parameters Source'!J88) -> 0.5477876 | AC92: =IF('Annual Parameters Source'!K88="","-",'Annual Parameters Source'!K88) -> -0.0964311
B93: 2039 | D93: =IF('Annual Parameters Source'!D89="","-",'Annual Parameters Source'!D89/VLOOKUP($B$14,'Annual Parameters Source'!$B$40:$D$150,3,1)*100) -> 197.670667 | E93: =IF('Annual Parameters Source'!E89="","-",VLOOKUP($B$16,'Annual Parameters Source'!$B$40:$AH$154,33,FALSE)/VLOOKUP($B$16,'Annual Parameters Source'!$B$40:$AH$154,4,FALSE)*'Annual Parameters Source'!E89) -> - | F93: =IF('Annual Parameters Source'!F89="","-",'Annual Parameters Source'!F89) -> 2.004051789 | G93: =IF('Annual Parameters Source'!G89="","-",'Annual Parameters Source'!G89) -> 239.369489 | H93: =IF('Annual Parameters Source'!H89="","-",'Annual Parameters Source'!H89) -> - | I93: =IF('Annual Parameters Source'!I89="","-",'Annual Parameters Source'!I89) -> 0.4010144675 | J93: =IF('Annual Parameters Source'!L89="","-",'Annual Parameters Source'!L89) -> 129.1455626 | K93: =IF('Annual Parameters Source'!M89="","-",'Annual Parameters Source'!M89) -> - | L93: =IF('Annual Parameters Source'!N89="","-",'Annual Parameters Source'!N89) -> 0.4642704265 | M93: =IF('Annual Parameters Source'!O89="","-",'Annual Parameters Source'!O89) -> 131.5649472 | N93: =IF('Annual Parameters Source'!P89="","-",'Annual Parameters Source'!P89) -> - | O93: =IF('Annual Parameters Source'!Q89="","-",'Annual Parameters Source'!Q89) -> 1.596634586 | P93: =IF('Annual Parameters Source'!R89="","-",'Annual Parameters Source'!R89) -> 185.3485975 | Q93: =IF('Annual Parameters Source'!S89="","-",'Annual Parameters Source'!S89) -> - | R93: =IF('Annual Parameters Source'!T89="","-",'Annual Parameters Source'!T89) -> 1.532665649 | S93: =IF('Annual Parameters Source'!U89="","-",'Annual Parameters Source'!U89) -> 165.7408053 | T93: =IF('Annual Parameters Source'!V89="","-",'Annual Parameters Source'!V89) -> 1.596634586 | U93: =IF('Annual Parameters Source'!W89="","-",'Annual Parameters Source'!W89) -> 1.596634586 | V93: =IF('Annual Parameters Source'!X89="","-",'Annual Parameters Source'!X89) -> 143.7594964 | W93: =IF('Annual Parameters Source'!Y89="","-",'Annual Parameters Source'!Y89) -> 143.7594964 | X93: =IF('Annual Parameters Source'!AD89="","-",'Annual Parameters Source'!AD89) -> 1.5 | Y93: =IF('Annual Parameters Source'!AE89="","-",'Annual Parameters Source'!AE89) -> 1.5 | Z93: =IF('Annual Parameters Source'!AF89="","-",'Annual Parameters Source'!AF89) -> 146.3330213 | AA93: =IF('Annual Parameters Source'!AG89="","-",'Annual Parameters Source'!AG89) -> 146.3330213 | AB93: =IF('Annual Parameters Source'!J89="","-",'Annual Parameters Source'!J89) -> 0.55026058 | AC93: =IF('Annual Parameters Source'!K89="","-",'Annual Parameters Source'!K89) -> -0.103588
B94: 2040 | D94: =IF('Annual Parameters Source'!D90="","-",'Annual Parameters Source'!D90/VLOOKUP($B$14,'Annual Parameters Source'!$B$40:$D$150,3,1)*100) -> 202.2170924 | E94: =IF('Annual Parameters Source'!E90="","-",VLOOKUP($B$16,'Annual Parameters Source'!$B$40:$AH$154,33,FALSE)/VLOOKUP($B$16,'Annual Parameters Source'!$B$40:$AH$154,4,FALSE)*'Annual Parameters Source'!E90) -> - | F94: =IF('Annual Parameters Source'!F90="","-",'Annual Parameters Source'!F90) -> 1.957626181 | G94: =IF('Annual Parameters Source'!G90="","-",'Annual Parameters Source'!G90) -> 244.0554488 | H94: =IF('Annual Parameters Source'!H90="","-",'Annual Parameters Source'!H90) -> - | I94: =IF('Annual Parameters Source'!I90="","-",'Annual Parameters Source'!I90) -> 0.3965104122 | J94: =IF('Annual Parameters Source'!L90="","-",'Annual Parameters Source'!L90) -> 129.6576382 | K94: =IF('Annual Parameters Source'!M90="","-",'Annual Parameters Source'!M90) -> - | L94: =IF('Annual Parameters Source'!N90="","-",'Annual Parameters Source'!N90) -> 0.3965104122 | M94: =IF('Annual Parameters Source'!O90="","-",'Annual Parameters Source'!O90) -> 132.0866159 | N94: =IF('Annual Parameters Source'!P90="","-",'Annual Parameters Source'!P90) -> - | O94: =IF('Annual Parameters Source'!Q90="","-",'Annual Parameters Source'!Q90) -> 1.554950229 | P94: =IF('Annual Parameters Source'!R90="","-",'Annual Parameters Source'!R90) -> 188.230676 | Q94: =IF('Annual Parameters Source'!S90="","-",'Annual Parameters Source'!S90) -> - | R94: =IF('Annual Parameters Source'!T90="","-",'Annual Parameters Source'!T90) -> 1.554950229 | S94: =IF('Annual Parameters Source'!U90="","-",'Annual Parameters Source'!U90) -> 168.3179923 | T94: =IF('Annual Parameters Source'!V90="","-",'Annual Parameters Source'!V90) -> 1.554950229 | U94: =IF('Annual Parameters Source'!W90="","-",'Annual Parameters Source'!W90) -> 1.554950229 | V94: =IF('Annual Parameters Source'!X90="","-",'Annual Parameters Source'!X90) -> 145.994885 | W94: =IF('Annual Parameters Source'!Y90="","-",'Annual Parameters Source'!Y90) -> 145.994885 | X94: =IF('Annual Parameters Source'!AD90="","-",'Annual Parameters Source'!AD90) -> 1.5 | Y94: =IF('Annual Parameters Source'!AE90="","-",'Annual Parameters Source'!AE90) -> 1.5 | Z94: =IF('Annual Parameters Source'!AF90="","-",'Annual Parameters Source'!AF90) -> 148.5280166 | AA94: =IF('Annual Parameters Source'!AG90="","-",'Annual Parameters Source'!AG90) -> 148.5280166 | AB94: =IF('Annual Parameters Source'!J90="","-",'Annual Parameters Source'!J90) -> 0.55195301 | AC94: =IF('Annual Parameters Source'!K90="","-",'Annual Parameters Source'!K90) -> -0.1115848
B95: 2041 | D95: =IF('Annual Parameters Source'!D91="","-",'Annual Parameters Source'!D91/VLOOKUP($B$14,'Annual Parameters Source'!$B$40:$D$150,3,1)*100) -> 206.8680855 | E95: =IF('Annual Parameters Source'!E91="","-",VLOOKUP($B$16,'Annual Parameters Source'!$B$40:$AH$154,33,FALSE)/VLOOKUP($B$16,'Annual Parameters Source'!$B$40:$AH$154,4,FALSE)*'Annual Parameters Source'!E91) -> - | F95: =IF('Annual Parameters Source'!F91="","-",'Annual Parameters Source'!F91) -> 1.926464849 | G95: =IF('Annual Parameters Source'!G91="","-",'Annual Parameters Source'!G91) -> 248.7570912 | H95: =IF('Annual Parameters Source'!H91="","-",'Annual Parameters Source'!H91) -> - | I95: =IF('Annual Parameters Source'!I91="","-",'Annual Parameters Source'!I91) -> 0.3915004639 | J95: =IF('Annual Parameters Source'!L91="","-",'Annual Parameters Source'!L91) -> 130.1652485 | K95: =IF('Annual Parameters Source'!M91="","-",'Annual Parameters Source'!M91) -> - | L95: =IF('Annual Parameters Source'!N91="","-",'Annual Parameters Source'!N91) -> 0.3915004639 | M95: =IF('Annual Parameters Source'!O91="","-",'Annual Parameters Source'!O91) -> 132.6037356 | N95: =IF('Annual Parameters Source'!P91="","-",'Annual Parameters Source'!P91) -> - | O95: =IF('Annual Parameters Source'!Q91="","-",'Annual Parameters Source'!Q91) -> 1.528978428 | P95: =IF('Annual Parameters Source'!R91="","-",'Annual Parameters Source'!R91) -> 191.1086824 | Q95: =IF('Annual Parameters Source'!S91="","-",'Annual Parameters Source'!S91) -> - | R95: =IF('Annual Parameters Source'!T91="","-",'Annual Parameters Source'!T91) -> 1.528978428 | S95: =IF('Annual Parameters Source'!U91="","-",'Annual Parameters Source'!U91) -> 170.8915381 | T95: =IF('Annual Parameters Source'!V91="","-",'Annual Parameters Source'!V91) -> 1.528978428 | U95: =IF('Annual Parameters Source'!W91="","-",'Annual Parameters Source'!W91) -> 1.528978428 | V95: =IF('Annual Parameters Source'!X91="","-",'Annual Parameters Source'!X91) -> 148.2271153 | W95: =IF('Annual Parameters Source'!Y91="","-",'Annual Parameters Source'!Y91) -> 148.2271153 | X95: =IF('Annual Parameters Source'!AD91="","-",'Annual Parameters Source'!AD91) -> 1.5 | Y95: =IF('Annual Parameters Source'!AE91="","-",'Annual Parameters Source'!AE91) -> 1.5 | Z95: =IF('Annual Parameters Source'!AF91="","-",'Annual Parameters Source'!AF91) -> 150.7559368 | AA95: =IF('Annual Parameters Source'!AG91="","-",'Annual Parameters Source'!AG91) -> 150.7559368 | AB95: =IF('Annual Parameters Source'!J91="","-",'Annual Parameters Source'!J91) -> 0.55297281 | AC95: =IF('Annual Parameters Source'!K91="","-",'Annual Parameters Source'!K91) -> -0.1205572
B96: 2042 | D96: =IF('Annual Parameters Source'!D92="","-",'Annual Parameters Source'!D92/VLOOKUP($B$14,'Annual Parameters Source'!$B$40:$D$150,3,1)*100) -> 211.6260515 | E96: =IF('Annual Parameters Source'!E92="","-",VLOOKUP($B$16,'Annual Parameters Source'!$B$40:$AH$154,33,FALSE)/VLOOKUP($B$16,'Annual Parameters Source'!$B$40:$AH$154,4,FALSE)*'Annual Parameters Source'!E92) -> - | F96: =IF('Annual Parameters Source'!F92="","-",'Annual Parameters Source'!F92) -> 1.903035155 | G96: =IF('Annual Parameters Source'!G92="","-",'Annual Parameters Source'!G92) -> 253.4910261 | H96: =IF('Annual Parameters Source'!H92="","-",'Annual Parameters Source'!H92) -> - | I96: =IF('Annual Parameters Source'!I92="","-",'Annual Parameters Source'!I92) -> 0.3858791779 | J96: =IF('Annual Parameters Source'!L92="","-",'Annual Parameters Source'!L92) -> 130.667529 | K96: =IF('Annual Parameters Source'!M92="","-",'Annual Parameters Source'!M92) -> - | L96: =IF('Annual Parameters Source'!N92="","-",'Annual Parameters Source'!N92) -> 0.3858791779 | M96: =IF('Annual Parameters Source'!O92="","-",'Annual Parameters Source'!O92) -> 133.1154258 | N96: =IF('Annual Parameters Source'!P92="","-",'Annual Parameters Source'!P92) -> - | O96: =IF('Annual Parameters Source'!Q92="","-",'Annual Parameters Source'!Q92) -> 1.511324092 | P96: =IF('Annual Parameters Source'!R92="","-",'Annual Parameters Source'!R92) -> 193.9969539 | Q96: =IF('Annual Parameters Source'!S92="","-",'Annual Parameters Source'!S92) -> - | R96: =IF('Annual Parameters Source'!T92="","-",'Annual Parameters Source'!T92) -> 1.511324092 | S96: =IF('Annual Parameters Source'!U92="","-",'Annual Parameters Source'!U92) -> 173.4742631 | T96: =IF('Annual Parameters Source'!V92="","-",'Annual Parameters Source'!V92) -> 1.511324092 | U96: =IF('Annual Parameters Source'!W92="","-",'Annual Parameters Source'!W92) -> 1.511324092 | V96: =IF('Annual Parameters Source'!X92="","-",'Annual Parameters Source'!X92) -> 150.4673074 | W96: =IF('Annual Parameters Source'!Y92="","-",'Annual Parameters Source'!Y92) -> 150.4673074 | X96: =IF('Annual Parameters Source'!AD92="","-",'Annual Parameters Source'!AD92) -> 1.5 | Y96: =IF('Annual Parameters Source'!AE92="","-",'Annual Parameters Source'!AE92) -> 1.5 | Z96: =IF('Annual Parameters Source'!AF92="","-",'Annual Parameters Source'!AF92) -> 153.0172759 | AA96: =IF('Annual Parameters Source'!AG92="","-",'Annual Parameters Source'!AG92) -> 153.0172759 | AB96: =IF('Annual Parameters Source'!J92="","-",'Annual Parameters Source'!J92) -> 0.55338835 | AC96: =IF('Annual Parameters Source'!K92="","-",'Annual Parameters Source'!K92) -> -0.1305903
B97: 2043 | D97: =IF('Annual Parameters Source'!D93="","-",'Annual Parameters Source'!D93/VLOOKUP($B$14,'Annual Parameters Source'!$B$40:$D$150,3,1)*100) -> 216.4934506 | E97: =IF('Annual Parameters Source'!E93="","-",VLOOKUP($B$16,'Annual Parameters Source'!$B$40:$AH$154,33,FALSE)/VLOOKUP($B$16,'Annual Parameters Source'!$B$40:$AH$154,4,FALSE)*'Annual Parameters Source'!E93) -> - | F97: =IF('Annual Parameters Source'!F93="","-",'Annual Parameters Source'!F93) -> 1.871504049 | G97: =IF('Annual Parameters Source'!G93="","-",'Annual Parameters Source'!G93) -> 258.235121 | H97: =IF('Annual Parameters Source'!H93="","-",'Annual Parameters Source'!H93) -> - | I97: =IF('Annual Parameters Source'!I93="","-",'Annual Parameters Source'!I93) -> 0.3802574256 | J97: =IF('Annual Parameters Source'!L93="","-",'Annual Parameters Source'!L93) -> 131.164402 | K97: =IF('Annual Parameters Source'!M93="","-",'Annual Parameters Source'!M93) -> - | L97: =IF('Annual Parameters Source'!N93="","-",'Annual Parameters Source'!N93) -> 0.3802574256 | M97: =IF('Annual Parameters Source'!O93="","-",'Annual Parameters Source'!O93) -> 133.6216071 | N97: =IF('Annual Parameters Source'!P93="","-",'Annual Parameters Source'!P93) -> - | O97: =IF('Annual Parameters Source'!Q93="","-",'Annual Parameters Source'!Q93) -> 1.485597529 | P97: =IF('Annual Parameters Source'!R93="","-",'Annual Parameters Source'!R93) -> 196.8789679 | Q97: =IF('Annual Parameters Source'!S93="","-",'Annual Parameters Source'!S93) -> - | R97: =IF('Annual Parameters Source'!T93="","-",'Annual Parameters Source'!T93) -> 1.485597529 | S97: =IF('Annual Parameters Source'!U93="","-",'Annual Parameters Source'!U93) -> 176.0513925 | T97: =IF('Annual Parameters Source'!V93="","-",'Annual Parameters Source'!V93) -> 1.485597529 | U97: =IF('Annual Parameters Source'!W93="","-",'Annual Parameters Source'!W93) -> 1.485597529 | V97: =IF('Annual Parameters Source'!X93="","-",'Annual Parameters Source'!X93) -> 152.702646 | W97: =IF('Annual Parameters Source'!Y93="","-",'Annual Parameters Source'!Y93) -> 152.702646 | X97: =IF('Annual Parameters Source'!AD93="","-",'Annual Parameters Source'!AD93) -> 1.5 | Y97: =IF('Annual Parameters Source'!AE93="","-",'Annual Parameters Source'!AE93) -> 1.5 | Z97: =IF('Annual Parameters Source'!AF93="","-",'Annual Parameters Source'!AF93) -> 155.312535 | AA97: =IF('Annual Parameters Source'!AG93="","-",'Annual Parameters Source'!AG93) -> 155.312535 | AB97: =IF('Annual Parameters Source'!J93="","-",'Annual Parameters Source'!J93) -> 0.5528403 | AC97: =IF('Annual Parameters Source'!K93="","-",'Annual Parameters Source'!K93) -> -0.1420531
B98: 2044 | D98: =IF('Annual Parameters Source'!D94="","-",'Annual Parameters Source'!D94/VLOOKUP($B$14,'Annual Parameters Source'!$B$40:$D$150,3,1)*100) -> 221.4728 | E98: =IF('Annual Parameters Source'!E94="","-",VLOOKUP($B$16,'Annual Parameters Source'!$B$40:$AH$154,33,FALSE)/VLOOKUP($B$16,'Annual Parameters Source'!$B$40:$AH$154,4,FALSE)*'Annual Parameters Source'!E94) -> - | F98: =IF('Annual Parameters Source'!F94="","-",'Annual Parameters Source'!F94) -> 1.83801805 | G98: =IF('Annual Parameters Source'!G94="","-",'Annual Parameters Source'!G94) -> 262.9815291 | H98: =IF('Annual Parameters Source'!H94="","-",'Annual Parameters Source'!H94) -> - | I98: =IF('Annual Parameters Source'!I94="","-",'Annual Parameters Source'!I94) -> 0.374478924 | J98: =IF('Annual Parameters Source'!L94="","-",'Annual Parameters Source'!L94) -> 131.6555851 | K98: =IF('Annual Parameters Source'!M94="","-",'Annual Parameters Source'!M94) -> - | L98: =IF('Annual Parameters Source'!N94="","-",'Annual Parameters Source'!N94) -> 0.374478924 | M98: =IF('Annual Parameters Source'!O94="","-",'Annual Parameters Source'!O94) -> 134.1219919 | N98: =IF('Annual Parameters Source'!P94="","-",'Annual Parameters Source'!P94) -> - | O98: =IF('Annual Parameters Source'!Q94="","-",'Annual Parameters Source'!Q94) -> 1.458078928 | P98: =IF('Annual Parameters Source'!R94="","-",'Annual Parameters Source'!R94) -> 199.7496186 | Q98: =IF('Annual Parameters Source'!S94="","-",'Annual Parameters Source'!S94) -> - | R98: =IF('Annual Parameters Source'!T94="","-",'Annual Parameters Source'!T94) -> 1.458078928 | S98: =IF('Annual Parameters Source'!U94="","-",'Annual Parameters Source'!U94) -> 178.6183607 | T98: =IF('Annual Parameters Source'!V94="","-",'Annual Parameters Source'!V94) -> 1.458078928 | U98: =IF('Annual Parameters Source'!W94="","-",'Annual Parameters Source'!W94) -> 1.458078928 | V98: =IF('Annual Parameters Source'!X94="","-",'Annual Parameters Source'!X94) -> 154.9291711 | W98: =IF('Annual Parameters Source'!Y94="","-",'Annual Parameters Source'!Y94) -> 154.9291711 | X98: =IF('Annual Parameters Source'!AD94="","-",'Annual Parameters Source'!AD94) -> 1.5 | Y98: =IF('Annual Parameters Source'!AE94="","-",'Annual Parameters Source'!AE94) -> 1.5 | Z98: =IF('Annual Parameters Source'!AF94="","-",'Annual Parameters Source'!AF94) -> 157.642223 | AA98: =IF('Annual Parameters Source'!AG94="","-",'Annual Parameters Source'!AG94) -> 157.642223 | AB98: =IF('Annual Parameters Source'!J94="","-",'Annual Parameters Source'!J94) -> 0.55006545 | AC98: =IF('Annual Parameters Source'!K94="","-",'Annual Parameters Source'!K94) -> -0.1558088
B99: 2045 | D99: =IF('Annual Parameters Source'!D95="","-",'Annual Parameters Source'!D95/VLOOKUP($B$14,'Annual Parameters Source'!$B$40:$D$150,3,1)*100) -> 226.5666744 | E99: =IF('Annual Parameters Source'!E95="","-",VLOOKUP($B$16,'Annual Parameters Source'!$B$40:$AH$154,33,FALSE)/VLOOKUP($B$16,'Annual Parameters Source'!$B$40:$AH$154,4,FALSE)*'Annual Parameters Source'!E95) -> - | F99: =IF('Annual Parameters Source'!F95="","-",'Annual Parameters Source'!F95) -> 1.832050258 | G99: =IF('Annual Parameters Source'!G95="","-",'Annual Parameters Source'!G95) -> 267.7994829 | H99: =IF('Annual Parameters Source'!H95="","-",'Annual Parameters Source'!H95) -> - | I99: =IF('Annual Parameters Source'!I95="","-",'Annual Parameters Source'!I95) -> 0.3668549444 | J99: =IF('Annual Parameters Source'!L95="","-",'Annual Parameters Source'!L95) -> 132.1385701 | K99: =IF('Annual Parameters Source'!M95="","-",'Annual Parameters Source'!M95) -> - | L99: =IF('Annual Parameters Source'!N95="","-",'Annual Parameters Source'!N95) -> 0.3668549444 | M99: =IF('Annual Parameters Source'!O95="","-",'Annual Parameters Source'!O95) -> 134.614025 | N99: =IF('Annual Parameters Source'!P95="","-",'Annual Parameters Source'!P95) -> - | O99: =IF('Annual Parameters Source'!Q95="","-",'Annual Parameters Source'!Q95) -> 1.459839819 | P99: =IF('Annual Parameters Source'!R95="","-",'Annual Parameters Source'!R95) -> 202.6656431 | Q99: =IF('Annual Parameters Source'!S95="","-",'Annual Parameters Source'!S95) -> - | R99: =IF('Annual Parameters Source'!T95="","-",'Annual Parameters Source'!T95) -> 1.459839819 | S99: =IF('Annual Parameters Source'!U95="","-",'Annual Parameters Source'!U95) -> 181.2259027 | T99: =IF('Annual Parameters Source'!V95="","-",'Annual Parameters Source'!V95) -> 1.459839819 | U99: =IF('Annual Parameters Source'!W95="","-",'Annual Parameters Source'!W95) -> 1.459839819 | V99: =IF('Annual Parameters Source'!X95="","-",'Annual Parameters Source'!X95) -> 157.1908888 | W99: =IF('Annual Parameters Source'!Y95="","-",'Annual Parameters Source'!Y95) -> 157.1908888 | X99: =IF('Annual Parameters Source'!AD95="","-",'Annual Parameters Source'!AD95) -> 1.5 | Y99: =IF('Annual Parameters Source'!AE95="","-",'Annual Parameters Source'!AE95) -> 1.5 | Z99: =IF('Annual Parameters Source'!AF95="","-",'Annual Parameters Source'!AF95) -> 160.0068564 | AA99: =IF('Annual Parameters Source'!AG95="","-",'Annual Parameters Source'!AG95) -> 160.0068564 | AB99: =IF('Annual Parameters Source'!J95="","-",'Annual Parameters Source'!J95) -> 0.54597356 | AC99: =IF('Annual Parameters Source'!K95="","-",'Annual Parameters Source'!K95) -> -0.1709822
B100: 2046 | D100: =IF('Annual Parameters Source'!D96="","-",'Annual Parameters Source'!D96/VLOOKUP($B$14,'Annual Parameters Source'!$B$40:$D$150,3,1)*100) -> 231.7777079 | E100: =IF('Annual Parameters Source'!E96="","-",VLOOKUP($B$16,'Annual Parameters Source'!$B$40:$AH$154,33,FALSE)/VLOOKUP($B$16,'Annual Parameters Source'!$B$40:$AH$154,4,FALSE)*'Annual Parameters Source'!E96) -> - | F100: =IF('Annual Parameters Source'!F96="","-",'Annual Parameters Source'!F96) -> 1.83401682 | G100: =IF('Annual Parameters Source'!G96="","-",'Annual Parameters Source'!G96) -> 272.7109704 | H100: =IF('Annual Parameters Source'!H96="","-",'Annual Parameters Source'!H96) -> - | I100: =IF('Annual Parameters Source'!I96="","-",'Annual Parameters Source'!I96) -> 0.3571365933 | J100: =IF('Annual Parameters Source'!L96="","-",'Annual Parameters Source'!L96) -> 132.6104853 | K100: =IF('Annual Parameters Source'!M96="","-",'Annual Parameters Source'!M96) -> - | L100: =IF('Annual Parameters Source'!N96="","-",'Annual Parameters Source'!N96) -> 0.3571365933 | M100: =IF('Annual Parameters Source'!O96="","-",'Annual Parameters Source'!O96) -> 135.094781 | N100: =IF('Annual Parameters Source'!P96="","-",'Annual Parameters Source'!P96) -> - | O100: =IF('Annual Parameters Source'!Q96="","-",'Annual Parameters Source'!Q96) -> 1.471624517 | P100: =IF('Annual Parameters Source'!R96="","-",'Annual Parameters Source'!R96) -> 205.6481204 | Q100: =IF('Annual Parameters Source'!S96="","-",'Annual Parameters Source'!S96) -> - | R100: =IF('Annual Parameters Source'!T96="","-",'Annual Parameters Source'!T96) -> 1.471624517 | S100: =IF('Annual Parameters Source'!U96="","-",'Annual Parameters Source'!U96) -> 183.8928675 | T100: =IF('Annual Parameters Source'!V96="","-",'Annual Parameters Source'!V96) -> 1.471624517 | U100: =IF('Annual Parameters Source'!W96="","-",'Annual Parameters Source'!W96) -> 1.471624517 | V100: =IF('Annual Parameters Source'!X96="","-",'Annual Parameters Source'!X96) -> 159.5041485 | W100: =IF('Annual Parameters Source'!Y96="","-",'Annual Parameters Source'!Y96) -> 159.5041485 | X100: =IF('Annual Parameters Source'!AD96="","-",'Annual Parameters Source'!AD96) -> 1.5 | Y100: =IF('Annual Parameters Source'!AE96="","-",'Annual Parameters Source'!AE96) -> 1.5 | Z100: =IF('Annual Parameters Source'!AF96="","-",'Annual Parameters Source'!AF96) -> 162.4069592 | AA100: =IF('Annual Parameters Source'!AG96="","-",'Annual Parameters Source'!AG96) -> 162.4069592 | AB100: =IF('Annual Parameters Source'!J96="","-",'Annual Parameters Source'!J96) -> 0.54064884 | AC100: =IF('Annual Parameters Source'!K96="","-",'Annual Parameters Source'!K96) -> -0.1876482
B101: 2047 | D101: =IF('Annual Parameters Source'!D97="","-",'Annual Parameters Source'!D97/VLOOKUP($B$14,'Annual Parameters Source'!$B$40:$D$150,3,1)*100) -> 237.1085952 | E101: =IF('Annual Parameters Source'!E97="","-",VLOOKUP($B$16,'Annual Parameters Source'!$B$40:$AH$154,33,FALSE)/VLOOKUP($B$16,'Annual Parameters Source'!$B$40:$AH$154,4,FALSE)*'Annual Parameters Source'!E97) -> - | F101: =IF('Annual Parameters Source'!F97="","-",'Annual Parameters Source'!F97) -> 1.819514109 | G101: =IF('Annual Parameters Source'!G97="","-",'Annual Parameters Source'!G97) -> 277.672985 | H101: =IF('Annual Parameters Source'!H97="","-",'Annual Parameters Source'!H97) -> - | I101: =IF('Annual Parameters Source'!I97="","-",'Annual Parameters Source'!I97) -> 0.3468910804 | J101: =IF('Annual Parameters Source'!L97="","-",'Annual Parameters Source'!L97) -> 133.0704992 | K101: =IF('Annual Parameters Source'!M97="","-",'Annual Parameters Source'!M97) -> - | L101: =IF('Annual Parameters Source'!N97="","-",'Annual Parameters Source'!N97) -> 0.3468910804 | M101: =IF('Annual Parameters Source'!O97="","-",'Annual Parameters Source'!O97) -> 135.5634127 | N101: =IF('Annual Parameters Source'!P97="","-",'Annual Parameters Source'!P97) -> - | O101: =IF('Annual Parameters Source'!Q97="","-",'Annual Parameters Source'!Q97) -> 1.46753229 | P101: =IF('Annual Parameters Source'!R97="","-",'Annual Parameters Source'!R97) -> 208.666073 | Q101: =IF('Annual Parameters Source'!S97="","-",'Annual Parameters Source'!S97) -> - | R101: =IF('Annual Parameters Source'!T97="","-",'Annual Parameters Source'!T97) -> 1.46753229 | S101: =IF('Annual Parameters Source'!U97="","-",'Annual Parameters Source'!U97) -> 186.5915547 | T101: =IF('Annual Parameters Source'!V97="","-",'Annual Parameters Source'!V97) -> 1.46753229 | U101: =IF('Annual Parameters Source'!W97="","-",'Annual Parameters Source'!W97) -> 1.46753229 | V101: =IF('Annual Parameters Source'!X97="","-",'Annual Parameters Source'!X97) -> 161.8449234 | W101: =IF('Annual Parameters Source'!Y97="","-",'Annual Parameters Source'!Y97) -> 161.8449234 | X101: =IF('Annual Parameters Source'!AD97="","-",'Annual Parameters Source'!AD97) -> 1.5 | Y101: =IF('Annual Parameters Source'!AE97="","-",'Annual Parameters Source'!AE97) -> 1.5 | Z101: =IF('Annual Parameters Source'!AF97="","-",'Annual Parameters Source'!AF97) -> 164.8430636 | AA101: =IF('Annual Parameters Source'!AG97="","-",'Annual Parameters Source'!AG97) -> 164.8430636 | AB101: =IF('Annual Parameters Source'!J97="","-",'Annual Parameters Source'!J97) -> 0.53418077 | AC101: =IF('Annual Parameters Source'!K97="","-",'Annual Parameters Source'!K97) -> -0.2058309
B102: 2048 | D102: =IF('Annual Parameters Source'!D98="","-",'Annual Parameters Source'!D98/VLOOKUP($B$14,'Annual Parameters Source'!$B$40:$D$150,3,1)*100) -> 242.5620929 | E102: =IF('Annual Parameters Source'!E98="","-",VLOOKUP($B$16,'Annual Parameters Source'!$B$40:$AH$154,33,FALSE)/VLOOKUP($B$16,'Annual Parameters Source'!$B$40:$AH$154,4,FALSE)*'Annual Parameters Source'!E98) -> - | F102: =IF('Annual Parameters Source'!F98="","-",'Annual Parameters Source'!F98) -> 1.795781634 | G102: =IF('Annual Parameters Source'!G98="","-",'Annual Parameters Source'!G98) -> 282.6593855 | H102: =IF('Annual Parameters Source'!H98="","-",'Annual Parameters Source'!H98) -> - | I102: =IF('Annual Parameters Source'!I98="","-",'Annual Parameters Source'!I98) -> 0.3361847342 | J102: =IF('Annual Parameters Source'!L98="","-",'Annual Parameters Source'!L98) -> 133.5178619 | K102: =IF('Annual Parameters Source'!M98="","-",'Annual Parameters Source'!M98) -> - | L102: =IF('Annual Parameters Source'!N98="","-",'Annual Parameters Source'!N98) -> 0.3361847342 | M102: =IF('Annual Parameters Source'!O98="","-",'Annual Parameters Source'!O98) -> 136.0191562 | N102: =IF('Annual Parameters Source'!P98="","-",'Annual Parameters Source'!P98) -> - | O102: =IF('Annual Parameters Source'!Q98="","-",'Annual Parameters Source'!Q98) -> 1.454706399 | P102: =IF('Annual Parameters Source'!R98="","-",'Annual Parameters Source'!R98) -> 211.7015517 | Q102: =IF('Annual Parameters Source'!S98="","-",'Annual Parameters Source'!S98) -> - | R102: =IF('Annual Parameters Source'!T98="","-",'Annual Parameters Source'!T98) -> 1.454706399 | S102: =IF('Annual Parameters Source'!U98="","-",'Annual Parameters Source'!U98) -> 189.305914 | T102: =IF('Annual Parameters Source'!V98="","-",'Annual Parameters Source'!V98) -> 1.454706399 | U102: =IF('Annual Parameters Source'!W98="","-",'Annual Parameters Source'!W98) -> 1.454706399 | V102: =IF('Annual Parameters Source'!X98="","-",'Annual Parameters Source'!X98) -> 164.1992918 | W102: =IF('Annual Parameters Source'!Y98="","-",'Annual Parameters Source'!Y98) -> 164.1992918 | X102: =IF('Annual Parameters Source'!AD98="","-",'Annual Parameters Source'!AD98) -> 1.5 | Y102: =IF('Annual Parameters Source'!AE98="","-",'Annual Parameters Source'!AE98) -> 1.5 | Z102: =IF('Annual Parameters Source'!AF98="","-",'Annual Parameters Source'!AF98) -> 167.3157096 | AA102: =IF('Annual Parameters Source'!AG98="","-",'Annual Parameters Source'!AG98) -> 167.3157096 | AB102: =IF('Annual Parameters Source'!J98="","-",'Annual Parameters Source'!J98) -> 0.52675436 | AC102: =IF('Annual Parameters Source'!K98="","-",'Annual Parameters Source'!K98) -> -0.2255407
B103: 2049 | D103: =IF('Annual Parameters Source'!D99="","-",'Annual Parameters Source'!D99/VLOOKUP($B$14,'Annual Parameters Source'!$B$40:$D$150,3,1)*100) -> 248.141021 | E103: =IF('Annual Parameters Source'!E99="","-",VLOOKUP($B$16,'Annual Parameters Source'!$B$40:$AH$154,33,FALSE)/VLOOKUP($B$16,'Annual Parameters Source'!$B$40:$AH$154,4,FALSE)*'Annual Parameters Source'!E99) -> - | F103: =IF('Annual Parameters Source'!F99="","-",'Annual Parameters Source'!F99) -> 1.76845694 | G103: =IF('Annual Parameters Source'!G99="","-",'Annual Parameters Source'!G99) -> 287.658095 | H103: =IF('Annual Parameters Source'!H99="","-",'Annual Parameters Source'!H99) -> - | I103: =IF('Annual Parameters Source'!I99="","-",'Annual Parameters Source'!I99) -> 0.3249291741 | J103: =IF('Annual Parameters Source'!L99="","-",'Annual Parameters Source'!L99) -> 133.9517004 | K103: =IF('Annual Parameters Source'!M99="","-",'Annual Parameters Source'!M99) -> - | L103: =IF('Annual Parameters Source'!N99="","-",'Annual Parameters Source'!N99) -> 0.3249291741 | M103: =IF('Annual Parameters Source'!O99="","-",'Annual Parameters Source'!O99) -> 136.4611222 | N103: =IF('Annual Parameters Source'!P99="","-",'Annual Parameters Source'!P99) -> - | O103: =IF('Annual Parameters Source'!Q99="","-",'Annual Parameters Source'!Q99) -> 1.438852515 | P103: =IF('Annual Parameters Source'!R99="","-",'Annual Parameters Source'!R99) -> 214.7476248 | Q103: =IF('Annual Parameters Source'!S99="","-",'Annual Parameters Source'!S99) -> - | R103: =IF('Annual Parameters Source'!T99="","-",'Annual Parameters Source'!T99) -> 1.438852515 | S103: =IF('Annual Parameters Source'!U99="","-",'Annual Parameters Source'!U99) -> 192.0297469 | T103: =IF('Annual Parameters Source'!V99="","-",'Annual Parameters Source'!V99) -> 1.438852515 | U103: =IF('Annual Parameters Source'!W99="","-",'Annual Parameters Source'!W99) -> 1.438852515 | V103: =IF('Annual Parameters Source'!X99="","-",'Annual Parameters Source'!X99) -> 166.5618775 | W103: =IF('Annual Parameters Source'!Y99="","-",'Annual Parameters Source'!Y99) -> 166.5618775 | X103: =IF('Annual Parameters Source'!AD99="","-",'Annual Parameters Source'!AD99) -> 1.5 | Y103: =IF('Annual Parameters Source'!AE99="","-",'Annual Parameters Source'!AE99) -> 1.5 | Z103: =IF('Annual Parameters Source'!AF99="","-",'Annual Parameters Source'!AF99) -> 169.8254452 | AA103: =IF('Annual Parameters Source'!AG99="","-",'Annual Parameters Source'!AG99) -> 169.8254452 | AB103: =IF('Annual Parameters Source'!J99="","-",'Annual Parameters Source'!J99) -> 0.51858614 | AC103: =IF('Annual Parameters Source'!K99="","-",'Annual Parameters Source'!K99) -> -0.2464543
B104: 2050 | D104: =IF('Annual Parameters Source'!D100="","-",'Annual Parameters Source'!D100/VLOOKUP($B$14,'Annual Parameters Source'!$B$40:$D$150,3,1)*100) -> 253.8482645 | E104: =IF('Annual Parameters Source'!E100="","-",VLOOKUP($B$16,'Annual Parameters Source'!$B$40:$AH$154,33,FALSE)/VLOOKUP($B$16,'Annual Parameters Source'!$B$40:$AH$154,4,FALSE)*'Annual Parameters Source'!E100) -> - | F104: =IF('Annual Parameters Source'!F100="","-",'Annual Parameters Source'!F100) -> 1.762828027 | G104: =IF('Annual Parameters Source'!G100="","-",'Annual Parameters Source'!G100) -> 292.7290125 | H104: =IF('Annual Parameters Source'!H100="","-",'Annual Parameters Source'!H100) -> - | I104: =IF('Annual Parameters Source'!I100="","-",'Annual Parameters Source'!I100) -> 0.3135787448 | J104: =IF('Annual Parameters Source'!L100="","-",'Annual Parameters Source'!L100) -> 134.3717445 | K104: =IF('Annual Parameters Source'!M100="","-",'Annual Parameters Source'!M100) -> - | L104: =IF('Annual Parameters Source'!N100="","-",'Annual Parameters Source'!N100) -> 0.3135787448 | M104: =IF('Annual Parameters Source'!O100="","-",'Annual Parameters Source'!O100) -> 136.8890352 | N104: =IF('Annual Parameters Source'!P100="","-",'Annual Parameters Source'!P100) -> - | O104: =IF('Annual Parameters Source'!Q100="","-",'Annual Parameters Source'!Q100) -> 1.444718951 | P104: =IF('Annual Parameters Source'!R100="","-",'Annual Parameters Source'!R100) -> 217.8501244 | Q104: =IF('Annual Parameters Source'!S100="","-",'Annual Parameters Source'!S100) -> - | R104: =IF('Annual Parameters Source'!T100="","-",'Annual Parameters Source'!T100) -> 1.444718951 | S104: =IF('Annual Parameters Source'!U100="","-",'Annual Parameters Source'!U100) -> 194.8040371 | T104: =IF('Annual Parameters Source'!V100="","-",'Annual Parameters Source'!V100) -> 1.444718951 | U104: =IF('Annual Parameters Source'!W100="","-",'Annual Parameters Source'!W100) -> 1.444718951 | V104: =IF('Annual Parameters Source'!X100="","-",'Annual Parameters Source'!X100) -> 168.9682285 | W104: =IF('Annual Parameters Source'!Y100="","-",'Annual Parameters Source'!Y100) -> 168.9682285 | X104: =IF('Annual Parameters Source'!AD100="","-",'Annual Parameters Source'!AD100) -> 1.5 | Y104: =IF('Annual Parameters Source'!AE100="","-",'Annual Parameters Source'!AE100) -> 1.5 | Z104: =IF('Annual Parameters Source'!AF100="","-",'Annual Parameters Source'!AF100) -> 172.3728269 | AA104: =IF('Annual Parameters Source'!AG100="","-",'Annual Parameters Source'!AG100) -> 172.3728269 | AB104: =IF('Annual Parameters Source'!J100="","-",'Annual Parameters Source'!J100) -> 0.51014921 | AC104: =IF('Annual Parameters Source'!K100="","-",'Annual Parameters Source'!K100) -> -0.2681163
B105: 2051 | D105: =IF('Annual Parameters Source'!D101="","-",'Annual Parameters Source'!D101/VLOOKUP($B$14,'Annual Parameters Source'!$B$40:$D$150,3,1)*100) -> 259.6867746 | E105: =IF('Annual Parameters Source'!E101="","-",VLOOKUP($B$16,'Annual Parameters Source'!$B$40:$AH$154,33,FALSE)/VLOOKUP($B$16,'Annual Parameters Source'!$B$40:$AH$154,4,FALSE)*'Annual Parameters Source'!E101) -> - | F105: =IF('Annual Parameters Source'!F101="","-",'Annual Parameters Source'!F101) -> 1.757311612 | G105: =IF('Annual Parameters Source'!G101="","-",'Annual Parameters Source'!G101) -> 297.8731735 | H105: =IF('Annual Parameters Source'!H101="","-",'Annual Parameters Source'!H101) -> - | I105: =IF('Annual Parameters Source'!I101="","-",'Annual Parameters Source'!I101) -> 0.3025543487 | J105: =IF('Annual Parameters Source'!L101="","-",'Annual Parameters Source'!L101) -> 134.778292 | K105: =IF('Annual Parameters Source'!M101="","-",'Annual Parameters Source'!M101) -> - | L105: =IF('Annual Parameters Source'!N101="","-",'Annual Parameters Source'!N101) -> 0.3025543487 | M105: =IF('Annual Parameters Source'!O101="","-",'Annual Parameters Source'!O101) -> 137.303199 | N105: =IF('Annual Parameters Source'!P101="","-",'Annual Parameters Source'!P101) -> - | O105: =IF('Annual Parameters Source'!Q101="","-",'Annual Parameters Source'!Q101) -> 1.450369108 | P105: =IF('Annual Parameters Source'!R101="","-",'Annual Parameters Source'!R101) -> 221.0097553 | Q105: =IF('Annual Parameters Source'!S101="","-",'Annual Parameters Source'!S101) -> - | R105: =IF('Annual Parameters Source'!T101="","-",'Annual Parameters Source'!T101) -> 1.450369108 | S105: =IF('Annual Parameters Source'!U101="","-",'Annual Parameters Source'!U101) -> 197.6294146 | T105: =IF('Annual Parameters Source'!V101="","-",'Annual Parameters Source'!V101) -> 1.450369108 | U105: =IF('Annual Parameters Source'!W101="","-",'Annual Parameters Source'!W101) -> 1.450369108 | V105: =IF('Annual Parameters Source'!X101="","-",'Annual Parameters Source'!X101) -> 171.4188915 | W105: =IF('Annual Parameters Source'!Y101="","-",'Annual Parameters Source'!Y101) -> 171.4188915 | X105: =IF('Annual Parameters Source'!AD101="","-",'Annual Parameters Source'!AD101) -> 1.5 | Y105: =IF('Annual Parameters Source'!AE101="","-",'Annual Parameters Source'!AE101) -> 1.5 | Z105: =IF('Annual Parameters Source'!AF101="","-",'Annual Parameters Source'!AF101) -> 174.9584193 | AA105: =IF('Annual Parameters Source'!AG101="","-",'Annual Parameters Source'!AG101) -> 174.9584193 | AB105: =IF('Annual Parameters Source'!J101="","-",'Annual Parameters Source'!J101) -> 0.50186033 | AC105: =IF('Annual Parameters Source'!K101="","-",'Annual Parameters Source'!K101) -> -0.2899891
B106: 2052 | D106: =IF('Annual Parameters Source'!D102="","-",'Annual Parameters Source'!D102/VLOOKUP($B$14,'Annual Parameters Source'!$B$40:$D$150,3,1)*100) -> 265.6595704 | E106: =IF('Annual Parameters Source'!E102="","-",VLOOKUP($B$16,'Annual Parameters Source'!$B$40:$AH$154,33,FALSE)/VLOOKUP($B$16,'Annual Parameters Source'!$B$40:$AH$154,4,FALSE)*'Annual Parameters Source'!E102) -> - | F106: =IF('Annual Parameters Source'!F102="","-",'Annual Parameters Source'!F102) -> 1.744677069 | G106: =IF('Annual Parameters Source'!G102="","-",'Annual Parameters Source'!G102) -> 303.0700984 | H106: =IF('Annual Parameters Source'!H102="","-",'Annual Parameters Source'!H102) -> - | I106: =IF('Annual Parameters Source'!I102="","-",'Annual Parameters Source'!I102) -> 0.291942723 | J106: =IF('Annual Parameters Source'!L102="","-",'Annual Parameters Source'!L102) -> 135.1717674 | K106: =IF('Annual Parameters Source'!M102="","-",'Annual Parameters Source'!M102) -> - | L106: =IF('Annual Parameters Source'!N102="","-",'Annual Parameters Source'!N102) -> 0.291942723 | M106: =IF('Annual Parameters Source'!O102="","-",'Annual Parameters Source'!O102) -> 137.7040457 | N106: =IF('Annual Parameters Source'!P102="","-",'Annual Parameters Source'!P102) -> - | O106: =IF('Annual Parameters Source'!Q102="","-",'Annual Parameters Source'!Q102) -> 1.448505539 | P106: =IF('Annual Parameters Source'!R102="","-",'Annual Parameters Source'!R102) -> 224.2110939 | Q106: =IF('Annual Parameters Source'!S102="","-",'Annual Parameters Source'!S102) -> - | R106: =IF('Annual Parameters Source'!T102="","-",'Annual Parameters Source'!T102) -> 1.448505539 | S106: =IF('Annual Parameters Source'!U102="","-",'Annual Parameters Source'!U102) -> 200.4920877 | T106: =IF('Annual Parameters Source'!V102="","-",'Annual Parameters Source'!V102) -> 1.448505539 | U106: =IF('Annual Parameters Source'!W102="","-",'Annual Parameters Source'!W102) -> 1.448505539 | V106: =IF('Annual Parameters Source'!X102="","-",'Annual Parameters Source'!X102) -> 173.9019036 | W106: =IF('Annual Parameters Source'!Y102="","-",'Annual Parameters Source'!Y102) -> 173.9019036 | X106: =IF('Annual Parameters Source'!AD102="","-",'Annual Parameters Source'!AD102) -> 1.5 | Y106: =IF('Annual Parameters Source'!AE102="","-",'Annual Parameters Source'!AE102) -> 1.5 | Z106: =IF('Annual Parameters Source'!AF102="","-",'Annual Parameters Source'!AF102) -> 177.5827956 | AA106: =IF('Annual Parameters Source'!AG102="","-",'Annual Parameters Source'!AG102) -> 177.5827956 | AB106: =IF('Annual Parameters Source'!J102="","-",'Annual Parameters Source'!J102) -> 0.49404314 | AC106: =IF('Annual Parameters Source'!K102="","-",'Annual Parameters Source'!K102) -> -0.3114618
B107: 2053 | D107: =IF('Annual Parameters Source'!D103="","-",'Annual Parameters Source'!D103/VLOOKUP($B$14,'Annual Parameters Source'!$B$40:$D$150,3,1)*100) -> 271.7697405 | E107: =IF('Annual Parameters Source'!E103="","-",VLOOKUP($B$16,'Annual Parameters Source'!$B$40:$AH$154,33,FALSE)/VLOOKUP($B$16,'Annual Parameters Source'!$B$40:$AH$154,4,FALSE)*'Annual Parameters Source'!E103) -> - | F107: =IF('Annual Parameters Source'!F103="","-",'Annual Parameters Source'!F103) -> 1.732297189 | G107: =IF('Annual Parameters Source'!G103="","-",'Annual Parameters Source'!G103) -> 308.3201732 | H107: =IF('Annual Parameters Source'!H103="","-",'Annual Parameters Source'!H103) -> - | I107: =IF('Annual Parameters Source'!I103="","-",'Annual Parameters Source'!I103) -> 0.2818398739 | J107: =IF('Annual Parameters Source'!L103="","-",'Annual Parameters Source'!L103) -> 135.5527354 | K107: =IF('Annual Parameters Source'!M103="","-",'Annual Parameters Source'!M103) -> - | L107: =IF('Annual Parameters Source'!N103="","-",'Annual Parameters Source'!N103) -> 0.2818398739 | M107: =IF('Annual Parameters Source'!O103="","-",'Annual Parameters Source'!O103) -> 138.0921506 | N107: =IF('Annual Parameters Source'!P103="","-",'Annual Parameters Source'!P103) -> - | O107: =IF('Annual Parameters Source'!Q103="","-",'Annual Parameters Source'!Q103) -> 1.446380837 | P107: =IF('Annual Parameters Source'!R103="","-",'Annual Parameters Source'!R103) -> 227.4540402 | Q107: =IF('Annual Parameters Source'!S103="","-",'Annual Parameters Source'!S103) -> - | R107: =IF('Annual Parameters Source'!T103="","-",'Annual Parameters Source'!T103) -> 1.446380837 | S107: =IF('Annual Parameters Source'!U103="","-",'Annual Parameters Source'!U103) -> 203.3919668 | T107: =IF('Annual Parameters Source'!V103="","-",'Annual Parameters Source'!V103) -> 1.446380837 | U107: =IF('Annual Parameters Source'!W103="","-",'Annual Parameters Source'!W103) -> 1.446380837 | V107: =IF('Annual Parameters Source'!X103="","-",'Annual Parameters Source'!X103) -> 176.4171874 | W107: =IF('Annual Parameters Source'!Y103="","-",'Annual Parameters Source'!Y103) -> 176.4171874 | X107: =IF('Annual Parameters Source'!AD103="","-",'Annual Parameters Source'!AD103) -> 1.5 | Y107: =IF('Annual Parameters Source'!AE103="","-",'Annual Parameters Source'!AE103) -> 1.5 | Z107: =IF('Annual Parameters Source'!AF103="","-",'Annual Parameters Source'!AF103) -> 180.2465375 | AA107: =IF('Annual Parameters Source'!AG103="","-",'Annual Parameters Source'!AG103) -> 180.2465375 | AB107: =IF('Annual Parameters Source'!J103="","-",'Annual Parameters Source'!J103) -> 0.48689155 | AC107: =IF('Annual Parameters Source'!K103="","-",'Annual Parameters Source'!K103) -> -0.3320265
B108: 2054 | D108: =IF('Annual Parameters Source'!D104="","-",'Annual Parameters Source'!D104/VLOOKUP($B$14,'Annual Parameters Source'!$B$40:$D$150,3,1)*100) -> 278.0204446 | E108: =IF('Annual Parameters Source'!E104="","-",VLOOKUP($B$16,'Annual Parameters Source'!$B$40:$AH$154,33,FALSE)/VLOOKUP($B$16,'Annual Parameters Source'!$B$40:$AH$154,4,FALSE)*'Annual Parameters Source'!E104) -> - | F108: =IF('Annual Parameters Source'!F104="","-",'Annual Parameters Source'!F104) -> 1.715223921 | G108: =IF('Annual Parameters Source'!G104="","-",'Annual Parameters Source'!G104) -> 313.6085546 | H108: =IF('Annual Parameters Source'!H104="","-",'Annual Parameters Source'!H104) -> - | I108: =IF('Annual Parameters Source'!I104="","-",'Annual Parameters Source'!I104) -> 0.2726359888 | J108: =IF('Annual Parameters Source'!L104="","-",'Annual Parameters Source'!L104) -> 135.9223009 | K108: =IF('Annual Parameters Source'!M104="","-",'Annual Parameters Source'!M104) -> - | L108: =IF('Annual Parameters Source'!N104="","-",'Annual Parameters Source'!N104) -> 0.2726359888 | M108: =IF('Annual Parameters Source'!O104="","-",'Annual Parameters Source'!O104) -> 138.4686395 | N108: =IF('Annual Parameters Source'!P104="","-",'Annual Parameters Source'!P104) -> - | O108: =IF('Annual Parameters Source'!Q104="","-",'Annual Parameters Source'!Q104) -> 1.438665612 | P108: =IF('Annual Parameters Source'!R104="","-",'Annual Parameters Source'!R104) -> 230.7263432 | Q108: =IF('Annual Parameters Source'!S104="","-",'Annual Parameters Source'!S104) -> - | R108: =IF('Annual Parameters Source'!T104="","-",'Annual Parameters Source'!T104) -> 1.438665612 | S108: =IF('Annual Parameters Source'!U104="","-",'Annual Parameters Source'!U104) -> 206.3180971 | T108: =IF('Annual Parameters Source'!V104="","-",'Annual Parameters Source'!V104) -> 1.438665612 | U108: =IF('Annual Parameters Source'!W104="","-",'Annual Parameters Source'!W104) -> 1.438665612 | V108: =IF('Annual Parameters Source'!X104="","-",'Annual Parameters Source'!X104) -> 178.9552408 | W108: =IF('Annual Parameters Source'!Y104="","-",'Annual Parameters Source'!Y104) -> 178.9552408 | X108: =IF('Annual Parameters Source'!AD104="","-",'Annual Parameters Source'!AD104) -> 1.5 | Y108: =IF('Annual Parameters Source'!AE104="","-",'Annual Parameters Source'!AE104) -> 1.5 | Z108: =IF('Annual Parameters Source'!AF104="","-",'Annual Parameters Source'!AF104) -> 182.9502356 | AA108: =IF('Annual Parameters Source'!AG104="","-",'Annual Parameters Source'!AG104) -> 182.9502356 | AB108: =IF('Annual Parameters Source'!J104="","-",'Annual Parameters Source'!J104) -> 0.48048976 | AC108: =IF('Annual Parameters Source'!K104="","-",'Annual Parameters Source'!K104) -> -0.3512221
B109: 2055 | D109: =IF('Annual Parameters Source'!D105="","-",'Annual Parameters Source'!D105/VLOOKUP($B$14,'Annual Parameters Source'!$B$40:$D$150,3,1)*100) -> 284.4149148 | E109: =IF('Annual Parameters Source'!E105="","-",VLOOKUP($B$16,'Annual Parameters Source'!$B$40:$AH$154,33,FALSE)/VLOOKUP($B$16,'Annual Parameters Source'!$B$40:$AH$154,4,FALSE)*'Annual Parameters Source'!E105) -> - | F109: =IF('Annual Parameters Source'!F105="","-",'Annual Parameters Source'!F105) -> 1.699311374 | G109: =IF('Annual Parameters Source'!G105="","-",'Annual Parameters Source'!G105) -> 318.9377404 | H109: =IF('Annual Parameters Source'!H105="","-",'Annual Parameters Source'!H105) -> - | I109: =IF('Annual Parameters Source'!I105="","-",'Annual Parameters Source'!I105) -> 0.2648005152 | J109: =IF('Annual Parameters Source'!L105="","-",'Annual Parameters Source'!L105) -> 136.2822239 | K109: =IF('Annual Parameters Source'!M105="","-",'Annual Parameters Source'!M105) -> - | L109: =IF('Annual Parameters Source'!N105="","-",'Annual Parameters Source'!N105) -> 0.2648005152 | M109: =IF('Annual Parameters Source'!O105="","-",'Annual Parameters Source'!O105) -> 138.8353051 | N109: =IF('Annual Parameters Source'!P105="","-",'Annual Parameters Source'!P105) -> - | O109: =IF('Annual Parameters Source'!Q105="","-",'Annual Parameters Source'!Q105) -> 1.430722298 | P109: =IF('Annual Parameters Source'!R105="","-",'Annual Parameters Source'!R105) -> 234.0273965 | Q109: =IF('Annual Parameters Source'!S105="","-",'Annual Parameters Source'!S105) -> - | R109: =IF('Annual Parameters Source'!T105="","-",'Annual Parameters Source'!T105) -> 1.430722298 | S109: =IF('Annual Parameters Source'!U105="","-",'Annual Parameters Source'!U105) -> 209.2699361 | T109: =IF('Annual Parameters Source'!V105="","-",'Annual Parameters Source'!V105) -> 1.430722298 | U109: =IF('Annual Parameters Source'!W105="","-",'Annual Parameters Source'!W105) -> 1.430722298 | V109: =IF('Annual Parameters Source'!X105="","-",'Annual Parameters Source'!X105) -> 181.5155934 | W109: =IF('Annual Parameters Source'!Y105="","-",'Annual Parameters Source'!Y105) -> 181.5155934 | X109: =IF('Annual Parameters Source'!AD105="","-",'Annual Parameters Source'!AD105) -> 1.5 | Y109: =IF('Annual Parameters Source'!AE105="","-",'Annual Parameters Source'!AE105) -> 1.5 | Z109: =IF('Annual Parameters Source'!AF105="","-",'Annual Parameters Source'!AF105) -> 185.6944891 | AA109: =IF('Annual Parameters Source'!AG105="","-",'Annual Parameters Source'!AG105) -> 185.6944891 | AB109: =IF('Annual Parameters Source'!J105="","-",'Annual Parameters Source'!J105) -> 0.47521957 | AC109: =IF('Annual Parameters Source'!K105="","-",'Annual Parameters Source'!K105) -> -0.3684396
B110: 2056 | D110: =IF('Annual Parameters Source'!D106="","-",'Annual Parameters Source'!D106/VLOOKUP($B$14,'Annual Parameters Source'!$B$40:$D$150,3,1)*100) -> 290.9564578 | E110: =IF('Annual Parameters Source'!E106="","-",VLOOKUP($B$16,'Annual Parameters Source'!$B$40:$AH$154,33,FALSE)/VLOOKUP($B$16,'Annual Parameters Source'!$B$40:$AH$154,4,FALSE)*'Annual Parameters Source'!E106) -> - | F110: =IF('Annual Parameters Source'!F106="","-",'Annual Parameters Source'!F106) -> 1.685146947 | G110: =IF('Annual Parameters Source'!G106="","-",'Annual Parameters Source'!G106) -> 324.31231 | H110: =IF('Annual Parameters Source'!H106="","-",'Annual Parameters Source'!H106) -> - | I110: =IF('Annual Parameters Source'!I106="","-",'Annual Parameters Source'!I106) -> 0.2583716695 | J110: =IF('Annual Parameters Source'!L106="","-",'Annual Parameters Source'!L106) -> 136.6343385 | K110: =IF('Annual Parameters Source'!M106="","-",'Annual Parameters Source'!M106) -> - | L110: =IF('Annual Parameters Source'!N106="","-",'Annual Parameters Source'!N106) -> 0.2583716695 | M110: =IF('Annual Parameters Source'!O106="","-",'Annual Parameters Source'!O106) -> 139.1940162 | N110: =IF('Annual Parameters Source'!P106="","-",'Annual Parameters Source'!P106) -> - | O110: =IF('Annual Parameters Source'!Q106="","-",'Annual Parameters Source'!Q106) -> 1.423098394 | P110: =IF('Annual Parameters Source'!R106="","-",'Annual Parameters Source'!R106) -> 237.3578366 | Q110: =IF('Annual Parameters Source'!S106="","-",'Annual Parameters Source'!S106) -> - | R110: =IF('Annual Parameters Source'!T106="","-",'Annual Parameters Source'!T106) -> 1.423098394 | S110: =IF('Annual Parameters Source'!U106="","-",'Annual Parameters Source'!U106) -> 212.2480532 | T110: =IF('Annual Parameters Source'!V106="","-",'Annual Parameters Source'!V106) -> 1.423098394 | U110: =IF('Annual Parameters Source'!W106="","-",'Annual Parameters Source'!W106) -> 1.423098394 | V110: =IF('Annual Parameters Source'!X106="","-",'Annual Parameters Source'!X106) -> 184.0987389 | W110: =IF('Annual Parameters Source'!Y106="","-",'Annual Parameters Source'!Y106) -> 184.0987389 | X110: =IF('Annual Parameters Source'!AD106="","-",'Annual Parameters Source'!AD106) -> 1.5 | Y110: =IF('Annual Parameters Source'!AE106="","-",'Annual Parameters Source'!AE106) -> 1.5 | Z110: =IF('Annual Parameters Source'!AF106="","-",'Annual Parameters Source'!AF106) -> 188.4799065 | AA110: =IF('Annual Parameters Source'!AG106="","-",'Annual Parameters Source'!AG106) -> 188.4799065 | AB110: =IF('Annual Parameters Source'!J106="","-",'Annual Parameters Source'!J106) -> 0.4712395 | AC110: =IF('Annual Parameters Source'!K106="","-",'Annual Parameters Source'!K106) -> -0.3832802
B111: 2057 | D111: =IF('Annual Parameters Source'!D107="","-",'Annual Parameters Source'!D107/VLOOKUP($B$14,'Annual Parameters Source'!$B$40:$D$150,3,1)*100) -> 297.6484564 | E111: =IF('Annual Parameters Source'!E107="","-",VLOOKUP($B$16,'Annual Parameters Source'!$B$40:$AH$154,33,FALSE)/VLOOKUP($B$16,'Annual Parameters Source'!$B$40:$AH$154,4,FALSE)*'Annual Parameters Source'!E107) -> - | F111: =IF('Annual Parameters Source'!F107="","-",'Annual Parameters Source'!F107) -> 1.666397993 | G111: =IF('Annual Parameters Source'!G107="","-",'Annual Parameters Source'!G107) -> 329.7166438 | H111: =IF('Annual Parameters Source'!H107="","-",'Annual Parameters Source'!H107) -> - | I111: =IF('Annual Parameters Source'!I107="","-",'Annual Parameters Source'!I107) -> 0.2534882315 | J111: =IF('Annual Parameters Source'!L107="","-",'Annual Parameters Source'!L107) -> 136.9806905 | K111: =IF('Annual Parameters Source'!M107="","-",'Annual Parameters Source'!M107) -> - | L111: =IF('Annual Parameters Source'!N107="","-",'Annual Parameters Source'!N107) -> 0.2534882315 | M111: =IF('Annual Parameters Source'!O107="","-",'Annual Parameters Source'!O107) -> 139.5468567 | N111: =IF('Annual Parameters Source'!P107="","-",'Annual Parameters Source'!P107) -> - | O111: =IF('Annual Parameters Source'!Q107="","-",'Annual Parameters Source'!Q107) -> 1.409337257 | P111: =IF('Annual Parameters Source'!R107="","-",'Annual Parameters Source'!R107) -> 240.703009 | Q111: =IF('Annual Parameters Source'!S107="","-",'Annual Parameters Source'!S107) -> - | R111: =IF('Annual Parameters Source'!T107="","-",'Annual Parameters Source'!T107) -> 1.409337257 | S111: =IF('Annual Parameters Source'!U107="","-",'Annual Parameters Source'!U107) -> 215.2393441 | T111: =IF('Annual Parameters Source'!V107="","-",'Annual Parameters Source'!V107) -> 1.409337257 | U111: =IF('Annual Parameters Source'!W107="","-",'Annual Parameters Source'!W107) -> 1.409337257 | V111: =IF('Annual Parameters Source'!X107="","-",'Annual Parameters Source'!X107) -> 186.693311 | W111: =IF('Annual Parameters Source'!Y107="","-",'Annual Parameters Source'!Y107) -> 186.693311 | X111: =IF('Annual Parameters Source'!AD107="","-",'Annual Parameters Source'!AD107) -> 1.5 | Y111: =IF('Annual Parameters Source'!AE107="","-",'Annual Parameters Source'!AE107) -> 1.5 | Z111: =IF('Annual Parameters Source'!AF107="","-",'Annual Parameters Source'!AF107) -> 191.307105 | AA111: =IF('Annual Parameters Source'!AG107="","-",'Annual Parameters Source'!AG107) -> 191.307105 | AB111: =IF('Annual Parameters Source'!J107="","-",'Annual Parameters Source'!J107) -> 0.46853137 | AC111: =IF('Annual Parameters Source'!K107="","-",'Annual Parameters Source'!K107) -> -0.3954218
B112: 2058 | D112: =IF('Annual Parameters Source'!D108="","-",'Annual Parameters Source'!D108/VLOOKUP($B$14,'Annual Parameters Source'!$B$40:$D$150,3,1)*100) -> 304.4943709 | E112: =IF('Annual Parameters Source'!E108="","-",VLOOKUP($B$16,'Annual Parameters Source'!$B$40:$AH$154,33,FALSE)/VLOOKUP($B$16,'Annual Parameters Source'!$B$40:$AH$154,4,FALSE)*'Annual Parameters Source'!E108) -> - | F112: =IF('Annual Parameters Source'!F108="","-",'Annual Parameters Source'!F108) -> 1.656570597 | G112: =IF('Annual Parameters Source'!G108="","-",'Annual Parameters Source'!G108) -> 335.1786328 | H112: =IF('Annual Parameters Source'!H108="","-",'Annual Parameters Source'!H108) -> - | I112: =IF('Annual Parameters Source'!I108="","-",'Annual Parameters Source'!I108) -> 0.2496696475 | J112: =IF('Annual Parameters Source'!L108="","-",'Annual Parameters Source'!L108) -> 137.3226897 | K112: =IF('Annual Parameters Source'!M108="","-",'Annual Parameters Source'!M108) -> - | L112: =IF('Annual Parameters Source'!N108="","-",'Annual Parameters Source'!N108) -> 0.2496696475 | M112: =IF('Annual Parameters Source'!O108="","-",'Annual Parameters Source'!O108) -> 139.8952628 | N112: =IF('Annual Parameters Source'!P108="","-",'Annual Parameters Source'!P108) -> - | O112: =IF('Annual Parameters Source'!Q108="","-",'Annual Parameters Source'!Q108) -> 1.403397093 | P112: =IF('Annual Parameters Source'!R108="","-",'Annual Parameters Source'!R108) -> 244.0810281 | Q112: =IF('Annual Parameters Source'!S108="","-",'Annual Parameters Source'!S108) -> - | R112: =IF('Annual Parameters Source'!T108="","-",'Annual Parameters Source'!T108) -> 1.403397093 | S112: =IF('Annual Parameters Source'!U108="","-",'Annual Parameters Source'!U108) -> 218.2600068 | T112: =IF('Annual Parameters Source'!V108="","-",'Annual Parameters Source'!V108) -> 1.403397093 | U112: =IF('Annual Parameters Source'!W108="","-",'Annual Parameters Source'!W108) -> 1.403397093 | V112: =IF('Annual Parameters Source'!X108="","-",'Annual Parameters Source'!X108) -> 189.3133595 | W112: =IF('Annual Parameters Source'!Y108="","-",'Annual Parameters Source'!Y108) -> 189.3133595 | X112: =IF('Annual Parameters Source'!AD108="","-",'Annual Parameters Source'!AD108) -> 1.5 | Y112: =IF('Annual Parameters Source'!AE108="","-",'Annual Parameters Source'!AE108) -> 1.5 | Z112: =IF('Annual Parameters Source'!AF108="","-",'Annual Parameters Source'!AF108) -> 194.1767116 | AA112: =IF('Annual Parameters Source'!AG108="","-",'Annual Parameters Source'!AG108) -> 194.1767116 | AB112: =IF('Annual Parameters Source'!J108="","-",'Annual Parameters Source'!J108) -> 0.46709823 | AC112: =IF('Annual Parameters Source'!K108="","-",'Annual Parameters Source'!K108) -> -0.4048867
B113: 2059 | D113: =IF('Annual Parameters Source'!D109="","-",'Annual Parameters Source'!D109/VLOOKUP($B$14,'Annual Parameters Source'!$B$40:$D$150,3,1)*100) -> 311.4977414 | E113: =IF('Annual Parameters Source'!E109="","-",VLOOKUP($B$16,'Annual Parameters Source'!$B$40:$AH$154,33,FALSE)/VLOOKUP($B$16,'Annual Parameters Source'!$B$40:$AH$154,4,FALSE)*'Annual Parameters Source'!E109) -> - | F113: =IF('Annual Parameters Source'!F109="","-",'Annual Parameters Source'!F109) -> 1.635523572 | G113: =IF('Annual Parameters Source'!G109="","-",'Annual Parameters Source'!G109) -> 340.6605584 | H113: =IF('Annual Parameters Source'!H109="","-",'Annual Parameters Source'!H109) -> - | I113: =IF('Annual Parameters Source'!I109="","-",'Annual Parameters Source'!I109) -> 0.2471331458 | J113: =IF('Annual Parameters Source'!L109="","-",'Annual Parameters Source'!L109) -> 137.6620596 | K113: =IF('Annual Parameters Source'!M109="","-",'Annual Parameters Source'!M109) -> - | L113: =IF('Annual Parameters Source'!N109="","-",'Annual Parameters Source'!N109) -> 0.2471331458 | M113: =IF('Annual Parameters Source'!O109="","-",'Annual Parameters Source'!O109) -> 140.2409904 | N113: =IF('Annual Parameters Source'!P109="","-",'Annual Parameters Source'!P109) -> - | O113: =IF('Annual Parameters Source'!Q109="","-",'Annual Parameters Source'!Q109) -> 1.384967712 | P113: =IF('Annual Parameters Source'!R109="","-",'Annual Parameters Source'!R109) -> 247.4614715 | Q113: =IF('Annual Parameters Source'!S109="","-",'Annual Parameters Source'!S109) -> - | R113: =IF('Annual Parameters Source'!T109="","-",'Annual Parameters Source'!T109) -> 1.384967712 | S113: =IF('Annual Parameters Source'!U109="","-",'Annual Parameters Source'!U109) -> 221.2828374 | T113: =IF('Annual Parameters Source'!V109="","-",'Annual Parameters Source'!V109) -> 1.384967712 | U113: =IF('Annual Parameters Source'!W109="","-",'Annual Parameters Source'!W109) -> 1.384967712 | V113: =IF('Annual Parameters Source'!X109="","-",'Annual Parameters Source'!X109) -> 191.9352884 | W113: =IF('Annual Parameters Source'!Y109="","-",'Annual Parameters Source'!Y109) -> 191.9352884 | X113: =IF('Annual Parameters Source'!AD109="","-",'Annual Parameters Source'!AD109) -> 1.5 | Y113: =IF('Annual Parameters Source'!AE109="","-",'Annual Parameters Source'!AE109) -> 1.5 | Z113: =IF('Annual Parameters Source'!AF109="","-",'Annual Parameters Source'!AF109) -> 197.0893623 | AA113: =IF('Annual Parameters Source'!AG109="","-",'Annual Parameters Source'!AG109) -> 197.0893623 | AB113: =IF('Annual Parameters Source'!J109="","-",'Annual Parameters Source'!J109) -> 0.46685245 | AC113: =IF('Annual Parameters Source'!K109="","-",'Annual Parameters Source'!K109) -> -0.411656
B114: 2060 | D114: =IF('Annual Parameters Source'!D110="","-",'Annual Parameters Source'!D110/VLOOKUP($B$14,'Annual Parameters Source'!$B$40:$D$150,3,1)*100) -> 318.6621894 | E114: =IF('Annual Parameters Source'!E110="","-",VLOOKUP($B$16,'Annual Parameters Source'!$B$40:$AH$154,33,FALSE)/VLOOKUP($B$16,'Annual Parameters Source'!$B$40:$AH$154,4,FALSE)*'Annual Parameters Source'!E110) -> - | F114: =IF('Annual Parameters Source'!F110="","-",'Annual Parameters Source'!F110) -> 1.647342798 | G114: =IF('Annual Parameters Source'!G110="","-",'Annual Parameters Source'!G110) -> 346.2724055 | H114: =IF('Annual Parameters Source'!H110="","-",'Annual Parameters Source'!H110) -> - | I114: =IF('Annual Parameters Source'!I110="","-",'Annual Parameters Source'!I110) -> 0.245870885 | J114: =IF('Annual Parameters Source'!L110="","-",'Annual Parameters Source'!L110) -> 138.0005305 | K114: =IF('Annual Parameters Source'!M110="","-",'Annual Parameters Source'!M110) -> - | L114: =IF('Annual Parameters Source'!N110="","-",'Annual Parameters Source'!N110) -> 0.245870885 | M114: =IF('Annual Parameters Source'!O110="","-",'Annual Parameters Source'!O110) -> 140.5858022 | N114: =IF('Annual Parameters Source'!P110="","-",'Annual Parameters Source'!P110) -> - | O114: =IF('Annual Parameters Source'!Q110="","-",'Annual Parameters Source'!Q110) -> 1.398034553 | P114: =IF('Annual Parameters Source'!R110="","-",'Annual Parameters Source'!R110) -> 250.9210684 | Q114: =IF('Annual Parameters Source'!S110="","-",'Annual Parameters Source'!S110) -> - | R114: =IF('Annual Parameters Source'!T110="","-",'Annual Parameters Source'!T110) -> 1.398034553 | S114: =IF('Annual Parameters Source'!U110="","-",'Annual Parameters Source'!U110) -> 224.3764479 | T114: =IF('Annual Parameters Source'!V110="","-",'Annual Parameters Source'!V110) -> 1.398034553 | U114: =IF('Annual Parameters Source'!W110="","-",'Annual Parameters Source'!W110) -> 1.398034553 | V114: =IF('Annual Parameters Source'!X110="","-",'Annual Parameters Source'!X110) -> 194.61861 | W114: =IF('Annual Parameters Source'!Y110="","-",'Annual Parameters Source'!Y110) -> 194.61861 | X114: =IF('Annual Parameters Source'!AD110="","-",'Annual Parameters Source'!AD110) -> 1.5 | Y114: =IF('Annual Parameters Source'!AE110="","-",'Annual Parameters Source'!AE110) -> 1.5 | Z114: =IF('Annual Parameters Source'!AF110="","-",'Annual Parameters Source'!AF110) -> 200.0457027 | AA114: =IF('Annual Parameters Source'!AG110="","-",'Annual Parameters Source'!AG110) -> 200.0457027 | AB114: =IF('Annual Parameters Source'!J110="","-",'Annual Parameters Source'!J110) -> 0.46780214 | AC114: =IF('Annual Parameters Source'!K110="","-",'Annual Parameters Source'!K110) -> -0.4159174
B115: 2061 | D115: =IF('Annual Parameters Source'!D111="","-",'Annual Parameters Source'!D111/VLOOKUP($B$14,'Annual Parameters Source'!$B$40:$D$150,3,1)*100) -> 325.9914198 | E115: =IF('Annual Parameters Source'!E111="","-",VLOOKUP($B$16,'Annual Parameters Source'!$B$40:$AH$154,33,FALSE)/VLOOKUP($B$16,'Annual Parameters Source'!$B$40:$AH$154,4,FALSE)*'Annual Parameters Source'!E111) -> - | F115: =IF('Annual Parameters Source'!F111="","-",'Annual Parameters Source'!F111) -> 1.629637084 | G115: =IF('Annual Parameters Source'!G111="","-",'Annual Parameters Source'!G111) -> 351.9153891 | H115: =IF('Annual Parameters Source'!H111="","-",'Annual Parameters Source'!H111) -> - | I115: =IF('Annual Parameters Source'!I111="","-",'Annual Parameters Source'!I111) -> 0.2453757847 | J115: =IF('Annual Parameters Source'!L111="","-",'Annual Parameters Source'!L111) -> 138.3391504 | K115: =IF('Annual Parameters Source'!M111="","-",'Annual Parameters Source'!M111) -> - | L115: =IF('Annual Parameters Source'!N111="","-",'Annual Parameters Source'!N111) -> 0.2453757847 | M115: =IF('Annual Parameters Source'!O111="","-",'Annual Parameters Source'!O111) -> 140.9307657 | N115: =IF('Annual Parameters Source'!P111="","-",'Annual Parameters Source'!P111) -> - | O115: =IF('Annual Parameters Source'!Q111="","-",'Annual Parameters Source'!Q111) -> 1.380872972 | P115: =IF('Annual Parameters Source'!R111="","-",'Annual Parameters Source'!R111) -> 254.3859696 | Q115: =IF('Annual Parameters Source'!S111="","-",'Annual Parameters Source'!S111) -> - | R115: =IF('Annual Parameters Source'!T111="","-",'Annual Parameters Source'!T111) -> 1.380872972 | S115: =IF('Annual Parameters Source'!U111="","-",'Annual Parameters Source'!U111) -> 227.4748017 | T115: =IF('Annual Parameters Source'!V111="","-",'Annual Parameters Source'!V111) -> 1.380872972 | U115: =IF('Annual Parameters Source'!W111="","-",'Annual Parameters Source'!W111) -> 1.380872972 | V115: =IF('Annual Parameters Source'!X111="","-",'Annual Parameters Source'!X111) -> 197.3060458 | W115: =IF('Annual Parameters Source'!Y111="","-",'Annual Parameters Source'!Y111) -> 197.3060458 | X115: =IF('Annual Parameters Source'!AD111="","-",'Annual Parameters Source'!AD111) -> 1.5 | Y115: =IF('Annual Parameters Source'!AE111="","-",'Annual Parameters Source'!AE111) -> 1.5 | Z115: =IF('Annual Parameters Source'!AF111="","-",'Annual Parameters Source'!AF111) -> 203.0463883 | AA115: =IF('Annual Parameters Source'!AG111="","-",'Annual Parameters Source'!AG111) -> 203.0463883 | AB115: =IF('Annual Parameters Source'!J111="","-",'Annual Parameters Source'!J111) -> 0.46992623 | AC115: =IF('Annual Parameters Source'!K111="","-",'Annual Parameters Source'!K111) -> -0.4178471
B116: =B115+1 -> 2062 | D116: =IF('Annual Parameters Source'!D112="","-",'Annual Parameters Source'!D112/VLOOKUP($B$14,'Annual Parameters Source'!$B$40:$D$150,3,1)*100) -> 333.4892224 | E116: =IF('Annual Parameters Source'!E112="","-",VLOOKUP($B$16,'Annual Parameters Source'!$B$40:$AH$154,33,FALSE)/VLOOKUP($B$16,'Annual Parameters Source'!$B$40:$AH$154,4,FALSE)*'Annual Parameters Source'!E112) -> - | F116: =IF('Annual Parameters Source'!F112="","-",'Annual Parameters Source'!F112) -> 1.6083939 | G116: =IF('Annual Parameters Source'!G112="","-",'Annual Parameters Source'!G112) -> 357.5755747 | H116: =IF('Annual Parameters Source'!H112="","-",'Annual Parameters Source'!H112) -> - | I116: =IF('Annual Parameters Source'!I112="","-",'Annual Parameters Source'!I112) -> 0.2455677236 | J116: =IF('Annual Parameters Source'!L112="","-",'Annual Parameters Source'!L112) -> 138.6788667 | K116: =IF('Annual Parameters Source'!M112="","-",'Annual Parameters Source'!M112) -> - | L116: =IF('Annual Parameters Source'!N112="","-",'Annual Parameters Source'!N112) -> 0.2455677236 | M116: =IF('Annual Parameters Source'!O112="","-",'Annual Parameters Source'!O112) -> 141.2768461 | N116: =IF('Annual Parameters Source'!P112="","-",'Annual Parameters Source'!P112) -> - | O116: =IF('Annual Parameters Source'!Q112="","-",'Annual Parameters Source'!Q112) -> 1.359487714 | P116: =IF('Annual Parameters Source'!R112="","-",'Annual Parameters Source'!R112) -> 257.8443156 | Q116: =IF('Annual Parameters Source'!S112="","-",'Annual Parameters Source'!S112) -> - | R116: =IF('Annual Parameters Source'!T112="","-",'Annual Parameters Source'!T112) -> 1.359487714 | S116: =IF('Annual Parameters Source'!U112="","-",'Annual Parameters Source'!U112) -> 230.5672936 | T116: =IF('Annual Parameters Source'!V112="","-",'Annual Parameters Source'!V112) -> 1.359487714 | U116: =IF('Annual Parameters Source'!W112="","-",'Annual Parameters Source'!W112) -> 1.359487714 | V116: =IF('Annual Parameters Source'!X112="","-",'Annual Parameters Source'!X112) -> 199.9883973 | W116: =IF('Annual Parameters Source'!Y112="","-",'Annual Parameters Source'!Y112) -> 199.9883973 | X116: =IF('Annual Parameters Source'!AD112="","-",'Annual Parameters Source'!AD112) -> 1.5 | Y116: =IF('Annual Parameters Source'!AE112="","-",'Annual Parameters Source'!AE112) -> 1.5 | Z116: =IF('Annual Parameters Source'!AF112="","-",'Annual Parameters Source'!AF112) -> 206.0920841 | AA116: =IF('Annual Parameters Source'!AG112="","-",'Annual Parameters Source'!AG112) -> 206.0920841 | AB116: =IF('Annual Parameters Source'!J112="","-",'Annual Parameters Source'!J112) -> 0.47299513 | AC116: =IF('Annual Parameters Source'!K112="","-",'Annual Parameters Source'!K112) -> -0.4178035
B117: 2063 | D117: =IF('Annual Parameters Source'!D113="","-",'Annual Parameters Source'!D113/VLOOKUP($B$14,'Annual Parameters Source'!$B$40:$D$150,3,1)*100) -> 341.1594746 | E117: =IF('Annual Parameters Source'!E113="","-",VLOOKUP($B$16,'Annual Parameters Source'!$B$40:$AH$154,33,FALSE)/VLOOKUP($B$16,'Annual Parameters Source'!$B$40:$AH$154,4,FALSE)*'Annual Parameters Source'!E113) -> - | F117: =IF('Annual Parameters Source'!F113="","-",'Annual Parameters Source'!F113) -> 1.597064394 | G117: =IF('Annual Parameters Source'!G113="","-",'Annual Parameters Source'!G113) -> 363.2862869 | H117: =IF('Annual Parameters Source'!H113="","-",'Annual Parameters Source'!H113) -> - | I117: =IF('Annual Parameters Source'!I113="","-",'Annual Parameters Source'!I113) -> 0.2461052528 | J117: =IF('Annual Parameters Source'!L113="","-",'Annual Parameters Source'!L113) -> 139.0201627 | K117: =IF('Annual Parameters Source'!M113="","-",'Annual Parameters Source'!M113) -> - | L117: =IF('Annual Parameters Source'!N113="","-",'Annual Parameters Source'!N113) -> 0.2461052528 | M117: =IF('Annual Parameters Source'!O113="","-",'Annual Parameters Source'!O113) -> 141.6245359 | N117: =IF('Annual Parameters Source'!P113="","-",'Annual Parameters Source'!P113) -> - | O117: =IF('Annual Parameters Source'!Q113="","-",'Annual Parameters Source'!Q113) -> 1.347642522 | P117: =IF('Annual Parameters Source'!R113="","-",'Annual Parameters Source'!R113) -> 261.3191352 | Q117: =IF('Annual Parameters Source'!S113="","-",'Annual Parameters Source'!S113) -> - | R117: =IF('Annual Parameters Source'!T113="","-",'Annual Parameters Source'!T113) -> 1.347642522 | S117: =IF('Annual Parameters Source'!U113="","-",'Annual Parameters Source'!U113) -> 233.6745165 | T117: =IF('Annual Parameters Source'!V113="","-",'Annual Parameters Source'!V113) -> 1.347642522 | U117: =IF('Annual Parameters Source'!W113="","-",'Annual Parameters Source'!W113) -> 1.347642522 | V117: =IF('Annual Parameters Source'!X113="","-",'Annual Parameters Source'!X113) -> 202.6835259 | W117: =IF('Annual Parameters Source'!Y113="","-",'Annual Parameters Source'!Y113) -> 202.6835259 | X117: =IF('Annual Parameters Source'!AD113="","-",'Annual Parameters Source'!AD113) -> 1.5 | Y117: =IF('Annual Parameters Source'!AE113="","-",'Annual Parameters Source'!AE113) -> 1.5 | Z117: =IF('Annual Parameters Source'!AF113="","-",'Annual Parameters Source'!AF113) -> 209.1834654 | AA117: =IF('Annual Parameters Source'!AG113="","-",'Annual Parameters Source'!AG113) -> 209.1834654 | AB117: =IF('Annual Parameters Source'!J113="","-",'Annual Parameters Source'!J113) -> 0.47677107 | AC117: =IF('Annual Parameters Source'!K113="","-",'Annual Parameters Source'!K113) -> -0.4162808
B118: 2064 | D118: =IF('Annual Parameters Source'!D114="","-",'Annual Parameters Source'!D114/VLOOKUP($B$14,'Annual Parameters Source'!$B$40:$D$150,3,1)*100) -> 349.0061425 | E118: =IF('Annual Parameters Source'!E114="","-",VLOOKUP($B$16,'Annual Parameters Source'!$B$40:$AH$154,33,FALSE)/VLOOKUP($B$16,'Annual Parameters Source'!$B$40:$AH$154,4,FALSE)*'Annual Parameters Source'!E114) -> - | F118: =IF('Annual Parameters Source'!F114="","-",'Annual Parameters Source'!F114) -> 1.600926725 | G118: =IF('Annual Parameters Source'!G114="","-",'Annual Parameters Source'!G114) -> 369.1022342 | H118: =IF('Annual Parameters Source'!H114="","-",'Annual Parameters Source'!H114) -> - | I118: =IF('Annual Parameters Source'!I114="","-",'Annual Parameters Source'!I114) -> 0.2469662786 | J118: =IF('Annual Parameters Source'!L114="","-",'Annual Parameters Source'!L114) -> 139.3634956 | K118: =IF('Annual Parameters Source'!M114="","-",'Annual Parameters Source'!M114) -> - | L118: =IF('Annual Parameters Source'!N114="","-",'Annual Parameters Source'!N114) -> 0.2469662786 | M118: =IF('Annual Parameters Source'!O114="","-",'Annual Parameters Source'!O114) -> 141.9743007 | N118: =IF('Annual Parameters Source'!P114="","-",'Annual Parameters Source'!P114) -> - | O118: =IF('Annual Parameters Source'!Q114="","-",'Annual Parameters Source'!Q114) -> 1.350624859 | P118: =IF('Annual Parameters Source'!R114="","-",'Annual Parameters Source'!R114) -> 264.8485764 | Q118: =IF('Annual Parameters Source'!S114="","-",'Annual Parameters Source'!S114) -> - | R118: =IF('Annual Parameters Source'!T114="","-",'Annual Parameters Source'!T114) -> 1.350624859 | S118: =IF('Annual Parameters Source'!U114="","-",'Annual Parameters Source'!U114) -> 236.8305826 | T118: =IF('Annual Parameters Source'!V114="","-",'Annual Parameters Source'!V114) -> 1.350624859 | U118: =IF('Annual Parameters Source'!W114="","-",'Annual Parameters Source'!W114) -> 1.350624859 | V118: =IF('Annual Parameters Source'!X114="","-",'Annual Parameters Source'!X114) -> 205.42102 | W118: =IF('Annual Parameters Source'!Y114="","-",'Annual Parameters Source'!Y114) -> 205.42102 | X118: =IF('Annual Parameters Source'!AD114="","-",'Annual Parameters Source'!AD114) -> 1.5 | Y118: =IF('Annual Parameters Source'!AE114="","-",'Annual Parameters Source'!AE114) -> 1.5 | Z118: =IF('Annual Parameters Source'!AF114="","-",'Annual Parameters Source'!AF114) -> 212.3212173 | AA118: =IF('Annual Parameters Source'!AG114="","-",'Annual Parameters Source'!AG114) -> 212.3212173 | AB118: =IF('Annual Parameters Source'!J114="","-",'Annual Parameters Source'!J114) -> 0.48110643 | AC118: =IF('Annual Parameters Source'!K114="","-",'Annual Parameters Source'!K114) -> -0.413725
B119: 2065 | D119: =IF('Annual Parameters Source'!D115="","-",'Annual Parameters Source'!D115/VLOOKUP($B$14,'Annual Parameters Source'!$B$40:$D$150,3,1)*100) -> 357.0332838 | E119: =IF('Annual Parameters Source'!E115="","-",VLOOKUP($B$16,'Annual Parameters Source'!$B$40:$AH$154,33,FALSE)/VLOOKUP($B$16,'Annual Parameters Source'!$B$40:$AH$154,4,FALSE)*'Annual Parameters Source'!E115) -> - | F119: =IF('Annual Parameters Source'!F115="","-",'Annual Parameters Source'!F115) -> 1.608119906 | G119: =IF('Annual Parameters Source'!G115="","-",'Annual Parameters Source'!G115) -> 375.0378407 | H119: =IF('Annual Parameters Source'!H115="","-",'Annual Parameters Source'!H115) -> - | I119: =IF('Annual Parameters Source'!I115="","-",'Annual Parameters Source'!I115) -> 0.248191081 | J119: =IF('Annual Parameters Source'!L115="","-",'Annual Parameters Source'!L115) -> 139.7093834 | K119: =IF('Annual Parameters Source'!M115="","-",'Annual Parameters Source'!M115) -> - | L119: =IF('Annual Parameters Source'!N115="","-",'Annual Parameters Source'!N115) -> 0.248191081 | M119: =IF('Annual Parameters Source'!O115="","-",'Annual Parameters Source'!O115) -> 142.3266683 | N119: =IF('Annual Parameters Source'!P115="","-",'Annual Parameters Source'!P115) -> - | O119: =IF('Annual Parameters Source'!Q115="","-",'Annual Parameters Source'!Q115) -> 1.356561959 | P119: =IF('Annual Parameters Source'!R115="","-",'Annual Parameters Source'!R115) -> 268.4414115 | Q119: =IF('Annual Parameters Source'!S115="","-",'Annual Parameters Source'!S115) -> - | R119: =IF('Annual Parameters Source'!T115="","-",'Annual Parameters Source'!T115) -> 1.356561959 | S119: =IF('Annual Parameters Source'!U115="","-",'Annual Parameters Source'!U115) -> 240.0433362 | T119: =IF('Annual Parameters Source'!V115="","-",'Annual Parameters Source'!V115) -> 1.356561959 | U119: =IF('Annual Parameters Source'!W115="","-",'Annual Parameters Source'!W115) -> 1.356561959 | V119: =IF('Annual Parameters Source'!X115="","-",'Annual Parameters Source'!X115) -> 208.2076834 | W119: =IF('Annual Parameters Source'!Y115="","-",'Annual Parameters Source'!Y115) -> 208.2076834 | X119: =IF('Annual Parameters Source'!AD115="","-",'Annual Parameters Source'!AD115) -> 1.5 | Y119: =IF('Annual Parameters Source'!AE115="","-",'Annual Parameters Source'!AE115) -> 1.5 | Z119: =IF('Annual Parameters Source'!AF115="","-",'Annual Parameters Source'!AF115) -> 215.5060356 | AA119: =IF('Annual Parameters Source'!AG115="","-",'Annual Parameters Source'!AG115) -> 215.5060356 | AB119: =IF('Annual Parameters Source'!J115="","-",'Annual Parameters Source'!J115) -> 0.48586845 | AC119: =IF('Annual Parameters Source'!K115="","-",'Annual Parameters Source'!K115) -> -0.4105347
B120: 2066 | D120: =IF('Annual Parameters Source'!D116="","-",'Annual Parameters Source'!D116/VLOOKUP($B$14,'Annual Parameters Source'!$B$40:$D$150,3,1)*100) -> 365.2450493 | E120: =IF('Annual Parameters Source'!E116="","-",VLOOKUP($B$16,'Annual Parameters Source'!$B$40:$AH$154,33,FALSE)/VLOOKUP($B$16,'Annual Parameters Source'!$B$40:$AH$154,4,FALSE)*'Annual Parameters Source'!E116) -> - | F120: =IF('Annual Parameters Source'!F116="","-",'Annual Parameters Source'!F116) -> 1.61670952 | G120: =IF('Annual Parameters Source'!G116="","-",'Annual Parameters Source'!G116) -> 381.1011131 | H120: =IF('Annual Parameters Source'!H116="","-",'Annual Parameters Source'!H116) -> - | I120: =IF('Annual Parameters Source'!I116="","-",'Annual Parameters Source'!I116) -> 0.249106514 | J120: =IF('Annual Parameters Source'!L116="","-",'Annual Parameters Source'!L116) -> 140.0574085 | K120: =IF('Annual Parameters Source'!M116="","-",'Annual Parameters Source'!M116) -> - | L120: =IF('Annual Parameters Source'!N116="","-",'Annual Parameters Source'!N116) -> 0.249106514 | M120: =IF('Annual Parameters Source'!O116="","-",'Annual Parameters Source'!O116) -> 142.6812133 | N120: =IF('Annual Parameters Source'!P116="","-",'Annual Parameters Source'!P116) -> - | O120: =IF('Annual Parameters Source'!Q116="","-",'Annual Parameters Source'!Q116) -> 1.364204683 | P120: =IF('Annual Parameters Source'!R116="","-",'Annual Parameters Source'!R116) -> 272.1035018 | Q120: =IF('Annual Parameters Source'!S116="","-",'Annual Parameters Source'!S116) -> - | R120: =IF('Annual Parameters Source'!T116="","-",'Annual Parameters Source'!T116) -> 1.364204683 | S120: =IF('Annual Parameters Source'!U116="","-",'Annual Parameters Source'!U116) -> 243.3180187 | T120: =IF('Annual Parameters Source'!V116="","-",'Annual Parameters Source'!V116) -> 1.364204683 | U120: =IF('Annual Parameters Source'!W116="","-",'Annual Parameters Source'!W116) -> 1.364204683 | V120: =IF('Annual Parameters Source'!X116="","-",'Annual Parameters Source'!X116) -> 211.0480624 | W120: =IF('Annual Parameters Source'!Y116="","-",'Annual Parameters Source'!Y116) -> 211.0480624 | X120: =IF('Annual Parameters Source'!AD116="","-",'Annual Parameters Source'!AD116) -> 1.5 | Y120: =IF('Annual Parameters Source'!AE116="","-",'Annual Parameters Source'!AE116) -> 1.5 | Z120: =IF('Annual Parameters Source'!AF116="","-",'Annual Parameters Source'!AF116) -> 218.7386261 | AA120: =IF('Annual Parameters Source'!AG116="","-",'Annual Parameters Source'!AG116) -> 218.7386261 | AB120: =IF('Annual Parameters Source'!J116="","-",'Annual Parameters Source'!J116) -> 0.49088626 | AC120: =IF('Annual Parameters Source'!K116="","-",'Annual Parameters Source'!K116) -> -0.4071235
B121: 2067 | D121: =IF('Annual Parameters Source'!D117="","-",'Annual Parameters Source'!D117/VLOOKUP($B$14,'Annual Parameters Source'!$B$40:$D$150,3,1)*100) -> 373.6456854 | E121: =IF('Annual Parameters Source'!E117="","-",VLOOKUP($B$16,'Annual Parameters Source'!$B$40:$AH$154,33,FALSE)/VLOOKUP($B$16,'Annual Parameters Source'!$B$40:$AH$154,4,FALSE)*'Annual Parameters Source'!E117) -> - | F121: =IF('Annual Parameters Source'!F117="","-",'Annual Parameters Source'!F117) -> 1.642088335 | G121: =IF('Annual Parameters Source'!G117="","-",'Annual Parameters Source'!G117) -> 387.3591301 | H121: =IF('Annual Parameters Source'!H117="","-",'Annual Parameters Source'!H117) -> - | I121: =IF('Annual Parameters Source'!I117="","-",'Annual Parameters Source'!I117) -> 0.2495350049 | J121: =IF('Annual Parameters Source'!L117="","-",'Annual Parameters Source'!L117) -> 140.4069008 | K121: =IF('Annual Parameters Source'!M117="","-",'Annual Parameters Source'!M117) -> - | L121: =IF('Annual Parameters Source'!N117="","-",'Annual Parameters Source'!N117) -> 0.2495350049 | M121: =IF('Annual Parameters Source'!O117="","-",'Annual Parameters Source'!O117) -> 143.0372529 | N121: =IF('Annual Parameters Source'!P117="","-",'Annual Parameters Source'!P117) -> - | O121: =IF('Annual Parameters Source'!Q117="","-",'Annual Parameters Source'!Q117) -> 1.389087072 | P121: =IF('Annual Parameters Source'!R117="","-",'Annual Parameters Source'!R117) -> 275.8832563 | Q121: =IF('Annual Parameters Source'!S117="","-",'Annual Parameters Source'!S117) -> - | R121: =IF('Annual Parameters Source'!T117="","-",'Annual Parameters Source'!T117) -> 1.389087072 | S121: =IF('Annual Parameters Source'!U117="","-",'Annual Parameters Source'!U117) -> 246.6979178 | T121: =IF('Annual Parameters Source'!V117="","-",'Annual Parameters Source'!V117) -> 1.389087072 | U121: =IF('Annual Parameters Source'!W117="","-",'Annual Parameters Source'!W117) -> 1.389087072 | V121: =IF('Annual Parameters Source'!X117="","-",'Annual Parameters Source'!X117) -> 213.9797038 | W121: =IF('Annual Parameters Source'!Y117="","-",'Annual Parameters Source'!Y117) -> 213.9797038 | X121: =IF('Annual Parameters Source'!AD117="","-",'Annual Parameters Source'!AD117) -> 1.5 | Y121: =IF('Annual Parameters Source'!AE117="","-",'Annual Parameters Source'!AE117) -> 1.5 | Z121: =IF('Annual Parameters Source'!AF117="","-",'Annual Parameters Source'!AF117) -> 222.0197055 | AA121: =IF('Annual Parameters Source'!AG117="","-",'Annual Parameters Source'!AG117) -> 222.0197055 | AB121: =IF('Annual Parameters Source'!J117="","-",'Annual Parameters Source'!J117) -> 0.49595326 | AC121: =IF('Annual Parameters Source'!K117="","-",'Annual Parameters Source'!K117) -> -0.4038479
B122: 2068 | D122: =IF('Annual Parameters Source'!D118="","-",'Annual Parameters Source'!D118/VLOOKUP($B$14,'Annual Parameters Source'!$B$40:$D$150,3,1)*100) -> 382.2395362 | E122: =IF('Annual Parameters Source'!E118="","-",VLOOKUP($B$16,'Annual Parameters Source'!$B$40:$AH$154,33,FALSE)/VLOOKUP($B$16,'Annual Parameters Source'!$B$40:$AH$154,4,FALSE)*'Annual Parameters Source'!E118) -> - | F122: =IF('Annual Parameters Source'!F118="","-",'Annual Parameters Source'!F118) -> 1.698225377 | G122: =IF('Annual Parameters Source'!G118="","-",'Annual Parameters Source'!G118) -> 393.9373611 | H122: =IF('Annual Parameters Source'!H118="","-",'Annual Parameters Source'!H118) -> - | I122: =IF('Annual Parameters Source'!I118="","-",'Annual Parameters Source'!I118) -> 0.2493838896 | J122: =IF('Annual Parameters Source'!L118="","-",'Annual Parameters Source'!L118) -> 140.757053 | K122: =IF('Annual Parameters Source'!M118="","-",'Annual Parameters Source'!M118) -> - | L122: =IF('Annual Parameters Source'!N118="","-",'Annual Parameters Source'!N118) -> 0.2493838896 | M122: =IF('Annual Parameters Source'!O118="","-",'Annual Parameters Source'!O118) -> 143.3939647 | N122: =IF('Annual Parameters Source'!P118="","-",'Annual Parameters Source'!P118) -> - | O122: =IF('Annual Parameters Source'!Q118="","-",'Annual Parameters Source'!Q118) -> 1.445237298 | P122: =IF('Annual Parameters Source'!R118="","-",'Annual Parameters Source'!R118) -> 279.870424 | Q122: =IF('Annual Parameters Source'!S118="","-",'Annual Parameters Source'!S118) -> - | R122: =IF('Annual Parameters Source'!T118="","-",'Annual Parameters Source'!T118) -> 1.445237298 | S122: =IF('Annual Parameters Source'!U118="","-",'Annual Parameters Source'!U118) -> 250.2632881 | T122: =IF('Annual Parameters Source'!V118="","-",'Annual Parameters Source'!V118) -> 1.445237298 | U122: =IF('Annual Parameters Source'!W118="","-",'Annual Parameters Source'!W118) -> 1.445237298 | V122: =IF('Annual Parameters Source'!X118="","-",'Annual Parameters Source'!X118) -> 217.0722183 | W122: =IF('Annual Parameters Source'!Y118="","-",'Annual Parameters Source'!Y118) -> 217.0722183 | X122: =IF('Annual Parameters Source'!AD118="","-",'Annual Parameters Source'!AD118) -> 1.5 | Y122: =IF('Annual Parameters Source'!AE118="","-",'Annual Parameters Source'!AE118) -> 1.5 | Z122: =IF('Annual Parameters Source'!AF118="","-",'Annual Parameters Source'!AF118) -> 225.3500011 | AA122: =IF('Annual Parameters Source'!AG118="","-",'Annual Parameters Source'!AG118) -> 225.3500011 | AB122: =IF('Annual Parameters Source'!J118="","-",'Annual Parameters Source'!J118) -> 0.50083188 | AC122: =IF('Annual Parameters Source'!K118="","-",'Annual Parameters Source'!K118) -> -0.4010621
B123: 2069 | D123: =IF('Annual Parameters Source'!D119="","-",'Annual Parameters Source'!D119/VLOOKUP($B$14,'Annual Parameters Source'!$B$40:$D$150,3,1)*100) -> 391.0310455 | E123: =IF('Annual Parameters Source'!E119="","-",VLOOKUP($B$16,'Annual Parameters Source'!$B$40:$AH$154,33,FALSE)/VLOOKUP($B$16,'Annual Parameters Source'!$B$40:$AH$154,4,FALSE)*'Annual Parameters Source'!E119) -> - | F123: =IF('Annual Parameters Source'!F119="","-",'Annual Parameters Source'!F119) -> 1.745914737 | G123: =IF('Annual Parameters Source'!G119="","-",'Annual Parameters Source'!G119) -> 400.8151715 | H123: =IF('Annual Parameters Source'!H119="","-",'Annual Parameters Source'!H119) -> - | I123: =IF('Annual Parameters Source'!I119="","-",'Annual Parameters Source'!I119) -> 0.2484644878 | J123: =IF('Annual Parameters Source'!L119="","-",'Annual Parameters Source'!L119) -> 141.1067843 | K123: =IF('Annual Parameters Source'!M119="","-",'Annual Parameters Source'!M119) -> - | L123: =IF('Annual Parameters Source'!N119="","-",'Annual Parameters Source'!N119) -> 0.2484644878 | M123: =IF('Annual Parameters Source'!O119="","-",'Annual Parameters Source'!O119) -> 143.7502478 | N123: =IF('Annual Parameters Source'!P119="","-",'Annual Parameters Source'!P119) -> - | O123: =IF('Annual Parameters Source'!Q119="","-",'Annual Parameters Source'!Q119) -> 1.493738838 | P123: =IF('Annual Parameters Source'!R119="","-",'Annual Parameters Source'!R119) -> 284.0509573 | Q123: =IF('Annual Parameters Source'!S119="","-",'Annual Parameters Source'!S119) -> - | R123: =IF('Annual Parameters Source'!T119="","-",'Annual Parameters Source'!T119) -> 1.493738838 | S123: =IF('Annual Parameters Source'!U119="","-",'Annual Parameters Source'!U119) -> 254.0015681 | T123: =IF('Annual Parameters Source'!V119="","-",'Annual Parameters Source'!V119) -> 1.493738838 | U123: =IF('Annual Parameters Source'!W119="","-",'Annual Parameters Source'!W119) -> 1.493738838 | V123: =IF('Annual Parameters Source'!X119="","-",'Annual Parameters Source'!X119) -> 220.3147103 | W123: =IF('Annual Parameters Source'!Y119="","-",'Annual Parameters Source'!Y119) -> 220.3147103 | X123: =IF('Annual Parameters Source'!AD119="","-",'Annual Parameters Source'!AD119) -> 1.5 | Y123: =IF('Annual Parameters Source'!AE119="","-",'Annual Parameters Source'!AE119) -> 1.5 | Z123: =IF('Annual Parameters Source'!AF119="","-",'Annual Parameters Source'!AF119) -> 228.7302511 | AA123: =IF('Annual Parameters Source'!AG119="","-",'Annual Parameters Source'!AG119) -> 228.7302511 | AB123: =IF('Annual Parameters Source'!J119="","-",'Annual Parameters Source'!J119) -> 0.50529385 | AC123: =IF('Annual Parameters Source'!K119="","-",'Annual Parameters Source'!K119) -> -0.3989204
B124: 2070 | D124: =IF('Annual Parameters Source'!D120="","-",'Annual Parameters Source'!D120/VLOOKUP($B$14,'Annual Parameters Source'!$B$40:$D$150,3,1)*100) -> 400.0247596 | E124: =IF('Annual Parameters Source'!E120="","-",VLOOKUP($B$16,'Annual Parameters Source'!$B$40:$AH$154,33,FALSE)/VLOOKUP($B$16,'Annual Parameters Source'!$B$40:$AH$154,4,FALSE)*'Annual Parameters Source'!E120) -> - | F124: =IF('Annual Parameters Source'!F120="","-",'Annual Parameters Source'!F120) -> 1.798595396 | G124: =IF('Annual Parameters Source'!G120="","-",'Annual Parameters Source'!G120) -> 408.0242148 | H124: =IF('Annual Parameters Source'!H120="","-",'Annual Parameters Source'!H120) -> - | I124: =IF('Annual Parameters Source'!I120="","-",'Annual Parameters Source'!I120) -> 0.2467782846 | J124: =IF('Annual Parameters Source'!L120="","-",'Annual Parameters Source'!L120) -> 141.4550052 | K124: =IF('Annual Parameters Source'!M120="","-",'Annual Parameters Source'!M120) -> - | L124: =IF('Annual Parameters Source'!N120="","-",'Annual Parameters Source'!N120) -> 0.2467782846 | M124: =IF('Annual Parameters Source'!O120="","-",'Annual Parameters Source'!O120) -> 144.1049922 | N124: =IF('Annual Parameters Source'!P120="","-",'Annual Parameters Source'!P120) -> - | O124: =IF('Annual Parameters Source'!Q120="","-",'Annual Parameters Source'!Q120) -> 1.547996991 | P124: =IF('Annual Parameters Source'!R120="","-",'Annual Parameters Source'!R120) -> 288.4480575 | Q124: =IF('Annual Parameters Source'!S120="","-",'Annual Parameters Source'!S120) -> - | R124: =IF('Annual Parameters Source'!T120="","-",'Annual Parameters Source'!T120) -> 1.547996991 | S124: =IF('Annual Parameters Source'!U120="","-",'Annual Parameters Source'!U120) -> 257.9335047 | T124: =IF('Annual Parameters Source'!V120="","-",'Annual Parameters Source'!V120) -> 1.547996991 | U124: =IF('Annual Parameters Source'!W120="","-",'Annual Parameters Source'!W120) -> 1.547996991 | V124: =IF('Annual Parameters Source'!X120="","-",'Annual Parameters Source'!X120) -> 223.7251754 | W124: =IF('Annual Parameters Source'!Y120="","-",'Annual Parameters Source'!Y120) -> 223.7251754 | X124: =IF('Annual Parameters Source'!AD120="","-",'Annual Parameters Source'!AD120) -> 1.5 | Y124: =IF('Annual Parameters Source'!AE120="","-",'Annual Parameters Source'!AE120) -> 1.5 | Z124: =IF('Annual Parameters Source'!AF120="","-",'Annual Parameters Source'!AF120) -> 232.1612049 | AA124: =IF('Annual Parameters Source'!AG120="","-",'Annual Parameters Source'!AG120) -> 232.1612049 | AB124: =IF('Annual Parameters Source'!J120="","-",'Annual Parameters Source'!J120) -> 0.50912823 | AC124: =IF('Annual Parameters Source'!K120="","-",'Annual Parameters Source'!K120) -> -0.3976008
B125: 2071 | D125: =IF('Annual Parameters Source'!D121="","-",'Annual Parameters Source'!D121/VLOOKUP($B$14,'Annual Parameters Source'!$B$40:$D$150,3,1)*100) -> 409.225329 | E125: =IF('Annual Parameters Source'!E121="","-",VLOOKUP($B$16,'Annual Parameters Source'!$B$40:$AH$154,33,FALSE)/VLOOKUP($B$16,'Annual Parameters Source'!$B$40:$AH$154,4,FALSE)*'Annual Parameters Source'!E121) -> - | F125: =IF('Annual Parameters Source'!F121="","-",'Annual Parameters Source'!F121) -> 1.817083224 | G125: =IF('Annual Parameters Source'!G121="","-",'Annual Parameters Source'!G121) -> 415.4383543 | H125: =IF('Annual Parameters Source'!H121="","-",'Annual Parameters Source'!H121) -> - | I125: =IF('Annual Parameters Source'!I121="","-",'Annual Parameters Source'!I121) -> 0.2441381408 | J125: =IF('Annual Parameters Source'!L121="","-",'Annual Parameters Source'!L121) -> 141.8003508 | K125: =IF('Annual Parameters Source'!M121="","-",'Annual Parameters Source'!M121) -> - | L125: =IF('Annual Parameters Source'!N121="","-",'Annual Parameters Source'!N121) -> 0.2441381408 | M125: =IF('Annual Parameters Source'!O121="","-",'Annual Parameters Source'!O121) -> 144.4568074 | N125: =IF('Annual Parameters Source'!P121="","-",'Annual Parameters Source'!P121) -> - | O125: =IF('Annual Parameters Source'!Q121="","-",'Annual Parameters Source'!Q121) -> 1.569114276 | P125: =IF('Annual Parameters Source'!R121="","-",'Annual Parameters Source'!R121) -> 292.9741372 | Q125: =IF('Annual Parameters Source'!S121="","-",'Annual Parameters Source'!S121) -> - | R125: =IF('Annual Parameters Source'!T121="","-",'Annual Parameters Source'!T121) -> 1.569114276 | S125: =IF('Annual Parameters Source'!U121="","-",'Annual Parameters Source'!U121) -> 261.9807761 | T125: =IF('Annual Parameters Source'!V121="","-",'Annual Parameters Source'!V121) -> 1.569114276 | U125: =IF('Annual Parameters Source'!W121="","-",'Annual Parameters Source'!W121) -> 1.569114276 | V125: =IF('Annual Parameters Source'!X121="","-",'Annual Parameters Source'!X121) -> 227.235679 | W125: =IF('Annual Parameters Source'!Y121="","-",'Annual Parameters Source'!Y121) -> 227.235679 | X125: =IF('Annual Parameters Source'!AD121="","-",'Annual Parameters Source'!AD121) -> 1.5 | Y125: =IF('Annual Parameters Source'!AE121="","-",'Annual Parameters Source'!AE121) -> 1.5 | Z125: =IF('Annual Parameters Source'!AF121="","-",'Annual Parameters Source'!AF121) -> 235.643623 | AA125: =IF('Annual Parameters Source'!AG121="","-",'Annual Parameters Source'!AG121) -> 235.643623 | AB125: =IF('Annual Parameters Source'!J121="","-",'Annual Parameters Source'!J121) -> 0.51219017 | AC125: =IF('Annual Parameters Source'!K121="","-",'Annual Parameters Source'!K121) -> -0.3970972
B126: 2072 | D126: =IF('Annual Parameters Source'!D122="","-",'Annual Parameters Source'!D122/VLOOKUP($B$14,'Annual Parameters Source'!$B$40:$D$150,3,1)*100) -> 418.6375116 | E126: =IF('Annual Parameters Source'!E122="","-",VLOOKUP($B$16,'Annual Parameters Source'!$B$40:$AH$154,33,FALSE)/VLOOKUP($B$16,'Annual Parameters Source'!$B$40:$AH$154,4,FALSE)*'Annual Parameters Source'!E122) -> - | F126: =IF('Annual Parameters Source'!F122="","-",'Annual Parameters Source'!F122) -> 1.807390496 | G126: =IF('Annual Parameters Source'!G122="","-",'Annual Parameters Source'!G122) -> 422.9469477 | H126: =IF('Annual Parameters Source'!H122="","-",'Annual Parameters Source'!H122) -> - | I126: =IF('Annual Parameters Source'!I122="","-",'Annual Parameters Source'!I122) -> 0.2404641453 | J126: =IF('Annual Parameters Source'!L122="","-",'Annual Parameters Source'!L122) -> 142.1413298 | K126: =IF('Annual Parameters Source'!M122="","-",'Annual Parameters Source'!M122) -> - | L126: =IF('Annual Parameters Source'!N122="","-",'Annual Parameters Source'!N122) -> 0.2404641453 | M126: =IF('Annual Parameters Source'!O122="","-",'Annual Parameters Source'!O122) -> 144.8041743 | N126: =IF('Annual Parameters Source'!P122="","-",'Annual Parameters Source'!P122) -> - | O126: =IF('Annual Parameters Source'!Q122="","-",'Annual Parameters Source'!Q122) -> 1.563167493 | P126: =IF('Annual Parameters Source'!R122="","-",'Annual Parameters Source'!R122) -> 297.5538137 | Q126: =IF('Annual Parameters Source'!S122="","-",'Annual Parameters Source'!S122) -> - | R126: =IF('Annual Parameters Source'!T122="","-",'Annual Parameters Source'!T122) -> 1.563167493 | S126: =IF('Annual Parameters Source'!U122="","-",'Annual Parameters Source'!U122) -> 266.0759745 | T126: =IF('Annual Parameters Source'!V122="","-",'Annual Parameters Source'!V122) -> 1.563167493 | U126: =IF('Annual Parameters Source'!W122="","-",'Annual Parameters Source'!W122) -> 1.563167493 | V126: =IF('Annual Parameters Source'!X122="","-",'Annual Parameters Source'!X122) -> 230.7877533 | W126: =IF('Annual Parameters Source'!Y122="","-",'Annual Parameters Source'!Y122) -> 230.7877533 | X126: =IF('Annual Parameters Source'!AD122="","-",'Annual Parameters Source'!AD122) -> 1.5 | Y126: =IF('Annual Parameters Source'!AE122="","-",'Annual Parameters Source'!AE122) -> 1.5 | Z126: =IF('Annual Parameters Source'!AF122="","-",'Annual Parameters Source'!AF122) -> 239.1782773 | AA126: =IF('Annual Parameters Source'!AG122="","-",'Annual Parameters Source'!AG122) -> 239.1782773 | AB126: =IF('Annual Parameters Source'!J122="","-",'Annual Parameters Source'!J122) -> 0.51430936 | AC126: =IF('Annual Parameters Source'!K122="","-",'Annual Parameters Source'!K122) -> -0.3974376
B127: 2073 | D127: =IF('Annual Parameters Source'!D123="","-",'Annual Parameters Source'!D123/VLOOKUP($B$14,'Annual Parameters Source'!$B$40:$D$150,3,1)*100) -> 428.2661744 | E127: =IF('Annual Parameters Source'!E123="","-",VLOOKUP($B$16,'Annual Parameters Source'!$B$40:$AH$154,33,FALSE)/VLOOKUP($B$16,'Annual Parameters Source'!$B$40:$AH$154,4,FALSE)*'Annual Parameters Source'!E123) -> - | F127: =IF('Annual Parameters Source'!F123="","-",'Annual Parameters Source'!F123) -> 1.79864601 | G127: =IF('Annual Parameters Source'!G123="","-",'Annual Parameters Source'!G123) -> 430.5542661 | H127: =IF('Annual Parameters Source'!H123="","-",'Annual Parameters Source'!H123) -> - | I127: =IF('Annual Parameters Source'!I123="","-",'Annual Parameters Source'!I123) -> 0.2358416359 | J127: =IF('Annual Parameters Source'!L123="","-",'Annual Parameters Source'!L123) -> 142.4765583 | K127: =IF('Annual Parameters Source'!M123="","-",'Annual Parameters Source'!M123) -> - | L127: =IF('Annual Parameters Source'!N123="","-",'Annual Parameters Source'!N123) -> 0.2358416359 | M127: =IF('Annual Parameters Source'!O123="","-",'Annual Parameters Source'!O123) -> 145.1456828 | N127: =IF('Annual Parameters Source'!P123="","-",'Annual Parameters Source'!P123) -> - | O127: =IF('Annual Parameters Source'!Q123="","-",'Annual Parameters Source'!Q123) -> 1.559127303 | P127: =IF('Annual Parameters Source'!R123="","-",'Annual Parameters Source'!R123) -> 302.1930564 | Q127: =IF('Annual Parameters Source'!S123="","-",'Annual Parameters Source'!S123) -> - | R127: =IF('Annual Parameters Source'!T123="","-",'Annual Parameters Source'!T123) -> 1.559127303 | S127: =IF('Annual Parameters Source'!U123="","-",'Annual Parameters Source'!U123) -> 270.2244376 | T127: =IF('Annual Parameters Source'!V123="","-",'Annual Parameters Source'!V123) -> 1.559127303 | U127: =IF('Annual Parameters Source'!W123="","-",'Annual Parameters Source'!W123) -> 1.559127303 | V127: =IF('Annual Parameters Source'!X123="","-",'Annual Parameters Source'!X123) -> 234.3860282 | W127: =IF('Annual Parameters Source'!Y123="","-",'Annual Parameters Source'!Y123) -> 234.3860282 | X127: =IF('Annual Parameters Source'!AD123="","-",'Annual Parameters Source'!AD123) -> 1.5 | Y127: =IF('Annual Parameters Source'!AE123="","-",'Annual Parameters Source'!AE123) -> 1.5 | Z127: =IF('Annual Parameters Source'!AF123="","-",'Annual Parameters Source'!AF123) -> 242.7659515 | AA127: =IF('Annual Parameters Source'!AG123="","-",'Annual Parameters Source'!AG123) -> 242.7659515 | AB127: =IF('Annual Parameters Source'!J123="","-",'Annual Parameters Source'!J123) -> 0.51540157 | AC127: =IF('Annual Parameters Source'!K123="","-",'Annual Parameters Source'!K123) -> -0.3985648
B128: 2074 | D128: =IF('Annual Parameters Source'!D124="","-",'Annual Parameters Source'!D124/VLOOKUP($B$14,'Annual Parameters Source'!$B$40:$D$150,3,1)*100) -> 438.1162964 | E128: =IF('Annual Parameters Source'!E124="","-",VLOOKUP($B$16,'Annual Parameters Source'!$B$40:$AH$154,33,FALSE)/VLOOKUP($B$16,'Annual Parameters Source'!$B$40:$AH$154,4,FALSE)*'Annual Parameters Source'!E124) -> - | F128: =IF('Annual Parameters Source'!F124="","-",'Annual Parameters Source'!F124) -> 1.504706481 | G128: =IF('Annual Parameters Source'!G124="","-",'Annual Parameters Source'!G124) -> 437.032844 | H128: =IF('Annual Parameters Source'!H124="","-",'Annual Parameters Source'!H124) -> - | I128: =IF('Annual Parameters Source'!I124="","-",'Annual Parameters Source'!I124) -> 0.2302755873 | J128: =IF('Annual Parameters Source'!L124="","-",'Annual Parameters Source'!L124) -> 142.804647 | K128: =IF('Annual Parameters Source'!M124="","-",'Annual Parameters Source'!M124) -> - | L128: =IF('Annual Parameters Source'!N124="","-",'Annual Parameters Source'!N124) -> 0.2302755873 | M128: =IF('Annual Parameters Source'!O124="","-",'Annual Parameters Source'!O124) -> 145.4799179 | N128: =IF('Annual Parameters Source'!P124="","-",'Annual Parameters Source'!P124) -> - | O128: =IF('Annual Parameters Source'!Q124="","-",'Annual Parameters Source'!Q124) -> 1.271502933 | P128: =IF('Annual Parameters Source'!R124="","-",'Annual Parameters Source'!R124) -> 306.03545 | Q128: =IF('Annual Parameters Source'!S124="","-",'Annual Parameters Source'!S124) -> - | R128: =IF('Annual Parameters Source'!T124="","-",'Annual Parameters Source'!T124) -> 1.271502933 | S128: =IF('Annual Parameters Source'!U124="","-",'Annual Parameters Source'!U124) -> 273.6603493 | T128: =IF('Annual Parameters Source'!V124="","-",'Annual Parameters Source'!V124) -> 1.271502933 | U128: =IF('Annual Parameters Source'!W124="","-",'Annual Parameters Source'!W124) -> 1.271502933 | V128: =IF('Annual Parameters Source'!X124="","-",'Annual Parameters Source'!X124) -> 237.3662534 | W128: =IF('Annual Parameters Source'!Y124="","-",'Annual Parameters Source'!Y124) -> 237.3662534 | X128: =IF('Annual Parameters Source'!AD124="","-",'Annual Parameters Source'!AD124) -> 1.5 | Y128: =IF('Annual Parameters Source'!AE124="","-",'Annual Parameters Source'!AE124) -> 1.5 | Z128: =IF('Annual Parameters Source'!AF124="","-",'Annual Parameters Source'!AF124) -> 246.4074407 | AA128: =IF('Annual Parameters Source'!AG124="","-",'Annual Parameters Source'!AG124) -> 246.4074407 | AB128: =IF('Annual Parameters Source'!J124="","-",'Annual Parameters Source'!J124) -> 0.51541321 | AC128: =IF('Annual Parameters Source'!K124="","-",'Annual Parameters Source'!K124) -> -0.4003049
B129: 2075 | D129: =IF('Annual Parameters Source'!D125="","-",'Annual Parameters Source'!D125/VLOOKUP($B$14,'Annual Parameters Source'!$B$40:$D$150,3,1)*100) -> 448.1929712 | E129: =IF('Annual Parameters Source'!E125="","-",VLOOKUP($B$16,'Annual Parameters Source'!$B$40:$AH$154,33,FALSE)/VLOOKUP($B$16,'Annual Parameters Source'!$B$40:$AH$154,4,FALSE)*'Annual Parameters Source'!E125) -> - | F129: =IF('Annual Parameters Source'!F125="","-",'Annual Parameters Source'!F125) -> 1.479364229 | G129: =IF('Annual Parameters Source'!G125="","-",'Annual Parameters Source'!G125) -> 443.4981516 | H129: =IF('Annual Parameters Source'!H125="","-",'Annual Parameters Source'!H125) -> - | I129: =IF('Annual Parameters Source'!I125="","-",'Annual Parameters Source'!I125) -> 0.2239597243 | J129: =IF('Annual Parameters Source'!L125="","-",'Annual Parameters Source'!L125) -> 143.1244719 | K129: =IF('Annual Parameters Source'!M125="","-",'Annual Parameters Source'!M125) -> - | L129: =IF('Annual Parameters Source'!N125="","-",'Annual Parameters Source'!N125) -> 0.2239597243 | M129: =IF('Annual Parameters Source'!O125="","-",'Annual Parameters Source'!O125) -> 145.8057343 | N129: =IF('Annual Parameters Source'!P125="","-",'Annual Parameters Source'!P125) -> - | O129: =IF('Annual Parameters Source'!Q125="","-",'Annual Parameters Source'!Q125) -> 1.252599187 | P129: =IF('Annual Parameters Source'!R125="","-",'Annual Parameters Source'!R125) -> 309.8688476 | Q129: =IF('Annual Parameters Source'!S125="","-",'Annual Parameters Source'!S125) -> - | R129: =IF('Annual Parameters Source'!T125="","-",'Annual Parameters Source'!T125) -> 1.252599187 | S129: =IF('Annual Parameters Source'!U125="","-",'Annual Parameters Source'!U125) -> 277.0882166 | T129: =IF('Annual Parameters Source'!V125="","-",'Annual Parameters Source'!V125) -> 1.252599187 | U129: =IF('Annual Parameters Source'!W125="","-",'Annual Parameters Source'!W125) -> 1.252599187 | V129: =IF('Annual Parameters Source'!X125="","-",'Annual Parameters Source'!X125) -> 240.3395012 | W129: =IF('Annual Parameters Source'!Y125="","-",'Annual Parameters Source'!Y125) -> 240.3395012 | X129: =IF('Annual Parameters Source'!AD125="","-",'Annual Parameters Source'!AD125) -> 1.5 | Y129: =IF('Annual Parameters Source'!AE125="","-",'Annual Parameters Source'!AE125) -> 1.5 | Z129: =IF('Annual Parameters Source'!AF125="","-",'Annual Parameters Source'!AF125) -> 250.1035524 | AA129: =IF('Annual Parameters Source'!AG125="","-",'Annual Parameters Source'!AG125) -> 250.1035524 | AB129: =IF('Annual Parameters Source'!J125="","-",'Annual Parameters Source'!J125) -> 0.51442208 | AC129: =IF('Annual Parameters Source'!K125="","-",'Annual Parameters Source'!K125) -> -0.4025518
B130: 2076 | D130: =IF('Annual Parameters Source'!D126="","-",'Annual Parameters Source'!D126/VLOOKUP($B$14,'Annual Parameters Source'!$B$40:$D$150,3,1)*100) -> 458.5014095 | E130: =IF('Annual Parameters Source'!E126="","-",VLOOKUP($B$16,'Annual Parameters Source'!$B$40:$AH$154,33,FALSE)/VLOOKUP($B$16,'Annual Parameters Source'!$B$40:$AH$154,4,FALSE)*'Annual Parameters Source'!E126) -> - | F130: =IF('Annual Parameters Source'!F126="","-",'Annual Parameters Source'!F126) -> 1.424335497 | G130: =IF('Annual Parameters Source'!G126="","-",'Annual Parameters Source'!G126) -> 449.8150532 | H130: =IF('Annual Parameters Source'!H126="","-",'Annual Parameters Source'!H126) -> - | I130: =IF('Annual Parameters Source'!I126="","-",'Annual Parameters Source'!I126) -> 0.2169084331 | J130: =IF('Annual Parameters Source'!L126="","-",'Annual Parameters Source'!L126) -> 143.4349209 | K130: =IF('Annual Parameters Source'!M126="","-",'Annual Parameters Source'!M126) -> - | L130: =IF('Annual Parameters Source'!N126="","-",'Annual Parameters Source'!N126) -> 0.2169084331 | M130: =IF('Annual Parameters Source'!O126="","-",'Annual Parameters Source'!O126) -> 146.1219992 | N130: =IF('Annual Parameters Source'!P126="","-",'Annual Parameters Source'!P126) -> - | O130: =IF('Annual Parameters Source'!Q126="","-",'Annual Parameters Source'!Q126) -> 1.204813721 | P130: =IF('Annual Parameters Source'!R126="","-",'Annual Parameters Source'!R126) -> 313.6021899 | Q130: =IF('Annual Parameters Source'!S126="","-",'Annual Parameters Source'!S126) -> - | R130: =IF('Annual Parameters Source'!T126="","-",'Annual Parameters Source'!T126) -> 1.204813721 | S130: =IF('Annual Parameters Source'!U126="","-",'Annual Parameters Source'!U126) -> 280.4266134 | T130: =IF('Annual Parameters Source'!V126="","-",'Annual Parameters Source'!V126) -> 1.204813721 | U130: =IF('Annual Parameters Source'!W126="","-",'Annual Parameters Source'!W126) -> 1.204813721 | V130: =IF('Annual Parameters Source'!X126="","-",'Annual Parameters Source'!X126) -> 243.2351445 | W130: =IF('Annual Parameters Source'!Y126="","-",'Annual Parameters Source'!Y126) -> 243.2351445 | X130: =IF('Annual Parameters Source'!AD126="","-",'Annual Parameters Source'!AD126) -> 1.5 | Y130: =IF('Annual Parameters Source'!AE126="","-",'Annual Parameters Source'!AE126) -> 1.5 | Z130: =IF('Annual Parameters Source'!AF126="","-",'Annual Parameters Source'!AF126) -> 253.8551056 | AA130: =IF('Annual Parameters Source'!AG126="","-",'Annual Parameters Source'!AG126) -> 253.8551056 | AB130: =IF('Annual Parameters Source'!J126="","-",'Annual Parameters Source'!J126) -> 0.51242975 | AC130: =IF('Annual Parameters Source'!K126="","-",'Annual Parameters Source'!K126) -> -0.4051471
B131: 2077 | D131: =IF('Annual Parameters Source'!D127="","-",'Annual Parameters Source'!D127/VLOOKUP($B$14,'Annual Parameters Source'!$B$40:$D$150,3,1)*100) -> 469.0469419 | E131: =IF('Annual Parameters Source'!E127="","-",VLOOKUP($B$16,'Annual Parameters Source'!$B$40:$AH$154,33,FALSE)/VLOOKUP($B$16,'Annual Parameters Source'!$B$40:$AH$154,4,FALSE)*'Annual Parameters Source'!E127) -> - | F131: =IF('Annual Parameters Source'!F127="","-",'Annual Parameters Source'!F127) -> 1.438537694 | G131: =IF('Annual Parameters Source'!G127="","-",'Annual Parameters Source'!G127) -> 456.2858123 | H131: =IF('Annual Parameters Source'!H127="","-",'Annual Parameters Source'!H127) -> - | I131: =IF('Annual Parameters Source'!I127="","-",'Annual Parameters Source'!I127) -> 0.209402365 | J131: =IF('Annual Parameters Source'!L127="","-",'Annual Parameters Source'!L127) -> 143.735277 | K131: =IF('Annual Parameters Source'!M127="","-",'Annual Parameters Source'!M127) -> - | L131: =IF('Annual Parameters Source'!N127="","-",'Annual Parameters Source'!N127) -> 0.209402365 | M131: =IF('Annual Parameters Source'!O127="","-",'Annual Parameters Source'!O127) -> 146.4279822 | N131: =IF('Annual Parameters Source'!P127="","-",'Annual Parameters Source'!P127) -> - | O131: =IF('Annual Parameters Source'!Q127="","-",'Annual Parameters Source'!Q127) -> 1.226566869 | P131: =IF('Annual Parameters Source'!R127="","-",'Annual Parameters Source'!R127) -> 317.4487305 | Q131: =IF('Annual Parameters Source'!S127="","-",'Annual Parameters Source'!S127) -> - | R131: =IF('Annual Parameters Source'!T127="","-",'Annual Parameters Source'!T127) -> 1.226566869 | S131: =IF('Annual Parameters Source'!U127="","-",'Annual Parameters Source'!U127) -> 283.8662334 | T131: =IF('Annual Parameters Source'!V127="","-",'Annual Parameters Source'!V127) -> 1.226566869 | U131: =IF('Annual Parameters Source'!W127="","-",'Annual Parameters Source'!W127) -> 1.226566869 | V131: =IF('Annual Parameters Source'!X127="","-",'Annual Parameters Source'!X127) -> 246.2185862 | W131: =IF('Annual Parameters Source'!Y127="","-",'Annual Parameters Source'!Y127) -> 246.2185862 | X131: =IF('Annual Parameters Source'!AD127="","-",'Annual Parameters Source'!AD127) -> 1.5 | Y131: =IF('Annual Parameters Source'!AE127="","-",'Annual Parameters Source'!AE127) -> 1.5 | Z131: =IF('Annual Parameters Source'!AF127="","-",'Annual Parameters Source'!AF127) -> 257.6629322 | AA131: =IF('Annual Parameters Source'!AG127="","-",'Annual Parameters Source'!AG127) -> 257.6629322 | AB131: =IF('Annual Parameters Source'!J127="","-",'Annual Parameters Source'!J127) -> 0.50957725 | AC131: =IF('Annual Parameters Source'!K127="","-",'Annual Parameters Source'!K127) -> -0.4079597
B132: 2078 | D132: =IF('Annual Parameters Source'!D128="","-",'Annual Parameters Source'!D128/VLOOKUP($B$14,'Annual Parameters Source'!$B$40:$D$150,3,1)*100) -> 479.8350216 | E132: =IF('Annual Parameters Source'!E128="","-",VLOOKUP($B$16,'Annual Parameters Source'!$B$40:$AH$154,33,FALSE)/VLOOKUP($B$16,'Annual Parameters Source'!$B$40:$AH$154,4,FALSE)*'Annual Parameters Source'!E128) -> - | F132: =IF('Annual Parameters Source'!F128="","-",'Annual Parameters Source'!F128) -> 1.431467229 | G132: =IF('Annual Parameters Source'!G128="","-",'Annual Parameters Source'!G128) -> 462.8173941 | H132: =IF('Annual Parameters Source'!H128="","-",'Annual Parameters Source'!H128) -> - | I132: =IF('Annual Parameters Source'!I128="","-",'Annual Parameters Source'!I128) -> 0.2015488431 | J132: =IF('Annual Parameters Source'!L128="","-",'Annual Parameters Source'!L128) -> 144.0249738 | K132: =IF('Annual Parameters Source'!M128="","-",'Annual Parameters Source'!M128) -> - | L132: =IF('Annual Parameters Source'!N128="","-",'Annual Parameters Source'!N128) -> 0.2015488431 | M132: =IF('Annual Parameters Source'!O128="","-",'Annual Parameters Source'!O128) -> 146.7231061 | N132: =IF('Annual Parameters Source'!P128="","-",'Annual Parameters Source'!P128) -> - | O132: =IF('Annual Parameters Source'!Q128="","-",'Annual Parameters Source'!Q128) -> 1.227444486 | P132: =IF('Annual Parameters Source'!R128="","-",'Annual Parameters Source'!R128) -> 321.3452374 | Q132: =IF('Annual Parameters Source'!S128="","-",'Annual Parameters Source'!S128) -> - | R132: =IF('Annual Parameters Source'!T128="","-",'Annual Parameters Source'!T128) -> 1.227444486 | S132: =IF('Annual Parameters Source'!U128="","-",'Annual Parameters Source'!U128) -> 287.3505338 | T132: =IF('Annual Parameters Source'!V128="","-",'Annual Parameters Source'!V128) -> 1.227444486 | U132: =IF('Annual Parameters Source'!W128="","-",'Annual Parameters Source'!W128) -> 1.227444486 | V132: =IF('Annual Parameters Source'!X128="","-",'Annual Parameters Source'!X128) -> 249.2407826 | W132: =IF('Annual Parameters Source'!Y128="","-",'Annual Parameters Source'!Y128) -> 249.2407826 | X132: =IF('Annual Parameters Source'!AD128="","-",'Annual Parameters Source'!AD128) -> 1.5 | Y132: =IF('Annual Parameters Source'!AE128="","-",'Annual Parameters Source'!AE128) -> 1.5 | Z132: =IF('Annual Parameters Source'!AF128="","-",'Annual Parameters Source'!AF128) -> 261.5278762 | AA132: =IF('Annual Parameters Source'!AG128="","-",'Annual Parameters Source'!AG128) -> 261.5278762 | AB132: =IF('Annual Parameters Source'!J128="","-",'Annual Parameters Source'!J128) -> 0.5059779 | AC132: =IF('Annual Parameters Source'!K128="","-",'Annual Parameters Source'!K128) -> -0.4107697
B133: 2079 | D133: =IF('Annual Parameters Source'!D129="","-",'Annual Parameters Source'!D129/VLOOKUP($B$14,'Annual Parameters Source'!$B$40:$D$150,3,1)*100) -> 490.8712271 | E133: =IF('Annual Parameters Source'!E129="","-",VLOOKUP($B$16,'Annual Parameters Source'!$B$40:$AH$154,33,FALSE)/VLOOKUP($B$16,'Annual Parameters Source'!$B$40:$AH$154,4,FALSE)*'Annual Parameters Source'!E129) -> - | F133: =IF('Annual Parameters Source'!F129="","-",'Annual Parameters Source'!F129) -> 1.407103529 | G133: =IF('Annual Parameters Source'!G129="","-",'Annual Parameters Source'!G129) -> 469.329714 | H133: =IF('Annual Parameters Source'!H129="","-",'Annual Parameters Source'!H129) -> - | I133: =IF('Annual Parameters Source'!I129="","-",'Annual Parameters Source'!I129) -> 0.1935632199 | J133: =IF('Annual Parameters Source'!L129="","-",'Annual Parameters Source'!L129) -> 144.3037532 | K133: =IF('Annual Parameters Source'!M129="","-",'Annual Parameters Source'!M129) -> - | L133: =IF('Annual Parameters Source'!N129="","-",'Annual Parameters Source'!N129) -> 0.1935632199 | M133: =IF('Annual Parameters Source'!O129="","-",'Annual Parameters Source'!O129) -> 147.007108 | N133: =IF('Annual Parameters Source'!P129="","-",'Annual Parameters Source'!P129) -> - | O133: =IF('Annual Parameters Source'!Q129="","-",'Annual Parameters Source'!Q129) -> 1.211195879 | P133: =IF('Annual Parameters Source'!R129="","-",'Annual Parameters Source'!R129) -> 325.2373577 | Q133: =IF('Annual Parameters Source'!S129="","-",'Annual Parameters Source'!S129) -> - | R133: =IF('Annual Parameters Source'!T129="","-",'Annual Parameters Source'!T129) -> 1.211195879 | S133: =IF('Annual Parameters Source'!U129="","-",'Annual Parameters Source'!U129) -> 290.8309116 | T133: =IF('Annual Parameters Source'!V129="","-",'Annual Parameters Source'!V129) -> 1.211195879 | U133: =IF('Annual Parameters Source'!W129="","-",'Annual Parameters Source'!W129) -> 1.211195879 | V133: =IF('Annual Parameters Source'!X129="","-",'Annual Parameters Source'!X129) -> 252.2595767 | W133: =IF('Annual Parameters Source'!Y129="","-",'Annual Parameters Source'!Y129) -> 252.2595767 | X133: =IF('Annual Parameters Source'!AD129="","-",'Annual Parameters Source'!AD129) -> 1.5 | Y133: =IF('Annual Parameters Source'!AE129="","-",'Annual Parameters Source'!AE129) -> 1.5 | Z133: =IF('Annual Parameters Source'!AF129="","-",'Annual Parameters Source'!AF129) -> 265.4507943 | AA133: =IF('Annual Parameters Source'!AG129="","-",'Annual Parameters Source'!AG129) -> 265.4507943 | AB133: =IF('Annual Parameters Source'!J129="","-",'Annual Parameters Source'!J129) -> 0.50186805 | AC133: =IF('Annual Parameters Source'!K129="","-",'Annual Parameters Source'!K129) -> -0.4135622
